{"text_format":"1","workbook":"xlsx","n_sheets":46,"sheets":["Bid Items","203.0200","204.0100","204.0110","205.0100","211.0100","305.0110","305.0120","305.0500","455.0605","465.0105","465.0115","522.0160","522.1060","606.0200","614.2300","614.2610","619.1000","625.0500","628.1504","628.1520","628.1905","628.1910","628.2004","628.7504","628.7555","629.0210","630.0120","630.0200","633.5200","634.0416","634.0805","637.2210","638.2602","642.5001","645.0120","646.0106","648.0100","650.6000","690.0150","SPV.0005","CompSheet","Costs Report","MiscellaneousQTYSheet","MiscellaneousQTYSheet D5","Help Window"],"not_rendered":{"charts":0,"images":0,"macros":1,"external_links":0,"defined_names":802,"comments":0,"pivot_tables":0},"unopened":[],"bounds":{"document_bytes":16777216,"sheet_cells":100000,"rows_first":2000,"rows_last":500,"rows_between":2000,"halvings":0,"cell_chars":16384,"cell_head_chars":4096},"cells_cut":0,"cells_raw":0,"read":"whole","date_system":"1900"}

{"sheet":"Bid Items","index":0,"n_rows":2286,"n_cols":8,"rows_kept":2286,"cut":false,"hidden":false,"merged":[[2276,3,2276,4],[0,2,0,3],[1,2,1,3],[2,1,2,2],[3,1,3,2],[4,1,4,2],[5,1,5,2],[9,2,9,6],[6,1,6,2],[7,1,7,4],[8,1,8,4],[8,5,8,6],[9,1,10,1],[10,3,10,6]]}
["D",null,"ENGINEER'S ESTIMATE / Q2P WORKBOOK",null,null,"CONSTRUCTION COST ESTIMATE  "]
["E",null,"PROJECT MANAGER:  RICHARD SHERMO",null,null,"2015-06-09",{"$f":"ConstructionTotal","v":133209.05695898377}]
["T"," CONST. I.D.:  8949-04-78"]
["C    S","       TITLE:  BALDWIN - MENOMONIE"]
["E M","      LIMITS:  CULVERTS C-55-0037, 0038, & 0039",null,null,null,null,null,"COLOR CODE"]
["L E","     HIGHWAY:  USH 12",null,null,null,null,null,"NEW ITEMS"]
["E T","      COUNTY:  ST. CROIX",null,null,null,"PSE Date:",null,"PRE-ESTABLISHED PRICE"]
["S     I","PROGRAM CODE:  303 STATE HIGHWAY REHABILITATION",null,null,null,"Let Date:",null,"RETIRED"]
[null,"CONCEPT CODE:  RESURF RESURFACING",null,null,null,"NET C/L MILES:  0.130",null,"STSP's W/ BID ITEMS"]
["TOTAL","TOTAL BID ITEMS","SCHEDULE OF BID ITEMS  WISDOT STANDARD SPECIFICATIONS 2015 EDITION",null,null,null,null,"REVISED ITEM/DESC"]
[{"$f":"COUNTIF($A$13:$A$2274,\"X\")","v":40}]
[null,{"$f":"COUNTIF($A$13:$A$2274,\"X\")","v":40},"ITEM DESCRIPTION","QUANTITY","UNIT","UNIT PRICE","COST"]
[null,"108.3100.S","INCENTIVE/DISINCENTIVE FOR INTERIM COMPLETION OF WORK",null,"CD"]
[null,"108.4300","RBC PROGRESS SCHEDULE",null,"EACH"]
[null,"108.4400","CPM PROGRESS SCHEDULE",null,"EACH"]
[null,"201.0105","CLEARING",null,"STA"]
[null,"201.0110","CLEARING",null,"SY"]
[null,"201.0115","CLEARING",null,"ACRE"]
[null,"201.0120","CLEARING",null,"ID"]
[null,"201.0205","GRUBBING",null,"STA"]
[null,"201.0210","GRUBBING",null,"SY"]
[null,"201.0215","GRUBBING",null,"ACRE"]
[null,"201.0220","GRUBBING",null,"ID"]
[null,"202.0105","ROADSIDE CLEARING",null,"STA"]
[null,"202.0110","ROADSIDE CLEARING",null,"SY"]
[null,"202.0115","ROADSIDE CLEARING",null,"ACRE"]
[null,"203.0100","REMOVING SMALL PIPE CULVERTS",null,"EACH"]
["x","203.0200","REMOVING OLD STRUCTURE (130+21, C-55-0014)",{"$f":"[0]!TOTAL203.0200_0010+[0]!TOTAL203.0200_0020+[0]!TOTAL203.0200_0030+[0]!TOTAL203.0200_0040+[0]!TOTAL203.0200_0050","v":1},"LS",2000,{"$f":"IF(A28<>\"x\",\"\",IF(ISERROR(D28),0,IF(D28=\"\",0,IF(D28=\" \",0,IF(D28=\"<Error>\",0,F28*D28)))))","v":2000}]
[null,"203.0210.S","ABATEMENT OF ASBESTOS CONTAINING MATERIAL (STRUCTURE)",null,"LS"]
[null,"203.0225.S","DEBRIS CONTAINMENT (STRUCTURE)",null,"LS"]
[null,"203.0500.S","REMOVING OLD STRUCTURE OVER WATERWAY (STATION)",null,"LS"]
[null,"203.0600.S","REMOVING OLD STRUCTURE OVER WATERWAY WITH MINIMAL DEBRIS (STATION)",null,"LS"]
[null,"203.0700.S","REMOVING OLD STRUCTURE OVER WATERWAY WITH DEBRIS CAPTURE SYSTEM (STATION)",null,"LS"]
["x","204.0100","REMOVING PAVEMENT",{"$f":"[0]!TOTAL204.0100_0010+[0]!TOTAL204.0100_0020+[0]!TOTAL204.0100_0030+[0]!TOTAL204.0100_0040+[0]!TOTAL204.0100_0050","v":222.22222222222223},"SY",5,{"$f":"IF(A34<>\"x\",\"\",IF(ISERROR(D34),0,IF(D34=\"\",0,IF(D34=\" \",0,IF(D34=\"<Error>\",0,F34*D34)))))","v":1111.1111111111111}]
[null,"204.0105","REMOVING PAVEMENT BUTT JOINTS",null,"SY"]
[null,"204.0109.S","REMOVING CONCRETE SURFACE PARTIAL DEPTH",null,"SF"]
["x","204.0110","REMOVING ASPHALTIC SURFACE",{"$f":"[0]!TOTAL204.0110_0010+[0]!TOTAL204.0110_0020+[0]!TOTAL204.0110_0030+[0]!TOTAL204.0110_0040+[0]!TOTAL204.0110_0050","v":600},"SY",4,{"$f":"IF(A37<>\"x\",\"\",IF(ISERROR(D37),0,IF(D37=\"\",0,IF(D37=\" \",0,IF(D37=\"<Error>\",0,F37*D37)))))","v":2400}]
[null,"204.0115","REMOVING ASPHALTIC SURFACE BUTT JOINTS",null,"SY"]
[null,"204.0120","REMOVING ASPHALTIC SURFACE MILLING",null,"SY"]
[null,"204.0125","REMOVING ASPHALTIC SURFACE MILLING",null,"TON"]
[null,"204.0130","REMOVING CURB",null,"LF"]
[null,"204.0140","REMOVING GUTTER",null,"LF"]
[null,"204.0150","REMOVING CURB & GUTTER",null,"LF"]
[null,"204.0155","REMOVING CONCRETE SIDEWALK",null,"SY"]
[null,"204.0157","REMOVING CONCRETE BARRIER",null,"LF"]
[null,"204.0160","REMOVING LIP CURB",null,"LF"]
[null,"204.0165","REMOVING GUARDRAIL",null,"LF",3,{"$f":"IF(A47<>\"x\",\"\",IF(ISERROR(D47),0,IF(D47=\"\",0,IF(D47=\" \",0,IF(D47=\"<Error>\",0,F47*D47)))))","v":""}]
[null,"204.0170","REMOVING FENCE",null,"LF"]
[null,"204.0175","REMOVING CONCRETE SLOPE PAVING",null,"SY"]
[null,"204.0180","REMOVING DELINEATORS AND MARKERS",null,"EACH"]
[null,"204.0185","REMOVING MASONRY",null,"CY"]
[null,"204.0190","REMOVING SURFACE DRAINS",null,"EACH"]
[null,"204.0195","REMOVING CONCRETE BASES",null,"EACH"]
[null,"204.0200","REMOVING RAILROAD TRACK",null,"LF"]
[null,"204.0205","REMOVING UTILITY POLES",null,"EACH"]
[null,"204.0210","REMOVING MANHOLES",null,"EACH"]
[null,"204.0215","REMOVING CATCH BASINS",null,"EACH"]
[null,"204.0220","REMOVING INLETS",null,"EACH"]
[null,"204.0225","REMOVING SEPTIC TANKS",null,"EACH"]
[null,"204.0230","REMOVING BUILDING (STATION)",null,"LS"]
[null,"204.0235","REMOVING BUILDINGS (PARCEL)",null,"LS"]
[null,"204.0240","SITE CLEARANCE (PARCEL)",null,"LS"]
[null,"204.0245","REMOVING STORM SEWER (SIZE)",null,"LF"]
[null,"204.0250","ABANDONING MANHOLES",null,"EACH"]
[null,"204.0255","ABANDONING CATCH BASINS",null,"EACH"]
[null,"204.0260","ABANDONING INLETS",null,"EACH"]
[null,"204.0265","ABANDONING WELLS",null,"EACH"]
[null,"204.0270","ABANDONING CULVERT PIPES",null,"EACH"]
[null,"204.0275","CLOSING CULVERT PIPES",null,"EACH"]
[null,"204.0280","SEALING PIPES",null,"EACH"]
[null,"204.0291.S","ABANDONING SEWER",null,"CY"]
[null,"204.9025.S","REMOVING (ITEM DESCRIPTION)",null,"CF"]
[null,"204.9035.S","REMOVING (ITEM DESCRIPTION)",null,"CY"]
[null,"204.9060.S","REMOVING (ITEM DESCRIPTION)",null,"EACH"]
[null,"204.9070.S","REMOVING (ITEM DESCRIPTION)",null,"GAL"]
[null,"204.9090.S","REMOVING (ITEM DESCRIPTION)",null,"LF"]
[null,"204.9105.S","REMOVING (ITEM DESCRIPTION)",null,"LS"]
[null,"204.9125.S","REMOVING (ITEM DESCRIPTION)",null,"MI"]
[null,"204.9165.S","REMOVING (ITEM DESCRIPTION)",null,"SF"]
[null,"204.9170.S","REMOVING (ITEM DESCRIPTION)",null,"STA"]
[null,"204.9180.S","REMOVING (ITEM DESCRIPTION)",null,"SY"]
[null,"204.9195.S","REMOVING (ITEM DESCRIPTION)",null,"TON"]
["x","205.0100","EXCAVATION COMMON",{"$f":"[0]!TOTAL205.0100_0010+[0]!TOTAL205.0100_0020+[0]!TOTAL205.0100_0030+[0]!TOTAL205.0100_0040+[0]!TOTAL205.0100_0050","v":3200},"CY",12,{"$f":"IF(A83<>\"x\",\"\",IF(ISERROR(D83),0,IF(D83=\"\",0,IF(D83=\" \",0,IF(D83=\"<Error>\",0,F83*D83)))))","v":38400}]
[null,"205.0200","EXCAVATION ROCK",null,"CY"]
[null,"205.0300","EXCAVATION STONE PILES AND STONE FENCES",null,"CY"]
[null,"205.0400","EXCAVATION MARSH",null,"CY"]
[null,"205.0500.S","EXCAVATION AND HAULING OF PETROLEUM CONTAMINATED SOIL",null,"CY"]
[null,"205.0501.S","EXCAVATION, HAULING, AND DISPOSAL OF PETROLEUM CONTAMINATED SOIL",null,"TON"]
[null,"205.1300","PRESPLITTING ROCK",null,"LF"]
[null,"205.2000.S","SETTLEMENT GAUGES",null,"EACH"]
[null,"205.3000.S","TEMPORARY EMERGENCY PULLOUTS",null,"EACH"]
[null,"205.9006.S","GRADING SHAPING & FINISHING FOR BARRIER TERMINALS",null,"EACH"]
[null,"205.9010.S","GRADING & SHAPING INTERSECTION (LOCATION)",null,"LS"]
[null,"205.9015.S","GRADING SHAPING & FINISHING INTERSECTION (LOCATION)",null,"LS"]
[null,"206.1000","EXCAVATION FOR STRUCTURES BRIDGES (STRUCTURE)",null,"LS"]
[null,"206.1050.S","UNDERWATER FOUNDATION INSPECTION",null,"EACH"]
[null,"206.2000","EXCAVATION FOR STRUCTURES CULVERTS (STRUCTURE)",null,"LS"]
[null,"206.3000","EXCAVATION FOR STRUCTURES RETAINING WALLS (STRUCTURE)",null,"LS"]
[null,"206.4000","EXCAVATION FOR STRUCTURES STRUCTURAL PLATE PIPE OR PIPE ARCHES (STATION)",null,"LS"]
[null,"206.5000","COFFERDAMS (STRUCTURE)",null,"LS"]
[null,"206.6000.S-RETIRE","RETIRE-TEMPORARY SHORING",null,"SF"]
[null,"208.0100","BORROW",null,"CY"]
[null,"208.1100","SELECT BORROW",null,"CY"]
[null,"208.2100.S","FLY ASH FOR SUBGRADE STABILIZATION FURNISHED FURNISHED",null,"TON"]
[null,"208.2110.S","FLY ASH SUBGRADE STABILIZATION",null,"SY"]
[null,"209.0100","BACKFILL GRANULAR",null,"CY"]
[null,"209.0200.S","BACKFILL CONTROLLED LOW STRENGTH",null,"CY"]
[null,"209.0300.S","BACKFILL COARSE AGGREGATE (SIZE)",null,"CY"]
[null,"210.0100","BACKFILL STRUCTURE",null,"CY"]
["x","211.0100","PREPARE FOUNDATION FOR ASPHALTIC PAVING (PROJECT)",{"$f":"[0]!TOTAL211.0100_0010+[0]!TOTAL211.0100_0020+[0]!TOTAL211.0100_0030+[0]!TOTAL211.0100_0040+[0]!TOTAL211.0100_0050","v":1},"LS",5000,{"$f":"IF(A110<>\"x\",\"\",IF(ISERROR(D110),0,IF(D110=\"\",0,IF(D110=\" \",0,IF(D110=\"<Error>\",0,F110*D110)))))","v":5000}]
[null,"211.0200","PREPARE FOUNDATION FOR CONCRETE PAVEMENT (PROJECT)",null,"LS"]
[null,"211.0300","PREPARE FOUNDATION FOR CONCRETE BASE (PROJECT)",null,"LS"]
[null,"211.0400","PREPARE FOUNDATION FOR ASPHALTIC SHOULDERS",null,"STA"]
[null,"211.0500","PREPARE FOUNDATION FOR BASE AGGREGATE",null,"STA"]
[null,"213.0100","FINISHING ROADWAY (PROJECT)",null,"EACH"]
[null,"214.0100","OBLITERATING OLD ROAD",null,"STA"]
["x","305.0110","BASE AGGREGATE DENSE 3/4-INCH",{"$f":"[0]!TOTAL305.0110_0010+[0]!TOTAL305.0110_0020+[0]!TOTAL305.0110_0030+[0]!TOTAL305.0110_0040+[0]!TOTAL305.0110_0050","v":60},"TON",20,{"$f":"IF(A117<>\"x\",\"\",IF(ISERROR(D117),0,IF(D117=\"\",0,IF(D117=\" \",0,IF(D117=\"<Error>\",0,F117*D117)))))","v":1200}]
[null,"305.0115","BASE AGGREGATE DENSE 3/4-INCH",null,"CY"]
["x","305.0120","BASE AGGREGATE DENSE 1 1/4-INCH",{"$f":"[0]!TOTAL305.0120_0010+[0]!TOTAL305.0120_0020+[0]!TOTAL305.0120_0030+[0]!TOTAL305.0120_0040+[0]!TOTAL305.0120_0050","v":60.493827160493829},"TON",30,{"$f":"IF(A119<>\"x\",\"\",IF(ISERROR(D119),0,IF(D119=\"\",0,IF(D119=\" \",0,IF(D119=\"<Error>\",0,F119*D119)))))","v":1814.8148148148148}]
[null,"305.0125","BASE AGGREGATE DENSE 1 1/4-INCH",null,"CY"]
[null,"305.0130","BASE AGGREGATE DENSE 3-INCH",null,"TON"]
[null,"305.0135","BASE AGGREGATE DENSE 3-INCH",null,"CY"]
[null,"305.0410","AGGREGATE DETOURS",null,"TON"]
[null,"305.0415","AGGREGATE DETOURS",null,"CY"]
["x","305.0500","SHAPING SHOULDERS",{"$f":"[0]!TOTAL305.0500_0010+[0]!TOTAL305.0500_0020+[0]!TOTAL305.0500_0030+[0]!TOTAL305.0500_0040+[0]!TOTAL305.0500_0050","v":10.8},"STA",100,{"$f":"IF(A125<>\"x\",\"\",IF(ISERROR(D125),0,IF(D125=\"\",0,IF(D125=\" \",0,IF(D125=\"<Error>\",0,F125*D125)))))","v":1080}]
[null,"305.0502.S","SHAPING ROADWAY",null,"STA"]
[null,"305.0504.S","HAULING EXCESS SHOULDER MATERIAL",null,"CY"]
[null,"306.0110","SALVAGED ASPHALTIC PAVEMENT BASE",null,"TON"]
[null,"306.0115","SALVAGED ASPHALTIC PAVEMENT BASE",null,"CY"]
[null,"310.0110","BASE AGGREGATE OPEN GRADED",null,"TON"]
[null,"310.0115","BASE AGGREGATE OPEN GRADED",null,"CY"]
[null,"311.0110","BREAKER RUN",null,"TON"]
[null,"311.0115","BREAKER RUN",null,"CY"]
[null,"312.0110","SELECT CRUSHED MATERIAL",null,"TON"]
[null,"312.0115","SELECT CRUSHED MATERIAL",null,"CY"]
[null,"313.0110","PIT RUN",null,"TON"]
[null,"313.0115","PIT RUN",null,"CY"]
[null,"315.0100","ASPHALTIC BASE",null,"TON"]
[null,"315.0200","ASPHALTIC BASE WIDENING",null,"TON"]
[null,"320.0105","CONCRETE BASE 4-INCH",null,"SY"]
[null,"320.0110","CONCRETE BASE 4 1/2-INCH",null,"SY"]
[null,"320.0115","CONCRETE BASE 5-INCH",null,"SY"]
[null,"320.0120","CONCRETE BASE 5 1/2-INCH",null,"SY"]
[null,"320.0125","CONCRETE BASE 6-INCH",null,"SY"]
[null,"320.0130","CONCRETE BASE 6 1/2-INCH",null,"SY"]
[null,"320.0135","CONCRETE BASE 7-INCH",null,"SY"]
[null,"320.0140","CONCRETE BASE 7 1/2-INCH",null,"SY"]
[null,"320.0145","CONCRETE BASE 8-INCH",null,"SY"]
[null,"320.0150","CONCRETE BASE 8 1/2-INCH",null,"SY"]
[null,"320.0155","CONCRETE BASE 9-INCH",null,"SY"]
[null,"320.0160","CONCRETE BASE 9 1/2-INCH",null,"SY"]
[null,"320.0165","CONCRETE BASE 10-INCH",null,"SY"]
[null,"320.0170","CONCRETE BASE 10 1/2-INCH",null,"SY"]
[null,"320.0305","CONCRETE BASE HES 4-INCH",null,"SY"]
[null,"320.0310","CONCRETE BASE HES 4 1/2-INCH",null,"SY"]
[null,"320.0315","CONCRETE BASE HES 5-INCH",null,"SY"]
[null,"320.0320","CONCRETE BASE HES 5 1/2-INCH",null,"SY"]
[null,"320.0325","CONCRETE BASE HES 6-INCH",null,"SY"]
[null,"320.0330","CONCRETE BASE HES 6 1/2-INCH",null,"SY"]
[null,"320.0335","CONCRETE BASE HES 7-INCH",null,"SY"]
[null,"320.0340","CONCRETE BASE HES 7 1/2-INCH",null,"SY"]
[null,"320.0345","CONCRETE BASE HES 8-INCH",null,"SY"]
[null,"320.0350","CONCRETE BASE HES 8 1/2-INCH",null,"SY"]
[null,"320.0355","CONCRETE BASE HES 9-INCH",null,"SY"]
[null,"320.0360","CONCRETE BASE HES 9 1/2-INCH",null,"SY"]
[null,"320.0365","CONCRETE BASE HES 10-INCH",null,"SY"]
[null,"320.0370","CONCRETE BASE HES 10 1/2-INCH",null,"SY"]
[null,"325.0100","PULVERIZE AND RELAY",null,"SY"]
[null,"330.0100","MILL AND RELAY",null,"SY"]
[null,"335.0100","RUBBLIZING",null,"SY"]
[null,"340.0100","CRACKING AND SEATING",null,"SY"]
[null,"350.0102","SUBBASE",null,"CY"]
[null,"350.0104","SUBBASE",null,"TON"]
[null,"350.0115","SUBBASE 6-INCH",null,"SY"]
[null,"350.0120","SUBBASE 7-INCH",null,"SY"]
[null,"350.0125","SUBBASE 8-INCH",null,"SY"]
[null,"350.0130","SUBBASE 9-INCH",null,"SY"]
[null,"350.0135","SUBBASE 10-INCH",null,"SY"]
[null,"350.0140","SUBBASE 11-INCH",null,"SY"]
[null,"350.0145","SUBBASE 12-INCH",null,"SY"]
[null,"390.0103","BASE PATCHING",null,"SY"]
[null,"390.0201","BASE PATCHING ASPHALTIC",null,"TON"]
[null,"390.0203","BASE PATCHING ASPHALTIC",null,"SY"]
[null,"390.0303","BASE PATCHING CONCRETE",null,"SY"]
[null,"390.0403","BASE PATCHING CONCRETE SHES",null,"SY"]
[null,"405.0100","COLORING CONCRETE RED",null,"CY"]
[null,"415.0060","CONCRETE PAVEMENT 6-INCH",null,"SY"]
[null,"415.0065","CONCRETE PAVEMENT 6 1/2-INCH",null,"SY"]
[null,"415.0070","CONCRETE PAVEMENT 7-INCH",null,"SY"]
[null,"415.0075","CONCRETE PAVEMENT 7 1/2-INCH",null,"SY"]
[null,"415.0080","CONCRETE PAVEMENT 8-INCH",null,"SY"]
[null,"415.0085","CONCRETE PAVEMENT 8 1/2-INCH",null,"SY"]
[null,"415.0090","CONCRETE PAVEMENT 9-INCH",null,"SY"]
[null,"415.0095","CONCRETE PAVEMENT 9 1/2-INCH",null,"SY"]
[null,"415.0100","CONCRETE PAVEMENT 10-INCH",null,"SY"]
[null,"415.0105","CONCRETE PAVEMENT 10 1/2-INCH",null,"SY"]
[null,"415.0110","CONCRETE PAVEMENT 11-INCH",null,"SY"]
[null,"415.0115","CONCRETE PAVEMENT 11 1/2-INCH",null,"SY"]
[null,"415.0120","CONCRETE PAVEMENT 12-INCH",null,"SY"]
[null,"415.0125","CONCRETE PAVEMENT 12 1/2-INCH",null,"SY"]
[null,"415.0130","CONCRETE PAVEMENT 13-INCH",null,"SY"]
[null,"415.0135","CONCRETE PAVEMENT 13 1/2-INCH",null,"SY"]
[null,"415.0210","CONCRETE PAVEMENT GAPS",null,"EACH"]
[null,"415.0310","CONCRETE ALLEY",null,"SY"]
[null,"415.0410","CONCRETE PAVEMENT APPROACH SLAB",null,"SY"]
[null,"415.1080","CONCRETE PAVEMENT HES 8-INCH",null,"SY"]
[null,"415.1085","CONCRETE PAVEMENT HES 8 1/2-INCH",null,"SY"]
[null,"415.1090","CONCRETE PAVEMENT HES 9-INCH",null,"SY"]
[null,"415.1095","CONCRETE PAVEMENT HES 9 1/2-INCH",null,"SY"]
[null,"415.1100","CONCRETE PAVEMENT HES 10-INCH",null,"SY"]
[null,"415.1105","CONCRETE PAVEMENT HES 10 1/2-INCH",null,"SY"]
[null,"415.1110","CONCRETE PAVEMENT HES 11-INCH",null,"SY"]
[null,"415.1115","CONCRETE PAVEMENT HES 11 1/2-INCH",null,"SY"]
[null,"415.1120","CONCRETE PAVEMENT HES 12-INCH",null,"SY"]
[null,"415.1125","CONCRETE PAVEMENT HES 12 1/2-INCH",null,"SY"]
[null,"415.1130","CONCRETE PAVEMENT HES 13-INCH",null,"SY"]
[null,"415.1135","CONCRETE PAVEMENT HES 13 1/2-INCH",null,"SY"]
[null,"415.1150.S","CONCRETE PAVEMENT FAST TRACK (INCH)",null,"SY"]
[null,"415.1310","CONCRETE ALLEY HES",null,"SY"]
[null,"415.1410","CONCRETE PAVEMENT APPROACH SLAB HES",null,"SY"]
[null,"415.6000.S","ROUT AND SEAL",null,"LF"]
[null,"416.0160","CONCRETE DRIVEWAY 6-INCH",null,"SY"]
[null,"416.0170","CONCRETE DRIVEWAY 7-INCH",null,"SY"]
[null,"416.0180","CONCRETE DRIVEWAY 8-INCH",null,"SY"]
[null,"416.0190","CONCRETE DRIVEWAY 9-INCH",null,"SY"]
[null,"416.0260","CONCRETE DRIVEWAY HES 6-INCH",null,"SY"]
[null,"416.0270","CONCRETE DRIVEWAY HES 7-INCH",null,"SY"]
[null,"416.0280","CONCRETE DRIVEWAY HES 8-INCH",null,"SY"]
[null,"416.0290","CONCRETE DRIVEWAY HES 9-INCH",null,"SY"]
[null,"416.0508","CONCRETE ROUNDABOUT TRUCK APRON 8-INCH",null,"SY"]
[null,"416.0512","CONCRETE ROUNDABOUT TRUCK APRON 12-INCH",null,"SY"]
[null,"416.0610","DRILLED TIE BARS",null,"EACH"]
[null,"416.0620","DRILLED DOWEL BARS",null,"EACH"]
[null,"416.0623.S","PAVEMENT DOWEL BARS RETROFIT WARRANTED",null,"EACH"]
[null,"416.0750.S","CONCRETE PAVEMENT PARTIAL DEPTH REPAIR JOINT REPAIR",null,"LF"]
[null,"416.0752.S","CONCRETE PAVEMENT PARTIAL DEPTH REPAIR CRACK REPAIR",null,"LF"]
[null,"416.0754.S","CONCRETE PAVEMENT PARTIAL DEPTH REPAIR SURFACE REPAIR",null,"SF"]
[null,"416.0756.S","CONCRETE PAVEMENT PARTIAL DEPTH REPAIR EDGE REPAIR",null,"LF"]
[null,"416.0758.S","CONCRETE PAVEMENT PARTIAL DEPTH REPAIR FULL DEPTH ADJUSTMENT",null,"SF"]
[null,"416.1010","CONCRETE SURFACE DRAINS",null,"CY"]
[null,"416.1015","CONCRETE SURFACE DRAINS HES",null,"CY"]
[null,"416.1110","CONCRETE SHOULDER RUMBLE STRIPS",null,"LF"]
[null,"416.1180","CONCRETE INTERSECTION RUMBLE STRIPS",null,"SY"]
[null,"416.1710","CONCRETE PAVEMENT REPAIR",null,"SY"]
[null,"416.1715","CONCRETE PAVEMENT REPAIR SHES",null,"SY"]
[null,"416.1720","CONCRETE PAVEMENT REPLACEMENT",null,"SY"]
[null,"416.1725","CONCRETE PAVEMENT REPLACEMENT SHES",null,"SY"]
[null,"420.1000.S","CONCRETE PAVEMENT CONTINUOUS DIAMOND GRINDING",null,"SY"]
[null,"440.4410.S","INCENTIVE IRI RIDE",null,"DOL",1]
[null,"455.0105","ASPHALTIC MATERIAL PG58-28",null,"TON"]
[null,"455.0110","ASPHALTIC MATERIAL PG58-34",null,"TON"]
[null,"455.0120","ASPHALTIC MATERIAL PG64-28",null,"TON"]
[null,"455.0122","ASPHALTIC MATERIAL PG64-34",null,"TON"]
[null,"455.0125","ASPHALTIC MATERIAL PG70-28",null,"TON"]
[null,"455.0135","ASPHALTIC MATERIAL PG58-34P",null,"TON"]
[null,"455.0140","ASPHALTIC MATERIAL PG64-28P",null,"TON"]
[null,"455.0145","ASPHALTIC MATERIAL PG64-34P",null,"TON"]
[null,"455.0150","ASPHALTIC MATERIAL PG70-28P",null,"TON"]
[null,"455.0205","ASPHALTIC MATERIAL PG58-28",null,"GAL"]
[null,"455.0210","ASPHALTIC MATERIAL PG58-34",null,"GAL"]
[null,"455.0220","ASPHALTIC MATERIAL PG64-28",null,"GAL"]
[null,"455.0222","ASPHALTIC MATERIAL PG64-34",null,"GAL"]
[null,"455.0225","ASPHALTIC MATERIAL PG70-28",null,"GAL"]
[null,"455.0235","ASPHALTIC MATERIAL PG58-34P",null,"GAL"]
[null,"455.0240","ASPHALTIC MATERIAL PG64-28P",null,"GAL"]
[null,"455.0245","ASPHALTIC MATERIAL PG64-34P",null,"GAL"]
[null,"455.0250","ASPHALTIC MATERIAL PG70-28P",null,"GAL"]
[null,"455.0300","ASPHALTIC MATERIAL SPECIAL",null,"TON"]
[null,"455.0400","ASPHALTIC MATERIAL SPECIAL",null,"GAL"]
[null,"455.0500","ASPHALTIC MATERIAL SEAL COAT",null,"TON"]
[null,"455.0505","ASPHALTIC MATERIAL SEAL COAT",null,"GAL"]
[null,"455.0600","TACK COAT",null,"TON"]
["x","455.0605","TACK COAT",{"$f":"[0]!TOTAL455.0605_0010+[0]!TOTAL455.0605_0020+[0]!TOTAL455.0605_0030+[0]!TOTAL455.0605_0040+[0]!TOTAL455.0605_0050","v":2.5},"GAL",15,{"$f":"IF(A273<>\"x\",\"\",IF(ISERROR(D273),0,IF(D273=\"\",0,IF(D273=\" \",0,IF(D273=\"<Error>\",0,F273*D273)))))","v":37.5}]
[null,"460.1100","HMA PAVEMENT TYPE E-0.3",null,"TON"]
[null,"460.1101","HMA PAVEMENT TYPE E-1",null,"TON"]
[null,"460.1103","HMA PAVEMENT TYPE E-3",null,"TON"]
[null,"460.1110","HMA PAVEMENT TYPE E-10",null,"TON"]
[null,"460.1130","HMA PAVEMENT TYPE E-30",null,"TON"]
[null,"460.1132","HMA PAVEMENT TYPE E-30X",null,"TON"]
[null,"460.1700","HMA PAVEMENT TYPE SMA",null,"TON"]
[null,"460.2000","INCENTIVE DENSITY HMA PAVEMENT",null,"DOL",1]
[null,"460.4110.S","REHEATING HMA PAVEMENT LONGITUDINAL JOINTS",null,"LF"]
[null,"460.4200.S-RETIRE","RETIRE-HMA PAVEMENT INTERSECTION",null,"TON"]
["x","465.0105","ASPHALTIC SURFACE",{"$f":"[0]!TOTAL465.0105_0010+[0]!TOTAL465.0105_0020+[0]!TOTAL465.0105_0030+[0]!TOTAL465.0105_0040+[0]!TOTAL465.0105_0050","v":36.225000000000001},"TON",145,{"$f":"IF(A284<>\"x\",\"\",IF(ISERROR(D284),0,IF(D284=\"\",0,IF(D284=\" \",0,IF(D284=\"<Error>\",0,F284*D284)))))","v":5252.625}]
[null,"465.0110","ASPHALTIC SURFACE PATCHING",null,"TON"]
["x","465.0115","ASPHALTIC SURFACE DETOURS",{"$f":"[0]!TOTAL465.0115_0010+[0]!TOTAL465.0115_0020+[0]!TOTAL465.0115_0030+[0]!TOTAL465.0115_0040+[0]!TOTAL465.0115_0050","v":100},"TON",120,{"$f":"IF(A286<>\"x\",\"\",IF(ISERROR(D286),0,IF(D286=\"\",0,IF(D286=\" \",0,IF(D286=\"<Error>\",0,F286*D286)))))","v":12000}]
[null,"465.0120","ASPHALTIC SURFACE DRIVEWAYS AND FIELD ENTRANCES",null,"TON"]
[null,"465.0125","ASPHALTIC SURFACE TEMPORARY",null,"TON"]
[null,"465.0305","ASPHALTIC SURFACE SAFETY ISLANDS",null,"TON"]
[null,"465.0310","ASPHALTIC CURB",null,"LF"]
[null,"465.0315","ASPHALTIC FLUMES",null,"SY"]
[null,"465.0400","ASPHALTIC SHOULDER RUMBLE STRIPS",null,"LF"]
[null,"465.0425","ASPHALTIC SHOULDER RUMBLE STRIPS 2-LANE RURAL",null,"LF"]
[null,"465.0450","ASPHALTIC INTERSECTION RUMBLE STRIPS",null,"SY"]
[null,"465.0475","ASPHALT CENTER LINE RUMBLE STRIPS 2-LANE RURAL",null,"LF"]
[null,"475.0100","SEAL COAT",null,"CY"]
[null,"475.0105","SEAL COAT",null,"TON"]
[null,"490.0100","SALVAGED ASPHALTIC PAVEMENT",null,"SY"]
[null,"490.0105","SALVAGED ASPHALTIC PAVEMENT",null,"TON"]
[null,"490.0200","SALVAGED ASPHALTIC PAVEMENT MILLING",null,"SY"]
[null,"490.0205","SALVAGED ASPHALTIC PAVEMENT MILLING",null,"TON"]
[null,"492.2010.S","SEALING CRACKS AND JOINTS WITH HOT-APPLIED SEALANT",null,"GAL"]
[null,"495.0100.S","WARRANTED HMA PAVEMENT OVERLAY MAINLINE",null,"TON"]
[null,"495.0200.S","WARRANTED HMA PAVEMENT OVERLAY ANCILLARY",null,"TON"]
[null,"502.0100","CONCRETE MASONRY BRIDGES",null,"CY"]
[null,"502.0200","CONCRETE MASONRY BRIDGES HES",null,"CY"]
[null,"502.0717.S","CRACK SEALING EPOXY",null,"LF"]
[null,"502.1100","CONCRETE MASONRY SEAL",null,"CY"]
[null,"502.2000","COMPRESSION JOINT SEALER PREFORMED ELASTOMERIC (WIDTH)",null,"LF"]
[null,"502.3100","EXPANSION DEVICE (STRUCTURE)",null,"LS"]
[null,"502.3110.S","EXPANSION DEVICE MODULAR (STRUCTURE)",null,"LS"]
[null,"502.3200","PROTECTIVE SURFACE TREATMENT",null,"SY"]
[null,"502.3210.S","PIGMENTED PROTECTIVE SURFACE TREATMENT",null,"SY"]
[null,"502.3215.S","PROTECTIVE SURFACE TREATMENT RESEAL",null,"SY"]
[null,"502.4200.S","RUPTURED VOID REPAIR",null,"SY"]
[null,"502.5002","MASONRY ANCHORS TYPE L NO. 4 BARS",null,"EACH"]
[null,"502.5005","MASONRY ANCHORS TYPE L NO. 5 BARS",null,"EACH"]
[null,"502.5010","MASONRY ANCHORS TYPE L NO. 6 BARS",null,"EACH"]
[null,"502.5015","MASONRY ANCHORS TYPE L NO. 7 BARS",null,"EACH"]
[null,"502.5020","MASONRY ANCHORS TYPE L NO. 8 BARS",null,"EACH"]
[null,"502.5025","MASONRY ANCHORS TYPE L NO. 9 BARS",null,"EACH"]
[null,"502.5030","MASONRY ANCHORS TYPE L NO. 10 BARS",null,"EACH"]
[null,"502.6102","MASONRY ANCHORS TYPE S 1/2-INCH",null,"EACH"]
[null,"502.6105","MASONRY ANCHORS TYPE S 5/8-INCH",null,"EACH"]
[null,"502.6110","MASONRY ANCHORS TYPE S 3/4-INCH",null,"EACH"]
[null,"502.6115","MASONRY ANCHORS TYPE S 7/8-INCH",null,"EACH"]
[null,"502.6120","MASONRY ANCHORS TYPE S 1-INCH",null,"EACH"]
[null,"502.6125","MASONRY ANCHORS TYPE S 1 1/8-INCH",null,"EACH"]
[null,"502.6130","MASONRY ANCHORS TYPE S 1 1/4-INCH",null,"EACH"]
[null,"502.6135","MASONRY ANCHORS TYPE S 1 3/8-INCH",null,"EACH"]
[null,"502.6140","MASONRY ANCHORS TYPE S 1 1/2-INCH",null,"EACH"]
[null,"502.6500","PROTECTIVE COATING CLEAR",null,"GAL"]
[null,"503.0128","PRESTRESSED GIRDER TYPE I 28-INCH",null,"LF"]
[null,"503.0136","PRESTRESSED GIRDER TYPE I 36-INCH",null,"LF"]
[null,"503.0137","PRESTRESSED GIRDER TYPE I 36W-INCH",null,"LF"]
[null,"503.0145","PRESTRESSED GIRDER TYPE I 45-INCH",null,"LF"]
[null,"503.0146","PRESTRESSED GIRDER TYPE I 45W-INCH",null,"LF"]
[null,"503.0154","PRESTRESSED GIRDER TYPE I 54-INCH",null,"LF"]
[null,"503.0155","PRESTRESSED GIRDER TYPE I 54W-INCH",null,"LF"]
[null,"503.0170","PRESTRESSED GIRDER TYPE I 70-INCH",null,"LF"]
[null,"503.0172","PRESTRESSED GIRDER TYPE I 72W-INCH",null,"LF"]
[null,"503.0182","PRESTRESSED GIRDER TYPE I 82W-INCH",null,"LF"]
[null,"503.0200.S","PRESTRESSED GIRDERS BOX (TYPE)",null,"LF"]
[null,"503.0217","PRESTRESSED GIRDER BOX TYPE 17-INCH",null,"LF"]
[null,"503.0221","PRESTRESSED GIRDER BOX TYPE 21-INCH",null,"LF"]
[null,"503.0227","PRESTRESSED GIRDER BOX TYPE 27-INCH",null,"LF"]
[null,"503.0233","PRESTRESSED GIRDER BOX TYPE 33-INCH",null,"LF"]
[null,"503.0242","PRESTRESSED GIRDER BOX TYPE 42-INCH",null,"LF"]
[null,"503.0312","PRESTRESSED GIRDER SLAB TYPE 12-INCH",null,"LF"]
[null,"503.0400.S","PRECAST PRESTRESSED CONCRETE DECK PANELS (STRUCTURE)",null,"SF"]
[null,"503.1005.S","REMOVING AND RESETTING PRESTRESSED GIRDERS (STRUCTURE)",null,"LS"]
[null,"504.0100","CONCRETE MASONRY CULVERTS",null,"CY"]
[null,"504.0200","CONCRETE MASONRY CULVERTS HES",null,"CY"]
[null,"504.0500","CONCRETE MASONRY RETAINING WALLS",null,"CY"]
[null,"504.0600","CONCRETE MASONRY RETAINING WALLS HES",null,"CY"]
[null,"504.0900","CONCRETE MASONRY ENDWALLS",null,"CY"]
[null,"504.1000.S","PRECAST CONCRETE WINGWALLS (STRUCTURE)",null,"LS"]
[null,"504.2000.S","PRECAST CONCRETE BOX CULVERT (FT X FT)",null,"LF"]
[null,"505.0105","BAR STEEL REINFORCEMENT BRIDGES",null,"LB"]
[null,"505.0110","BAR STEEL REINFORCEMENT CULVERTS",null,"LB"]
[null,"505.0115","BAR STEEL REINFORCEMENT RETAINING WALLS",null,"LB"]
[null,"505.0405","BAR STEEL REINFORCEMENT HS BRIDGES",null,"LB"]
[null,"505.0410","BAR STEEL REINFORCEMENT HS CULVERTS",null,"LB"]
[null,"505.0415","BAR STEEL REINFORCEMENT HS RETAINING WALLS",null,"LB"]
[null,"505.0605","BAR STEEL REINFORCEMENT HS COATED BRIDGES",null,"LB"]
[null,"505.0610","BAR STEEL REINFORCEMENT HS COATED CULVERTS",null,"LB"]
[null,"505.0615","BAR STEEL REINFORCEMENT HS COATED RETAINING WALLS",null,"LB"]
[null,"505.0650.S","STEEL FABRIC REINFORCEMENT BRIDGES",null,"SY"]
[null,"505.0904","BAR COUPLERS NO. 4",null,"EACH"]
[null,"505.0905","BAR COUPLERS NO. 5",null,"EACH"]
[null,"505.0906","BAR COUPLERS NO. 6",null,"EACH"]
[null,"505.0907","BAR COUPLERS NO. 7",null,"EACH"]
[null,"505.0908","BAR COUPLERS NO. 8",null,"EACH"]
[null,"505.0909","BAR COUPLERS NO. 9",null,"EACH"]
[null,"505.0910","BAR COUPLERS NO. 10",null,"EACH"]
[null,"505.0911","BAR COUPLERS NO. 11",null,"EACH"]
[null,"506.0105","STRUCTURAL STEEL CARBON",null,"LB"]
[null,"506.0605","STRUCTURAL STEEL HS",null,"LB"]
[null,"506.1005","CASTINGS STEEL",null,"LB"]
[null,"506.1010","CASTINGS BRONZE",null,"LB"]
[null,"506.1105","FORGINGS STEEL CARBON",null,"LB"]
[null,"506.1405","LUBRICATED PLATES BRONZE",null,"LB"]
[null,"506.1505","SHEET COPPER",null,"LB"]
[null,"506.1510","SHEET ZINC",null,"LB"]
[null,"506.2105","BEARING PADS",null,"SF"]
[null,"506.2605","BEARING PADS ELASTOMERIC NON-LAMINATED",null,"EACH"]
[null,"506.2610","BEARING PADS ELASTOMERIC LAMINATED",null,"EACH"]
[null,"506.3003","WELDED STUD SHEAR CONNECTORS 5/8X4-INCH",null,"EACH"]
[null,"506.3004","WELDED STUD SHEAR CONNECTORS 3/4X4-INCH",null,"EACH"]
[null,"506.3005","WELDED STUD SHEAR CONNECTORS 7/8X4-INCH",null,"EACH"]
[null,"506.3008","WELDED STUD SHEAR CONNECTORS 5/8X5-INCH",null,"EACH"]
[null,"506.3009","WELDED STUD SHEAR CONNECTORS 3/4X5-INCH",null,"EACH"]
[null,"506.3010","WELDED STUD SHEAR CONNECTORS 7/8X5-INCH",null,"EACH"]
[null,"506.3013","WELDED STUD SHEAR CONNECTORS 5/8X6-INCH",null,"EACH"]
[null,"506.3014","WELDED STUD SHEAR CONNECTORS 3/4X6-INCH",null,"EACH"]
[null,"506.3015","WELDED STUD SHEAR CONNECTORS 7/8X6-INCH",null,"EACH"]
[null,"506.3018","WELDED STUD SHEAR CONNECTORS 5/8X7-INCH",null,"EACH"]
[null,"506.3019","WELDED STUD SHEAR CONNECTORS 3/4X7-INCH",null,"EACH"]
[null,"506.3020","WELDED STUD SHEAR CONNECTORS 7/8X7-INCH",null,"EACH"]
[null,"506.3023","WELDED STUD SHEAR CONNECTORS 5/8X8-INCH",null,"EACH"]
[null,"506.3024","WELDED STUD SHEAR CONNECTORS 3/4X8-INCH",null,"EACH"]
[null,"506.3025","WELDED STUD SHEAR CONNECTORS 7/8X8-INCH",null,"EACH"]
[null,"506.3030","WELDED STUD SHEAR CONNECTORS 7/8X9-INCH",null,"EACH"]
[null,"506.3035","WELDED STUD SHEAR CONNECTORS 7/8X10-INCH",null,"EACH"]
[null,"506.4000","STEEL DIAPHRAGMS (STRUCTURE)",null,"EACH"]
[null,"506.5000","BEARING ASSEMBLIES FIXED (STRUCTURE)",null,"EACH"]
[null,"506.6000","BEARING ASSEMBLIES EXPANSION (STRUCTURE)",null,"EACH"]
[null,"506.7000.S","BEARING REPLACEMENT (STRUCTURE)",null,"EACH"]
[null,"506.7050.S","REMOVING BEARINGS (STRUCTURE)",null,"EACH"]
[null,"506.7060.S","BRIDGE JACKING (STRUCTURE)",null,"LS"]
[null,"506.7070.S","HINGE REPLACEMENT",null,"EACH"]
[null,"506.8000.S","PREFABRICATED STEEL TRUSS PEDESTRIAN BRIDGE (STRUCTURE)",null,"LS"]
[null,"506.8005.S","PREFABRICATED STEEL TRUSS PEDESTRIAN BRIDGE LRFD (STRUCTURE)",null,"LS"]
[null,"507.0200","TREATED LUMBER AND TIMBER",null,"MBM"]
[null,"509.0200","PREPARATION APPROACHES",null,"SY"]
[null,"509.0301","PREPARATION DECKS TYPE 1",null,"SY"]
[null,"509.0302","PREPARATION DECKS TYPE 2",null,"SY"]
[null,"509.0500","CLEANING DECKS",null,"SY"]
[null,"509.0600","CLEANING APPROACHES",null,"SY"]
[null,"509.1000","JOINT REPAIR",null,"SY"]
[null,"509.1200","CURB REPAIR",null,"LF"]
[null,"509.1500","CONCRETE SURFACE REPAIR",null,"SF"]
[null,"509.2000","FULL-DEPTH DECK REPAIR",null,"SY"]
[null,"509.2500","CONCRETE MASONRY OVERLAY DECKS",null,"CY"]
[null,"509.2600","CONCRETE MASONRY OVERLAY APPROACHES",null,"CY"]
[null,"509.5100.S","POLYMER OVERLAY",null,"SY"]
[null,"509.9005.S","REMOVING CONCRETE MASONRY DECK OVERLAY (STRUCTURE)",null,"SY"]
[null,"509.9010.S","REMOVING ASPHALTIC CONCRETE DECK OVERLAY (STRUCTURE)",null,"SY"]
[null,"509.9020.S","EPOXY CRACK SEALING",null,"LF"]
[null,"509.9025.S","EPOXY INJECTION CRACK REPAIR",null,"LF"]
[null,"509.9026.S","CORED HOLES 2-INCH DIAMETER",null,"EACH"]
[null,"509.9050.S","CLEANING PARAPETS",null,"LF"]
[null,"511.1100","TEMPORARY SHORING",null,"SF"]
[null,"511.1200","TEMPORARY SHORING (STRUCTURE)",null,"SF"]
[null,"511.1300","TEMPORARY SHORING (LOCATION)",null,"SF"]
[null,"511.2200","TEMPORARY SHORING LEFT IN PLACE (STRUCTURE)",null,"SF"]
[null,"511.2300","TEMP SHORING LEFT IN PLACE (LOCATION)",null,"SF"]
[null,"512.0500","PILING STEEL SHEET PERMANENT DELIVERED",null,"SF"]
[null,"512.0600","PILING STEEL SHEET PERMANENT DRIVEN",null,"SF"]
[null,"512.1000","PILING STEEL SHEET TEMPORARY",null,"SF"]
[null,"513.2000","RAILING PIPE (STRUCTURE)",null,"LS"]
[null,"513.2050.S","RAILING PIPE",null,"LF"]
[null,"513.4050","RAILING TUBULAR TYPE F (STRUCTURE)",null,"LS"]
[null,"513.4052","RAILING TUBULAR TYPE F-4 MODIFIED (STRUCTURE)",null,"LS"]
[null,"513.4053","RAILING TUBULAR TYPE F-5 MODIFIED (STRUCTURE)",null,"LS"]
[null,"513.4055","RAILING TUBULAR TYPE H (STRUCTURE)",null,"LS"]
[null,"513.4060","RAILING TUBULAR TYPE M (STRUCTURE)",null,"LS"]
[null,"513.4065","RAILING TUBULAR TYPE PF (STRUCTURE)",null,"LS"]
[null,"513.4080","RAILING TUBULAR SPECIAL (STRUCTURE)",null,"LS"]
[null,"513.4090","RAILING TUBULAR SCREENING (STRUCTURE)",null,"LS"]
[null,"513.6000","RAILING STEEL (STRUCTURE)",null,"LS"]
[null,"513.7005","RAILING STEEL TYPE C1 (STRUCTURE)",null,"LS"]
[null,"513.7010","RAILING STEEL TYPE C2 (STRUCTURE)",null,"LS"]
[null,"513.7015","RAILING STEEL TYPE C3 (STRUCTURE)",null,"LS"]
[null,"513.7020","RAILING STEEL TYPE C4 (STRUCTURE)",null,"LS"]
[null,"513.7025","RAILING STEEL TYPE C5 (STRUCTURE)",null,"LS"]
[null,"513.7030","RAILING STEEL TYPE C6 (STRUCTURE)",null,"LS"]
[null,"513.7050","RAILING STEEL TYPE W (STRUCTURE)",null,"LS"]
[null,"513.7090","RAILING STEEL SPECIAL (STRUCTURE)",null,"LS"]
[null,"513.9005.S","REMOVING AND RESETTING TUBULAR RAILING (STRUCTURE)",null,"LS"]
[null,"514.0445","FLOOR DRAINS TYPE GC",null,"EACH"]
[null,"514.0450","FLOOR DRAINS TYPE WF",null,"EACH"]
[null,"514.0460","FLOOR DRAINS TYPE H",null,"EACH"]
[null,"514.0900","ADJUSTING FLOOR DRAINS",null,"EACH"]
[null,"514.1000","DECK DRAINS (STRUCTURE)",null,"LS"]
[null,"514.2608","DOWNSPOUT 8-INCH",null,"LF"]
[null,"514.2625","DOWNSPOUT 6-INCH",null,"LF"]
[null,"515.4000","STEEL GRID FLOOR OPEN (INCH)",null,"SF"]
[null,"515.5000","STEEL GRID FLOOR CONCRETE FILLED (INCH)",null,"SF"]
[null,"516.0100","DAMPPROOFING",null,"SY"]
[null,"516.0500","RUBBERIZED MEMBRANE WATERPROOFING",null,"SY"]
[null,"516.0600.S","SHEET MEMBRANE WATERPROOFING",null,"SY"]
[null,"516.0610.S","SHEET MEMBRANE WATERPROOFING FOR TOP SLAB (STRUCTURE)",null,"SY"]
[null,"517.0600","PAINTING EPOXY SYSTEM (STRUCTURE)",null,"LS"]
[null,"517.0650.S","PAINTING POLYSILOXANE SYSTEM (STRUCTURE)",null,"LS"]
[null,"517.0700.S","PAINTING VINYL SYSTEM (STRUCTURE)",null,"LS"]
[null,"517.0900.S","PREPARATION AND COATING OF TOP FLANGES (STRUCTURE)",null,"LS"]
[null,"517.1000.S","STRUCTURE REPAINTING ORGANIC ZINC RICH SYSTEM (STRUCTURE)",null,"LS"]
[null,"517.1010.S","CONCRETE STAINING (STRUCTURE)",null,"SF"]
[null,"517.1015.S","CONCRETE STAINING MULTI-COLOR (STRUCTURE)",null,"SF"]
[null,"517.1050.S","ARCHITECTURAL SURFACE TREATMENT (STRUCTURE)",null,"SF"]
[null,"517.1800.S","STRUCTURE REPAINTING RECYCLED ABRASIVE (STRUCTURE)",null,"LS"]
[null,"517.2000.S","PAINTING WARRANTED (STRUCTURE)",null,"LS"]
[null,"517.3000.S","STRUCTURE OVERCOATING CLEANING AND PRIMING (STRUCTURE)",null,"LS"]
[null,"517.4000.S","CONTAINMENT AND COLLECTION OF WASTE MATERIALS (STRUCTURE)",null,"LS"]
[null,"517.4500.S","NEGATIVE PRESSURE CONTAINMENT AND COLLECTION OF WASTE MATERIALS (STRUCTURE)",null,"LS"]
[null,"517.6001.S","PORTABLE DECONTAMINATION FACILITY",null,"EACH"]
[null,"518.0100","RUBBLE MASONRY MORTAR",null,"CY"]
[null,"518.0200","RUBBLE MASONRY DRY",null,"CY"]
[null,"520.0112","CULVERT PIPE CLASS III 12-INCH",null,"LF"]
[null,"520.0115","CULVERT PIPE CLASS III 15-INCH",null,"LF"]
[null,"520.0118","CULVERT PIPE CLASS III 18-INCH",null,"LF"]
[null,"520.0121","CULVERT PIPE CLASS III 21-INCH",null,"LF"]
[null,"520.0124","CULVERT PIPE CLASS III 24-INCH",null,"LF"]
[null,"520.0130","CULVERT PIPE CLASS III 30-INCH",null,"LF"]
[null,"520.0136","CULVERT PIPE CLASS III 36-INCH",null,"LF"]
[null,"520.0142","CULVERT PIPE CLASS III 42-INCH",null,"LF"]
[null,"520.0148","CULVERT PIPE CLASS III 48-INCH",null,"LF"]
[null,"520.0154","CULVERT PIPE CLASS III 54-INCH",null,"LF"]
[null,"520.0160","CULVERT PIPE CLASS III 60-INCH",null,"LF"]
[null,"520.0172","CULVERT PIPE CLASS III 72-INCH",null,"LF"]
[null,"520.0184","CULVERT PIPE CLASS III 84-INCH",null,"LF"]
[null,"520.0312","CULVERT PIPE CLASS IV 12-INCH",null,"LF"]
[null,"520.0315","CULVERT PIPE CLASS IV 15-INCH",null,"LF"]
[null,"520.0318","CULVERT PIPE CLASS IV 18-INCH",null,"LF"]
[null,"520.0321","CULVERT PIPE CLASS IV 21-INCH",null,"LF"]
[null,"520.0324","CULVERT PIPE CLASS IV 24-INCH",null,"LF"]
[null,"520.0330","CULVERT PIPE CLASS IV 30-INCH",null,"LF"]
[null,"520.0336","CULVERT PIPE CLASS IV 36-INCH",null,"LF"]
[null,"520.0342","CULVERT PIPE CLASS IV 42-INCH",null,"LF"]
[null,"520.0348","CULVERT PIPE CLASS IV 48-INCH",null,"LF"]
[null,"520.0354","CULVERT PIPE CLASS IV 54-INCH",null,"LF"]
[null,"520.0360","CULVERT PIPE CLASS IV 60-INCH",null,"LF"]
[null,"520.0372","CULVERT PIPE CLASS IV 72-INCH",null,"LF"]
[null,"520.0384","CULVERT PIPE CLASS IV 84-INCH",null,"LF"]
[null,"520.0612","CULVERT PIPE CLASS V 12-INCH",null,"LF"]
[null,"520.0615","CULVERT PIPE CLASS V 15-INCH",null,"LF"]
[null,"520.0618","CULVERT PIPE CLASS V 18-INCH",null,"LF"]
[null,"520.0621","CULVERT PIPE CLASS V 21-INCH",null,"LF"]
[null,"520.0624","CULVERT PIPE CLASS V 24-INCH",null,"LF"]
[null,"520.0630","CULVERT PIPE CLASS V 30-INCH",null,"LF"]
[null,"520.0636","CULVERT PIPE CLASS V 36-INCH",null,"LF"]
[null,"520.0642","CULVERT PIPE CLASS V 42-INCH",null,"LF"]
[null,"520.0648","CULVERT PIPE CLASS V 48-INCH",null,"LF"]
[null,"520.0654","CULVERT PIPE CLASS V 54-INCH",null,"LF"]
[null,"520.0660","CULVERT PIPE CLASS V 60-INCH",null,"LF"]
[null,"520.0672","CULVERT PIPE CLASS V 72-INCH",null,"LF"]
[null,"520.0684","CULVERT PIPE CLASS V 84-INCH",null,"LF"]
[null,"520.1012","APRON ENDWALLS FOR CULVERT PIPE 12-INCH",null,"EACH"]
[null,"520.1015","APRON ENDWALLS FOR CULVERT PIPE 15-INCH",null,"EACH"]
[null,"520.1018","APRON ENDWALLS FOR CULVERT PIPE 18-INCH",null,"EACH"]
[null,"520.1021","APRON ENDWALLS FOR CULVERT PIPE 21-INCH",null,"EACH"]
[null,"520.1024","APRON ENDWALLS FOR CULVERT PIPE 24-INCH",null,"EACH"]
[null,"520.1030","APRON ENDWALLS FOR CULVERT PIPE 30-INCH",null,"EACH"]
[null,"520.1036","APRON ENDWALLS FOR CULVERT PIPE 36-INCH",null,"EACH"]
[null,"520.1042","APRON ENDWALLS FOR CULVERT PIPE 42-INCH",null,"EACH"]
[null,"520.1048","APRON ENDWALLS FOR CULVERT PIPE 48-INCH",null,"EACH"]
[null,"520.1054","APRON ENDWALLS FOR CULVERT PIPE 54-INCH",null,"EACH"]
[null,"520.1060","APRON ENDWALLS FOR CULVERT PIPE 60-INCH",null,"EACH"]
[null,"520.1072","APRON ENDWALLS FOR CULVERT PIPE 72-INCH",null,"EACH"]
[null,"520.1084","APRON ENDWALLS FOR CULVERT PIPE 84-INCH",null,"EACH"]
[null,"520.4012","CULVERT PIPE TEMPORARY 12-INCH",null,"LF"]
[null,"520.4015","CULVERT PIPE TEMPORARY 15-INCH",null,"LF"]
[null,"520.4018","CULVERT PIPE TEMPORARY 18-INCH",null,"LF"]
[null,"520.4021","CULVERT PIPE TEMPORARY 21-INCH",null,"LF"]
[null,"520.4024","CULVERT PIPE TEMPORARY 24-INCH",null,"LF"]
[null,"520.4030","CULVERT PIPE TEMPORARY 30-INCH",null,"LF"]
[null,"520.4036","CULVERT PIPE TEMPORARY 36-INCH",null,"LF"]
[null,"520.4042","CULVERT PIPE TEMPORARY 42-INCH",null,"LF"]
[null,"520.4048","CULVERT PIPE TEMPORARY 48-INCH",null,"LF"]
[null,"520.4054","CULVERT PIPE TEMPORARY 54-INCH",null,"LF"]
[null,"520.4060","CULVERT PIPE TEMPORARY 60-INCH",null,"LF"]
[null,"520.4072","CULVERT PIPE TEMPORARY 72-INCH",null,"LF"]
[null,"520.4084","CULVERT PIPE TEMPORARY 84-INCH",null,"LF"]
[null,"520.5000","PIPE CATTLE PASS",null,"LF"]
[null,"520.7000","CLEANING CULVERT PIPES",null,"EACH"]
[null,"520.8000","CONCRETE COLLARS FOR PIPE",null,"EACH"]
[null,"520.9700.S","CULVERT PIPE LINERS (SIZE)",null,"LF"]
[null,"520.9750.S","CLEANING CULVERT PIPES FOR LINER VERIFICATION",null,"EACH"]
[null,"521.0112","CULVERT PIPE CORRUGATED STEEL 12-INCH",null,"LF"]
[null,"521.0115","CULVERT PIPE CORRUGATED STEEL 15-INCH",null,"LF"]
[null,"521.0118","CULVERT PIPE CORRUGATED STEEL 18-INCH",null,"LF"]
[null,"521.0121","CULVERT PIPE CORRUGATED STEEL 21-INCH",null,"LF"]
[null,"521.0124","CULVERT PIPE CORRUGATED STEEL 24-INCH",null,"LF"]
[null,"521.0130","CULVERT PIPE CORRUGATED STEEL 30-INCH",null,"LF"]
[null,"521.0136","CULVERT PIPE CORRUGATED STEEL 36-INCH",null,"LF"]
[null,"521.0142","CULVERT PIPE CORRUGATED STEEL 42-INCH",null,"LF"]
[null,"521.0148","CULVERT PIPE CORRUGATED STEEL 48-INCH",null,"LF"]
[null,"521.0154","CULVERT PIPE CORRUGATED STEEL 54-INCH",null,"LF"]
[null,"521.0160","CULVERT PIPE CORRUGATED STEEL 60-INCH",null,"LF"]
[null,"521.0172","CULVERT PIPE CORRUGATED STEEL 72-INCH",null,"LF"]
[null,"521.0184","CULVERT PIPE CORRUGATED STEEL 84-INCH",null,"LF"]
[null,"521.0196","CULVERT PIPE CORRUGATED STEEL 96-INCH",null,"LF"]
[null,"521.0336","APRON ENDWALLS FOR CULVERT PIPE SLOPED CROSS DRAINS STEEL 36-INCH 4 TO 1",null,"EACH"]
[null,"521.0342","APRON ENDWALLS FOR CULVERT PIPE SLOPED CROSS DRAINS STEEL 42-INCH 4 TO 1",null,"EACH"]
[null,"521.0348","APRON ENDWALLS FOR CULVERT PIPE SLOPED CROSS DRAINS STEEL 48-INCH 4 TO 1",null,"EACH"]
[null,"521.0354","APRON ENDWALLS FOR CULVERT PIPE SLOPED CROSS DRAINS STEEL 54-INCH 4 TO 1",null,"EACH"]
[null,"521.0360","APRON ENDWALLS FOR CULVERT PIPE SLOPED CROSS DRAINS STEEL 60-INCH 4 TO 1",null,"EACH"]
[null,"521.0436","APRON ENDWALLS FOR CULVERT PIPE SLOPED CROSS DRAINS STEEL 36-INCH 6 TO 1",null,"EACH"]
[null,"521.0442","APRON ENDWALLS FOR CULVERT PIPE SLOPED CROSS DRAINS STEEL 42-INCH 6 TO 1",null,"EACH"]
[null,"521.0448","APRON ENDWALLS FOR CULVERT PIPE SLOPED CROSS DRAINS STEEL 48-INCH 6 TO 1",null,"EACH"]
[null,"521.0454","APRON ENDWALLS FOR CULVERT PIPE SLOPED CROSS DRAINS STEEL 54-INCH 6 TO 1",null,"EACH"]
[null,"521.0460","APRON ENDWALLS FOR CULVERT PIPE SLOPED CROSS DRAINS STEEL 60-INCH 6 TO 1",null,"EACH"]
[null,"521.0535","APRON ENDWALLS FOR PIPE ARCH SLOPED CROSS DRAINS STEEL 35X24-INCH 4 TO 1",null,"EACH"]
[null,"521.0542","APRON ENDWALLS FOR PIPE ARCH SLOPED CROSS DRAINS STEEL 42X29-INCH 4 TO 1",null,"EACH"]
[null,"521.0549","APRON ENDWALLS FOR PIPE ARCH SLOPED CROSS DRAINS STEEL 49X33-INCH 4 TO 1",null,"EACH"]
[null,"521.0557","APRON ENDWALLS FOR PIPE ARCH SLOPED CROSS DRAINS STEEL 57X38-INCH 4 TO 1",null,"EACH"]
[null,"521.0564","APRON ENDWALLS FOR PIPE ARCH SLOPED CROSS DRAINS STEEL 64X43-INCH 4 TO 1",null,"EACH"]
[null,"521.0571","APRON ENDWALLS FOR PIPE ARCH SLOPED CROSS DRAINS STEEL 71X47-INCH 4 TO 1",null,"EACH"]
[null,"521.0635","APRON ENDWALLS FOR PIPE ARCH SLOPED CROSS DRAINS STEEL 35X24-INCH 6 TO 1",null,"EACH"]
[null,"521.0642","APRON ENDWALLS FOR PIPE ARCH SLOPED CROSS DRAINS STEEL 42X29-INCH 6 TO 1",null,"EACH"]
[null,"521.0649","APRON ENDWALLS FOR PIPE ARCH SLOPED CROSS DRAINS STEEL 49X33-INCH 6 TO 1",null,"EACH"]
[null,"521.0657","APRON ENDWALLS FOR PIPE ARCH SLOPED CROSS DRAINS STEEL 57X38-INCH 6 TO 1",null,"EACH"]
[null,"521.0664","APRON ENDWALLS FOR PIPE ARCH SLOPED CROSS DRAINS STEEL 64X43-INCH 6 TO 1",null,"EACH"]
[null,"521.0671","APRON ENDWALLS FOR PIPE ARCH SLOPED CROSS DRAINS STEEL 71X47-INCH 6 TO 1",null,"EACH"]
[null,"521.0717","PIPE ARCH CORRUGATED STEEL 17X13-INCH",null,"LF"]
[null,"521.0721","PIPE ARCH CORRUGATED STEEL 21X15-INCH",null,"LF"]
[null,"521.0724","PIPE ARCH CORRUGATED STEEL 24X18-INCH",null,"LF"]
[null,"521.0728","PIPE ARCH CORRUGATED STEEL 28X20-INCH",null,"LF"]
[null,"521.0735","PIPE ARCH CORRUGATED STEEL 35X24-INCH",null,"LF"]
[null,"521.0742","PIPE ARCH CORRUGATED STEEL 42X29-INCH",null,"LF"]
[null,"521.0749","PIPE ARCH CORRUGATED STEEL 49X33-INCH",null,"LF"]
[null,"521.0757","PIPE ARCH CORRUGATED STEEL 57X38-INCH",null,"LF"]
[null,"521.0764","PIPE ARCH CORRUGATED STEEL 64X43-INCH",null,"LF"]
[null,"521.0771","PIPE ARCH CORRUGATED STEEL 71X47-INCH",null,"LF"]
[null,"521.0777","PIPE ARCH CORRUGATED STEEL 77X52-INCH",null,"LF"]
[null,"521.0783","PIPE ARCH CORRUGATED STEEL 83X57-INCH",null,"LF"]
[null,"521.1012","APRON ENDWALLS FOR CULVERT PIPE STEEL 12-INCH",null,"EACH"]
[null,"521.1015","APRON ENDWALLS FOR CULVERT PIPE STEEL 15-INCH",null,"EACH"]
[null,"521.1018","APRON ENDWALLS FOR CULVERT PIPE STEEL 18-INCH",null,"EACH"]
[null,"521.1021","APRON ENDWALLS FOR CULVERT PIPE STEEL 21-INCH",null,"EACH"]
[null,"521.1024","APRON ENDWALLS FOR CULVERT PIPE STEEL 24-INCH",null,"EACH"]
[null,"521.1030","APRON ENDWALLS FOR CULVERT PIPE STEEL 30-INCH",null,"EACH"]
[null,"521.1036","APRON ENDWALLS FOR CULVERT PIPE STEEL 36-INCH",null,"EACH"]
[null,"521.1042","APRON ENDWALLS FOR CULVERT PIPE STEEL 42-INCH",null,"EACH"]
[null,"521.1048","APRON ENDWALLS FOR CULVERT PIPE STEEL 48-INCH",null,"EACH"]
[null,"521.1054","APRON ENDWALLS FOR CULVERT PIPE STEEL 54-INCH",null,"EACH"]
[null,"521.1060","APRON ENDWALLS FOR CULVERT PIPE STEEL 60-INCH",null,"EACH"]
[null,"521.1072","APRON ENDWALLS FOR CULVERT PIPE STEEL 72-INCH",null,"EACH"]
[null,"521.1084","APRON ENDWALLS FOR CULVERT PIPE STEEL 84-INCH",null,"EACH"]
[null,"521.1217","APRON ENDWALLS FOR PIPE ARCH STEEL 17X13-INCH",null,"EACH"]
[null,"521.1221","APRON ENDWALLS FOR PIPE ARCH STEEL 21X15-INCH",null,"EACH"]
[null,"521.1224","APRON ENDWALLS FOR PIPE ARCH STEEL 24X18-INCH",null,"EACH"]
[null,"521.1228","APRON ENDWALLS FOR PIPE ARCH STEEL 28X20-INCH",null,"EACH"]
[null,"521.1235","APRON ENDWALLS FOR PIPE ARCH STEEL 35X24-INCH",null,"EACH"]
[null,"521.1242","APRON ENDWALLS FOR PIPE ARCH STEEL 42X29-INCH",null,"EACH"]
[null,"521.1249","APRON ENDWALLS FOR PIPE ARCH STEEL 49X33-INCH",null,"EACH"]
[null,"521.1257","APRON ENDWALLS FOR PIPE ARCH STEEL 57X38-INCH",null,"EACH"]
[null,"521.1264","APRON ENDWALLS FOR PIPE ARCH STEEL 64X43-INCH",null,"EACH"]
[null,"521.1271","APRON ENDWALLS FOR PIPE ARCH STEEL 71X47-INCH",null,"EACH"]
[null,"521.1277","APRON ENDWALLS FOR PIPE ARCH STEEL 77X52-INCH",null,"EACH"]
[null,"521.1283","APRON ENDWALLS FOR PIPE ARCH STEEL 83X57-INCH",null,"EACH"]
[null,"521.1502","APRON ENDWALLS FOR CULVERT PIPE SLOPED SIDE DRAINS STEEL 15-INCH 4 TO 1",null,"EACH"]
[null,"521.1503","APRON ENDWALLS FOR CULVERT PIPE SLOPED SIDE DRAINS STELL 18-INCH 4 TO 1",null,"EACH"]
[null,"521.1504","APRON ENDWALLS FOR CULVERT PIPE SLOPED SIDE DRAINS STEEL 21-INCH 4 TO 1",null,"EACH"]
[null,"521.1505","APRON ENDWALLS FOR CULVERT PIPE SLOPED SIDE DRAINS STEEL 24-INCH 4 TO 1",null,"EACH"]
[null,"521.1506","APRON ENDWALLS FOR CULVERT PIPE SLOPED SIDE DRAINS STEEL 30-INCH 4 TO 1",null,"EACH"]
[null,"521.1507","APRON ENDWALLS FOR CULVERT PIPE SLOPED SIDE DRAINS STEEL 36-INCH 4 TO 1",null,"EACH"]
[null,"521.1508","APRON ENDWALLS FOR CULVERT PIPE SLOPED SIDE DRAINS STEEL 42-INCH 4 TO 1",null,"EACH"]
[null,"521.1509","APRON ENDWALLS FOR CULVERT PIPE SLOPED SIDE DRAINS STEEL 48-INCH 4 TO 1",null,"EACH"]
[null,"521.1510","APRON ENDWALLS FOR CULVERT PIPE SLOPED SIDE DRAINS STEEL 54-INCH 4 TO 1",null,"EACH"]
[null,"521.1511","APRON ENDWALLS FOR CULVERT PIPE SLOPED SIDE DRAINS STEEL 60-INCH 4 TO 1",null,"EACH"]
[null,"521.1515","APRON ENDWALLS FOR CULVERT PIPE SLOPED SIDE DRAINS STEEL 15-INCH 6 TO 1",null,"EACH"]
[null,"521.1518","APRON ENDWALLS FOR CULVERT PIPE SLOPED SIDE DRAINS STEEL 18-INCH 6 TO 1",null,"EACH"]
[null,"521.1521","APRON ENDWALLS FOR CULVERT PIPE SLOPED SIDE DRAINS STEEL 21-INCH 6 TO 1",null,"EACH"]
[null,"521.1524","APRON ENDWALLS FOR CULVERT PIPE SLOPED SIDE DRAINS STEEL 24-INCH 6 TO 1",null,"EACH"]
[null,"521.1530","APRON ENDWALLS FOR CULVERT PIPE SLOPED SIDE DRAINS STEEL 30-INCH 6 TO 1",null,"EACH"]
[null,"521.1536","APRON ENDWALLS FOR CULVERT PIPE SLOPED SIDE DRAINS STEEL 36-INCH 6 TO 1",null,"EACH"]
[null,"521.1542","APRON ENDWALLS FOR CULVERT PIPE SLOPED SIDE DRAINS STEEL 42-INCH 6 TO 1",null,"EACH"]
[null,"521.1548","APRON ENDWALLS FOR CULVERT PIPE SLOPED SIDE DRAINS STEEL 48-INCH 6 TO 1",null,"EACH"]
[null,"521.1554","APRON ENDWALLS FOR CULVERT PIPE SLOPED SIDE DRAINS STEEL 54-INCH 6 TO 1",null,"EACH"]
[null,"521.1560","APRON ENDWALLS FOR CULVERT PIPE SLOPED SIDE DRAINS STEEL 60-INCH 6 TO 1",null,"EACH"]
[null,"521.1615","APRON ENDWALLS FOR CULVERT PIPE SLOPED SIDE DRAINS STEEL 15-INCH 10 TO 1",null,"EACH"]
[null,"521.1618","APRON ENDWALLS FOR CULVERT PIPE SLOPED SIDE DRAINS STEEL 18-INCH 10 TO 1",null,"EACH"]
[null,"521.1621","APRON ENDWALLS FOR CULVERT PIPE SLOPED SIDE DRAINS STEEL 21-INCH 10 TO 1",null,"EACH"]
[null,"521.1624","APRON ENDWALLS FOR CULVERT PIPE SLOPED SIDE DRAINS STEEL 24-INCH 10 TO 1",null,"EACH"]
[null,"521.1630","APRON ENDWALLS FOR CULVERT PIPE SLOPED SIDE DRAINS STEEL 30-INCH 10 TO 1",null,"EACH"]
[null,"521.1636","APRON ENDWALLS FOR CULVERT PIPE SLOPED SIDE DRAINS STEEL 36-INCH 10 TO 1",null,"EACH"]
[null,"521.1704","APRON ENDWALLS FOR PIPE ARCH SLOPED SIDE DRAINS STEEL 17X13-INCH 4 TO 1",null,"EACH"]
[null,"521.1705","APRON ENDWALLS FOR PIPE ARCH SLOPED SIDE DRAINS STEEL 21X15-INCH 4 TO 1",null,"EACH"]
[null,"521.1706","APRON ENDWALLS FOR PIPE ARCH SLOPED SIDE DRAINS STEEL 24X18-INCH 4 TO 1",null,"EACH"]
[null,"521.1707","APRON ENDWALLS FOR PIPE ARCH SLOPED SIDE DRAINS STELL 28X20-INCH 4 TO 1",null,"EACH"]
[null,"521.1708","APRON ENDWALLS FOR PIPE ARCH SLOPED SIDE DRAINS STEEL 35X24-INCH 4 TO 1",null,"EACH"]
[null,"521.1709","APRON ENDWALLS FOR PIPE ARCH SLOPED SIDE DRAINS STEEL 42X29-INCH 4 TO 1",null,"EACH"]
[null,"521.1710","APRON ENDWALLS FOR PIPW ARCH SLOPED SIDE DRAINS STEEL 49X33-INCH 4 TO 1",null,"EACH"]
[null,"521.1711","APRON ENDWALLS FOR PIPE ARCH SLOPED SIDE DRAINS STEEL 57X38-INCH 4 TO 1",null,"EACH"]
[null,"521.1712","APRON ENDWALLS FOR PIPE ARCH SLOPED SIDE DRIANS STEEL 64X43-INCH 4 TO 1",null,"EACH"]
[null,"521.1717","APRON ENDWALLS FOR PIPE ARCH SLOPED SIDE DRAINS STEEL 17X13-INCH 6 TO 1",null,"EACH"]
[null,"521.1721","APRON ENDWALLS FOR PIPE ARCH SLOPED SIDE DRAINS STEEL 21X15-INCH 6 TO 1",null,"EACH"]
[null,"521.1724","APRON ENDWALLS FOR PIPE ARCH SLOPED SIDE DRAINS STEEL 24X18-INCH 6 TO 1",null,"EACH"]
[null,"521.1728","APRON ENDWALLS FOR PIPE ARCH SLOPED SIDE DRAINS STEEL 28X20-INCH 6 TO 1",null,"EACH"]
[null,"521.1735","APRON ENDWALLS FOR PIPE ARCH SLOPED SIDE DRAINS STEEL 35X24-INCH 6 TO 1",null,"EACH"]
[null,"521.1742","APRON ENDWALLS FOR PIPE ARCH SLOPED SIDE DRAINS STEEL 42X29-INCH 6 TO 1",null,"EACH"]
[null,"521.1749","APRON ENDWALLS FOR PIPE ARCH SLOPED SIDE DRAINS STEEL 49X33-INCH 6 TO 1",null,"EACH"]
[null,"521.1757","APRON ENDWALLS FOR PIPE ARCH SLOPED SIDE DRAINS STEEL 57X38-INCH 6 TO 1",null,"EACH"]
[null,"521.1764","APRON ENDWALLS FOR PIPE ARCH SLOPED SIDE DRAINS STEEL 64X43-INCH 6 TO 1",null,"EACH"]
[null,"521.1817","APRON ENDWALLS FOR PIPE ARCH SLOPED SIDE DRAINS STEEL 17X13-INCH 10 TO 1",null,"EACH"]
[null,"521.1821","APRON ENDWALLS FOR PIPE ARCH SLOPED SIDE DRAINS STEEL 21X15-INCH 10 TO 1",null,"EACH"]
[null,"521.1824","APRON ENDWALLS FOR PIPE ARCH SLOPED SIDE DRAINS STEEL 24X18-INCH 10 TO 1",null,"EACH"]
[null,"521.1828","APRON ENDWALLS FOR PIPE ARCH SLOPED SIDE DRAINS STEEL 28X20-INCH 10 TO 1",null,"EACH"]
[null,"521.1835","APRON ENDWALLS FOR PIPE ARCH SLOPED SIDE DRAINS STEEL 35X24-INCH 10 TO 1",null,"EACH"]
[null,"521.1842","APRON ENDWALLS FOR PIPE ARCH SLOPED SIDE DRAINS STEEL 42X29-INCH 10 TO 1",null,"EACH"]
[null,"521.1900","PIPE CATTLE PASS CORRUGATED STEEL",null,"LF"]
[null,"521.2005.S","SURFACE DRAIN PIPE CORRUGATED METAL SLOTTED (INCH)",null,"LF"]
[null,"522.0112","CULVERT PIPE REINFORCED CONCRETE CLASS III 12-INCH",null,"LF"]
[null,"522.0115","CULVERT PIPE REINFORCED CONCRETE CLASS III 15-INCH",null,"LF"]
[null,"522.0118","CULVERT PIPE REINFORCED CONCRETE CLASS III 18-INCH",null,"LF"]
[null,"522.0121","CULVERT PIPE REINFORCED CONCRETE CLASS III 21-INCH",null,"LF"]
[null,"522.0124","CULVERT PIPE REINFORCED CONCRETE CLASS III 24-INCH",null,"LF"]
[null,"522.0127","CULVERT PIPE REINFORCED CONCRETE CLASS III 27-INCH",null,"LF"]
[null,"522.0130","CULVERT PIPE REINFORCED CONCRETE CLASS III 30-INCH",null,"LF"]
[null,"522.0136","CULVERT PIPE REINFORCED CONCRETE CLASS III 36-INCH",null,"LF"]
[null,"522.0142","CULVERT PIPE REINFORCED CONCRETE CLASS III 42-INCH",null,"LF"]
[null,"522.0148","CULVERT PIPE REINFORCED CONCRETE CLASS III 48-INCH",null,"LF"]
[null,"522.0154","CULVERT PIPE REINFORCED CONCRETE CLASS III 54-INCH",null,"LF"]
["x","522.0160","CULVERT PIPE REINFORCED CONCRETE CLASS III 60-INCH",{"$f":"[0]!TOTAL522.0160_0010+[0]!TOTAL522.0160_0020+[0]!TOTAL522.0160_0030+[0]!TOTAL522.0160_0040+[0]!TOTAL522.0160_0050","v":70},"LF",175,{"$f":"IF(A696<>\"x\",\"\",IF(ISERROR(D696),0,IF(D696=\"\",0,IF(D696=\" \",0,IF(D696=\"<Error>\",0,F696*D696)))))","v":12250}]
[null,"522.0166","CULVERT PIPE REINFORCED CONCRETE CLASS III 66-INCH",null,"LF"]
[null,"522.0172","CULVERT PIPE REINFORCED CONCRETE CLASS III 72-INCH",null,"LF"]
[null,"522.0178","CULVERT PIPE REINFORCED CONCRETE CLASS III 78-INCH",null,"LF"]
[null,"522.0184","CULVERT PIPE REINFORCED CONCRETE CLASS III 84-INCH",null,"LF"]
[null,"522.0190","CULVERT PIPE REINFORCED CONCRETE CLASS III 90-INCH",null,"LF"]
[null,"522.0196","CULVERT PIPE REINFORCED CONCRETE CLASS III 96-INCH",null,"LF"]
[null,"522.0202","CULVERT PIPE REINFORCED CONCRETE CLASS III 102-INCH",null,"LF"]
[null,"522.0208","CULVERT PIPE REINFORCED CONCRETE CLASS III 108-INCH",null,"LF"]
[null,"522.0312","CULVERT PIPE REINFORCED CONCRETE CLASS IV 12-INCH",null,"LF"]
[null,"522.0315","CULVERT PIPE REINFORCED CONCRETE CLASS IV 15-INCH",null,"LF"]
[null,"522.0318","CULVERT PIPE REINFORCED CONCRETE CLASS IV 18-INCH",null,"LF"]
[null,"522.0321","CULVERT PIPE REINFORCED CONCRETE CLASS IV 21-INCH",null,"LF"]
[null,"522.0324","CULVERT PIPE REINFORCED CONCRETE CLASS IV 24-INCH",null,"LF"]
[null,"522.0327","CULVERT PIPE REINFORCED CONCRETE CLASS IV 27-INCH",null,"LF"]
[null,"522.0330","CULVERT PIPE REINFORCED CONCRETE CLASS IV 30-INCH",null,"LF"]
[null,"522.0336","CULVERT PIPE REINFORCED CONCRETE CLASS IV 36-INCH",null,"LF"]
[null,"522.0342","CULVERT PIPE REINFORCED CONCRETE CLASS IV 42-INCH",null,"LF"]
[null,"522.0348","CULVERT PIPE REINFORCED CONCRETE CLASS IV 48-INCH",null,"LF"]
[null,"522.0354","CULVERT PIPE REINFORCED CONCRETE CLASS IV 54-INCH",null,"LF"]
[null,"522.0360","CULVERT PIPE REINFORCED CONCRETE CLASS IV 60-INCH",null,"LF"]
[null,"522.0366","CULVERT PIPE REINFORCED CONCRETE CLASS IV 66-INCH",null,"LF"]
[null,"522.0372","CULVERT PIPE REINFORCED CONCRETE CLASS IV 72-INCH",null,"LF"]
[null,"522.0378","CULVERT PIPE REINFORCED CONCRETE CLASS IV 78-INCH",null,"LF"]
[null,"522.0384","CULVERT PIPE REINFORCED CONCRETE CLASS IV 84-INCH",null,"LF"]
[null,"522.0512","CULVERT PIPE REINFORCED CONCRETE CLASS V 12-INCH",null,"LF"]
[null,"522.0515","CULVERT PIPE REINFORCED CONCRETE CLASS V 15-INCH",null,"LF"]
[null,"522.0518","CULVERT PIPE REINFORCED CONCRETE CLASS V 18-INCH",null,"LF"]
[null,"522.0521","CULVERT PIPE REINFORCED CONCRETE CLASS V 21-INCH",null,"LF"]
[null,"522.0524","CULVERT PIPE REINFORCED CONCRETE CLASS V 24-INCH",null,"LF"]
[null,"522.0527","CULVERT PIPE REINFORCED CONCRETE CLASS V 27-INCH",null,"LF"]
[null,"522.0530","CULVERT PIPE REINFORCED CONCRETE CLASS V 30-INCH",null,"LF"]
[null,"522.0536","CULVERT PIPE REINFORCED CONCRETE CLASS V 36-INCH",null,"LF"]
[null,"522.0542","CULVERT PIPE REINFORCED CONCRETE CLASS V 42-INCH",null,"LF"]
[null,"522.0548","CULVERT PIPE REINFORCED CONCRETE CLASS V 48-INCH",null,"LF"]
[null,"522.0554","CULVERT PIPE REINFORCED CONCRETE CLASS V 54-INCH",null,"LF"]
[null,"522.0560","CULVERT PIPE REINFORCED CONCRETE CLASS V 60-INCH",null,"LF"]
[null,"522.0566","CULVERT PIPE REINFORCED CONCRETE CLASS V 66-INCH",null,"LF"]
[null,"522.0572","CULVERT PIPE REINFORCED CONCRETE CLASS V 72-INCH",null,"LF"]
[null,"522.0584","CULVERT PIPE REINFORCED CONCRETE CLASS V 84-INCH",null,"LF"]
[null,"522.1012","APRON ENDWALLS FOR CULVERT PIPE REINFORCED CONCRETE 12-INCH",null,"EACH"]
[null,"522.1015","APRON ENDWALLS FOR CULVERT PIPE REINFORCED CONCRETE 15-INCH",null,"EACH"]
[null,"522.1018","APRON ENDWALLS FOR CULVERT PIPE REINFORCED CONCRETE 18-INCH",null,"EACH"]
[null,"522.1021","APRON ENDWALLS FOR CULVERT PIPE REINFORCED CONCRETE 21-INCH",null,"EACH"]
[null,"522.1024","APRON ENDWALLS FOR CULVERT PIPE REINFORCED CONCRETE 24-INCH",null,"EACH"]
[null,"522.1027","APRON ENDWALLS FOR CULVERT PIPE REINFORCED CONCRETE 27-INCH",null,"EACH"]
[null,"522.1030","APRON ENDWALLS FOR CULVERT PIPE REINFORCED CONCRETE 30-INCH",null,"EACH"]
[null,"522.1036","APRON ENDWALLS FOR CULVERT PIPE REINFORCED CONCRETE 36-INCH",null,"EACH"]
[null,"522.1042","APRON ENDWALLS FOR CULVERT PIPE REINFORCED CONCRETE 42-INCH",null,"EACH"]
[null,"522.1048","APRON ENDWALLS FOR CULVERT PIPE REINFORCED CONCRETE 48-INCH",null,"EACH"]
[null,"522.1054","APRON ENDWALLS FOR CULVERT PIPE REINFORCED CONCRETE 54-INCH",null,"EACH"]
["x","522.1060","APRON ENDWALLS FOR CULVERT PIPE REINFORCED CONCRETE 60-INCH",{"$f":"[0]!TOTAL522.1060_0010+[0]!TOTAL522.1060_0020+[0]!TOTAL522.1060_0030+[0]!TOTAL522.1060_0040+[0]!TOTAL522.1060_0050","v":2},"EACH",2500,{"$f":"IF(A747<>\"x\",\"\",IF(ISERROR(D747),0,IF(D747=\"\",0,IF(D747=\" \",0,IF(D747=\"<Error>\",0,F747*D747)))))","v":5000}]
[null,"522.1066","APRON ENDWALLS FOR CULVERT PIPE REINFORCED CONCRETE 66-INCH",null,"EACH"]
[null,"522.1072","APRON ENDWALLS FOR CULVERT PIPE REINFORCED CONCRETE 72-INCH",null,"EACH"]
[null,"522.1084","APRON ENDWALLS FOR CULVERT PIPE REINFORCED CONCRETE 84-INCH",null,"EACH"]
[null,"522.2000","PIPE CATTLE PASS REINFORCED CONCRETE",null,"LF",null,{"$f":"IF(A751<>\"x\",\"\",IF(ISERROR(D751),0,IF(D751=\"\",0,IF(D751=\" \",0,IF(D751=\"<Error>\",0,F751*D751)))))","v":""}]
[null,"523.0114","CULVERT PIPE REINFORCED CONCRETE HORIZONTAL ELLIPTICAL CLASS HE-III 14X23-INCH",null,"LF"]
[null,"523.0119","CULVERT PIPE REINFORCED CONCRETE HORIZONTAL ELLIPTICAL CLASS HE-III 19X30-INCH",null,"LF"]
[null,"523.0124","CULVERT PIPE REINFORCED CONCRETE HORIZONTAL ELLIPTICAL CLASS HE-III 24X38-INCH",null,"LF"]
[null,"523.0129","CULVERT PIPE REINFORCED CONCRETE HORIZONTAL ELLIPTICAL CLASS HE-III 29X45-INCH",null,"LF"]
[null,"523.0134","CULVERT PIPE REINFORCED CONCRETE HORIZONTAL ELLIPTICAL CLASS HE-III 34X53-INCH",null,"LF"]
[null,"523.0138","CULVERT PIPE REINFORCED CONCRETE HORIZONTAL ELLIPTICAL CLASS HE-III 38X60-INCH",null,"LF"]
[null,"523.0143","CULVERT PIPE REINFORCED CONCRETE HORIZONTAL ELLIPTICAL CLASS HE-III 43X68-INCH",null,"LF"]
[null,"523.0148","CULVERT PIPE REINFORCED CONCRETE HORIZONTAL ELLIPTICAL CLASS HE-III 48X76-INCH",null,"LF"]
[null,"523.0153","CULVERT PIPE REINFORCED CONCRETE HORIZONTAL ELLIPTICAL CLASS HE-III 53X83-INCH",null,"LF"]
[null,"523.0158","CULVERT PIPE REINFORCED CONCRETE HORIZONTAL ELLIPTICAL CLASS HE-III 58X91-INCH",null,"LF"]
[null,"523.0163","CULVERT PIPE REINFORCED CONCRETE HORIZONTAL ELLIPTICAL CLASS HE-III 63X98-INCH",null,"LF"]
[null,"523.0168","CULVERT PIPE REINFORCED CONCRETE HORIZONTAL ELLIPTICAL CLASS HE-III 68X106-INCH",null,"LF"]
[null,"523.0414","CULVERT PIPE REINFORCED CONCRETE HORIZONTAL ELLIPTICAL CLASS HE-IV 14X23-INCH",null,"LF"]
[null,"523.0419","CULVERT PIPE REINFORCED CONCRETE HORIZONTAL ELLIPTICAL CLASS HE-IV 19X30-INCH",null,"LF"]
[null,"523.0424","CULVERT PIPE REINFORCED CONCRETE HORIZONTAL ELLIPTICAL CLASS HE-IV 24X38-INCH",null,"LF"]
[null,"523.0429","CULVERT PIPE REINFORCED CONCRETE HORIZONTAL ELLIPTICAL CLASS HE-IV 29X45-INCH",null,"LF"]
[null,"523.0434","CULVERT PIPE REINFORCED CONCRETE HORIZONTAL ELLIPTICAL CLASS HE-IV 34X53-INCH",null,"LF"]
[null,"523.0514","APRON ENDWALLS FOR CULVERT PIPE REINFORCED CONCRETE HORIZONTAL ELLIPTICAL 14X23-INCH",null,"EACH"]
[null,"523.0519","APRON ENDWALLS FOR CULVERT PIPE REINFORCED CONCRETE HORIZONTAL ELLIPTICAL 19X30-INCH",null,"EACH"]
[null,"523.0524","APRON ENDWALLS FOR CULVERT PIPE REINFORCED CONCRETE HORIZONTAL ELLIPTICAL 24X38-INCH",null,"EACH"]
[null,"523.0529","APRON ENDWALLS FOR CULVERT PIPE REINFORCED CONCRETE HORIZONTAL ELLIPTICAL 29X45-INCH",null,"EACH"]
[null,"523.0534","APRON ENDWALLS FOR CULVERT PIPE REINFORCED CONCRETE HORIZONTAL ELLIPTICAL 34X53-INCH",null,"EACH"]
[null,"523.0538","APRON ENDWALLS FOR CULVERT PIPE REINFORCED CONCRETE HORIZONTAL ELLIPTICAL 38X60-INCH",null,"EACH"]
[null,"523.0543","APRON ENDWALLS FOR CULVERT PIPE REINFORCED CONCRETE HORIZONTAL ELLIPTICAL 43X68-INCH",null,"EACH"]
[null,"523.0548","APRON ENDWALLS FOR CULVERT PIPE REINFORCED CONCRETE HORIZONTAL ELLIPTICAL 48X76-INCH",null,"EACH"]
[null,"523.0553","APRON ENDWALLS FOR CULVERT PIPE REINFORCED CONCRETE HORIZONTAL ELLIPTICAL 53X83-INCH",null,"EACH"]
[null,"523.0558","APRON ENDWALLS FOR CULVERT PIPE REINFORCED CONCRETE HORIZONTAL ELLIPTICAL 58X91-INCH",null,"EACH"]
[null,"523.0563","APRON ENDWALLS FOR CULVERT PIPE REINFORCED CONCRETE HORIZONTAL ELLIPTICAL 63X98-INCH",null,"EACH"]
[null,"523.0568","APRON ENDWALLS FOR CULVERT PIPE REINFORCED CONCRETE HORIZONTAL ELLIPTICAL 68X106-INCH",null,"EACH"]
[null,"524.0112","CULVERT PIPE SALVAGED 12-INCH",null,"LF"]
[null,"524.0115","CULVERT PIPE SALVAGED 15-INCH",null,"LF"]
[null,"524.0118","CULVERT PIPE SALVAGED 18-INCH",null,"LF"]
[null,"524.0121","CULVERT PIPE SALVAGED 21-INCH",null,"LF"]
[null,"524.0124","CULVERT PIPE SALVAGED 24-INCH",null,"LF"]
[null,"524.0127","CULVERT PIPE SALVAGED 27-INCH",null,"LF"]
[null,"524.0130","CULVERT PIPE SALVAGED 30-INCH",null,"LF"]
[null,"524.0133","CULVERT PIPE SALVAGED 33-INCH",null,"LF"]
[null,"524.0136","CULVERT PIPE SALVAGED 36-INCH",null,"LF"]
[null,"524.0142","CULVERT PIPE SALVAGED 42-INCH",null,"LF"]
[null,"524.0148","CULVERT PIPE SALVAGED 48-INCH",null,"LF"]
[null,"524.0154","CULVERT PIPE SALVAGED 54-INCH",null,"LF"]
[null,"524.0160","CULVERT PIPE SALVAGED 60-INCH",null,"LF"]
[null,"524.0166","CULVERT PIPE SALVAGED 66-INCH",null,"LF"]
[null,"524.0172","CULVERT PIPE SALVAGED 72-INCH",null,"LF"]
[null,"524.0178","CULVERT PIPE SALVAGED 78-INCH",null,"LF"]
[null,"524.0184","CULVERT PIPE SALVAGED 84-INCH",null,"LF"]
[null,"524.0190","CULVERT PIPE SALVAGED 90-INCH",null,"LF"]
[null,"524.0196","CULVERT PIPE SALVAGED 96-INCH",null,"LF"]
[null,"524.0202","CULVERT PIPE SALVAGED 102-INCH",null,"LF"]
[null,"524.0208","CULVERT PIPE SALVAGED 108-INCH",null,"LF"]
[null,"524.0612","APRON ENDWALLS FOR CULVERT PIPE SALVAGED 12-INCH",null,"EACH"]
[null,"524.0615","APRON ENDWALLS FOR CULVERT PIPE SALVAGED 15-INCH",null,"EACH"]
[null,"524.0618","APRON ENDWALLS FOR CULVERT PIPE SALVAGED 18-INCH",null,"EACH"]
[null,"524.0621","APRON ENDWALLS FOR CULVERT PIPE SALVAGED 21-INCH",null,"EACH"]
[null,"524.0624","APRON ENDWALLS FOR CULVERT PIPE SALVAGED 24-INCH",null,"EACH"]
[null,"524.0627","APRON ENDWALLS FOR CULVERT PIPE SALVAGED 27-INCH",null,"EACH"]
[null,"524.0630","APRON ENDWALLS FOR CULVERT PIPE SALVAGED 30-INCH",null,"EACH"]
[null,"524.0633","APRON ENDWALLS FOR CULVERT PIPE SALVAGED 33-INCH",null,"EACH"]
[null,"524.0636","APRON ENDWALLS FOR CULVERT PIPE SALVAGED 36-INCH",null,"EACH"]
[null,"524.0642","APRON ENDWALLS FOR CULVERT PIPE SALVAGED 42-INCH",null,"EACH"]
[null,"524.0648","APRON ENDWALLS FOR CULVERT PIPE SALVAGED 48-INCH",null,"EACH"]
[null,"524.0654","APRON ENDWALLS FOR CULVERT PIPE SALVAGED 54-INCH",null,"EACH"]
[null,"524.0660","APRON ENDWALLS FOR CULVERT PIPE SALVAGED 60-INCH",null,"EACH"]
[null,"524.0666","APRON ENDWALLS FOR CULVERT PIPE SALVAGED 66-INCH",null,"EACH"]
[null,"524.0672","APRON ENDWALLS FOR CULVERT PIPE SALVAGED 72-INCH",null,"EACH"]
[null,"524.0678","APRON ENDWALLS FOR CULVERT PIPE SALVAGED 78-INCH",null,"EACH"]
[null,"524.0684","APRON ENDWALLS FOR CULVERT PIPE SALVAGED 84-INCH",null,"EACH"]
[null,"524.0800","PIPE CATTLE PASS SALVAGED",null,"LF"]
[null,"524.0900","PIPE ARCH SALVAGED CORRUGATED STEEL (RISE X SPAN)",null,"LF"]
[null,"525.0112","CULVERT PIPE CORRUGATED ALUMINUM 12-INCH",null,"LF"]
[null,"525.0115","CULVERT PIPE CORRUGATED ALUMINUM 15-INCH",null,"LF"]
[null,"525.0118","CULVERT PIPE CORRUGATED ALUMINUM 18-INCH",null,"LF"]
[null,"525.0121","CULVERT PIPE CORRUGATED ALUMINUM 21-INCH",null,"LF"]
[null,"525.0124","CULVERT PIPE CORRUGATED ALUMINUM 24-INCH",null,"LF"]
[null,"525.0130","CULVERT PIPE CORRUGATED ALUMINUM 30-INCH",null,"LF"]
[null,"525.0136","CULVERT PIPE CORRUGATED ALUMINUM 36-INCH",null,"LF"]
[null,"525.0142","CULVERT PIPE CORRUGATED ALUMINUM 42-INCH",null,"LF"]
[null,"525.0148","CULVERT PIPE CORRUGATED ALUMINUM 48-INCH",null,"LF"]
[null,"525.0154","CULVERT PIPE CORRUGATED ALUMINUM 54-INCH",null,"LF"]
[null,"525.0160","CULVERT PIPE CORRUGATED ALUMINUM 60-INCH",null,"LF"]
[null,"525.0172","CULVERT PIPE CORRUGATED ALUMINUM 72-INCH",null,"LF"]
[null,"525.0184","CULVERT PIPE CORRUGATED ALUMINUM 84-INCH",null,"LF"]
[null,"525.0312","ALUMINUM APRON ENDWALLS FOR ALUMINUM CULVERT PIPE 12-INCH",null,"EACH"]
[null,"525.0315","ALUMINUM APRON ENDWALLS FOR ALUMINUM CULVERT PIPE 15-INCH",null,"EACH"]
[null,"525.0318","ALUMINUM APRON ENDWALLS FOR ALUMINUM CULVERT PIPE 18-INCH",null,"EACH"]
[null,"525.0321","ALUMINUM APRON ENDWALLS FOR ALUMINUM CULVERT PIPE 21-INCH",null,"EACH"]
[null,"525.0324","ALUMINUM APRON ENDWALLS FOR ALUMINUM CULVERT PIPE 24-INCH",null,"EACH"]
[null,"525.0330","ALUMINUM APRON ENDWALLS FOR ALUMINUM CULVERT PIPE 30-INCH",null,"EACH"]
[null,"525.0336","ALUMINUM APRON ENDWALLS FOR ALUMINUM CULVERT PIPE 36-INCH",null,"EACH"]
[null,"525.0342","ALUMINUM APRON ENDWALLS FOR ALUMINUM CULVERT PIPE 42-INCH",null,"EACH"]
[null,"525.0348","ALUMINUM APRON ENDWALLS FOR ALUMINUM CULVERT PIPE 48-INCH",null,"EACH"]
[null,"525.0354","ALUMINUM APRON ENDWALLS FOR ALUMINUM CULVERT PIPE 54-INCH",null,"EACH"]
[null,"525.0360","ALUMINUM APRON ENDWALLS FOR ALUMINUM CULVERT PIPE 60-INCH",null,"EACH"]
[null,"525.0372","ALUMINUM APRON ENDWALLS FOR ALUMINUM CULVERT PIPE 72-INCH",null,"EACH"]
[null,"525.0384","ALUMINUM APRON ENDWALLS FOR ALUMINUM CULVERT PIPE 84-INCH",null,"EACH"]
[null,"525.0412","STEEL APRON ENDWALLS FOR ALUMINUM CULVERT PIPE 12-INCH",null,"EACH"]
[null,"525.0415","STEEL APRON ENDWALLS FOR ALUMINUM CULVERT PIPE 15-INCH",null,"EACH"]
[null,"525.0418","STEEL APRON ENDWALLS FOR ALUMINUM CULVERT PIPE 18-INCH",null,"EACH"]
[null,"525.0421","STEEL APRON ENDWALLS FOR ALUMINUM CULVERT PIPE 21-INCH",null,"EACH"]
[null,"525.0424","STEEL APRON ENDWALLS FOR ALUMINUM CULVERT PIPE 24-INCH",null,"EACH"]
[null,"525.0430","STEEL APRON ENDWALLS FOR ALUMINUM CULVERT PIPE 30-INCH",null,"EACH"]
[null,"525.0436","STEEL APRON ENDWALLS FOR ALUMINUM CULVERT PIPE 36-INCH",null,"EACH"]
[null,"525.0442","STEEL APRON ENDWALLS FOR ALUMINUM CULVERT PIPE 42-INCH",null,"EACH"]
[null,"525.0448","STEEL APRON ENDWALLS FOR ALUMINUM CULVERT PIPE 48-INCH",null,"EACH"]
[null,"525.0454","STEEL APRON ENDWALLS FOR ALUMINUM CULVERT PIPE 54-INCH",null,"EACH"]
[null,"525.0460","STEEL APRON ENDWALLS FOR ALUMINUM CULVERT PIPE 60-INCH",null,"EACH"]
[null,"525.0472","STEEL APRON ENDWALLS FOR ALUMINUM CULVERT PIPE 72-INCH",null,"EACH"]
[null,"525.0484","STEEL APRON ENDWALLS FOR ALUMINUM CULVERT PIPE 84-INCH",null,"EACH"]
[null,"526.0100","TEMPORARY STRUCTURE (STATION)",null,"LS"]
[null,"526.0200.S","TEMPORARY PEDESTRIAN STRUCTURE (STATION)",null,"LS"]
[null,"527.0160","PIPE STRUCTURAL PLATE 60-INCH",null,"LF"]
[null,"527.0172","PIPE STRUCTURAL PLATE 72-INCH",null,"LF"]
[null,"527.0184","PIPE STRUCTURAL PLATE 84-INCH",null,"LF"]
[null,"527.0196","PIPE STRUCTURAL PLATE 96-INCH",null,"LF"]
[null,"527.0208","PIPE STRUCTURAL PLATE 108-INCH",null,"LF"]
[null,"527.0220","PIPE STRUCTURAL PLATE 120-INCH",null,"LF"]
[null,"527.0232","PIPE STRUCTURAL PLATE 132-INCH",null,"LF"]
[null,"527.0244","PIPE STRUCTURAL PLATE 144-INCH",null,"LF"]
[null,"527.0256","PIPE STRUCTURAL PLATE 156-INCH",null,"LF"]
[null,"527.0268","PIPE STRUCTURAL PLATE 168-INCH",null,"LF"]
[null,"527.0280","PIPE STRUCTURAL PLATE 180-INCH",null,"LF"]
[null,"527.0305","PIPE ARCH STRUCTURAL PLATE 6-FT SPAN",null,"LF"]
[null,"527.0310","PIPE ARCH STRUCTURAL PLATE 7-FT SPAN",null,"LF"]
[null,"527.0315","PIPE ARCH STRUCTURAL PLATE 8-FT SPAN",null,"LF"]
[null,"527.0320","PIPE ARCH STRUCTURAL PLATE 9-FT SPAN",null,"LF"]
[null,"527.0325","PIPE ARCH STRUCTURAL PLATE 10-FT SPAN",null,"LF"]
[null,"527.0330","PIPE ARCH STRUCTURAL PLATE 11-FT SPAN",null,"LF"]
[null,"527.0335","PIPE ARCH STRUCTURAL PLATE 12-FT SPAN",null,"LF"]
[null,"527.0340","PIPE ARCH STRUCTURAL PLATE 13-FT SPAN",null,"LF"]
[null,"527.0345","PIPE ARCH STRUCTURAL PLATE 14-FT SPAN",null,"LF"]
[null,"527.0350","PIPE ARCH STRUCTURAL PLATE 15-FT SPAN",null,"LF"]
[null,"527.0355","PIPE ARCH STRUCTURAL PLATE 16-FT SPAN",null,"LF"]
[null,"527.0360","PIPE ARCH STRUCTURAL PLATE 16.5-FT SPAN",null,"LF"]
[null,"528.0112","CULVERT PIPE CORRUGATED STEEL POLYMER COATED 12-INCH",null,"LF"]
[null,"528.0115","CULVERT PIPE CORRUGATED STEEL POLYMER COATED 15-INCH",null,"LF"]
[null,"528.0118","CULVERT PIPE CORRUGATED STEEL POLYMER COATED 18-INCH",null,"LF"]
[null,"528.0121","CULVERT PIPE CORRUGATED STEEL POLYMER COATED 21-INCH",null,"LF"]
[null,"528.0124","CULVERT PIPE CORRUGATED STEEL POLYMER COATED 24-INCH",null,"LF"]
[null,"528.0130","CULVERT PIPE CORRUGATED STEEL POLYMER COATED 30-INCH",null,"LF"]
[null,"528.0136","CULVERT PIPE CORRUGATED STEEL POLYMER COATED 36-INCH",null,"LF"]
[null,"528.0142","CULVERT PIPE CORRUGATED STEEL POLYMER COATED 42-INCH",null,"LF"]
[null,"528.0148","CULVERT PIPE CORRUGATED STEEL POLYMER COATED 48-INCH",null,"LF"]
[null,"528.0154","CULVERT PIPE CORRUGATED STEEL POLYMER COATED 54-INCH",null,"LF"]
[null,"528.0160","CULVERT PIPE CORRUGATED STEEL POLYMER COATED 60-INCH",null,"LF"]
[null,"528.0172","CULVERT PIPE CORRUGATED STEEL POLYMER COATED 72-INCH",null,"LF"]
[null,"528.0184","CULVERT PIPE CORRUGATED STEEL POLYMER COATED 84-INCH",null,"LF"]
[null,"528.0196","CULVERT PIPE CORRUGATED STEEL POLYMER COATED 96-INCH",null,"LF"]
[null,"528.0317","PIPE ARCH POLYMER COATED CORRUGATED STEEL 17X13-INCH",null,"LF"]
[null,"528.0321","PIPE ARCH POLYMER COATED CORRUGATED STEEL 21X15-INCH",null,"LF"]
[null,"528.0324","PIPE ARCH POLYMER COATED CORRUGATED STEEL 24X18-INCH",null,"LF"]
[null,"528.0328","PIPE ARCH POLYMER COATED CORRUGATED STEEL 28X20-INCH",null,"LF"]
[null,"528.0335","PIPE ARCH POLYMER COATED CORRUGATED STEEL 35X24-INCH",null,"LF"]
[null,"528.0342","PIPE ARCH POLYMER COATED CORRUGATED STEEL 42X29-INCH",null,"LF"]
[null,"528.0349","PIPE ARCH POLYMER COATED CORRUGATED STEEL 49X33-INCH",null,"LF"]
[null,"528.0357","PIPE ARCH POLYMER COATED CORRUGATED STEEL 57X38-INCH",null,"LF"]
[null,"528.0364","PIPE ARCH POLYMER COATED CORRUGATED STEEL 64X43-INCH",null,"LF"]
[null,"528.0371","PIPE ARCH POLYMER COATED CORRUGATED STEEL 71X47-INCH",null,"LF"]
[null,"528.0377","PIPE ARCH POLYMER COATED CORRUGATED STEEL 77X52-INCH",null,"LF"]
[null,"528.0383","PIPE ARCH POLYMER COATED CORRUGATED STEEL 83X57-INCH",null,"LF"]
[null,"529.0112","CULVERT PIPE CORRUGATED STEEL ALUMINUM COATED 12-INCH",null,"LF"]
[null,"529.0115","CULVERT PIPE CORRUGATED STEEL ALUMINUM COATED 15-INCH",null,"LF"]
[null,"529.0118","CULVERT PIPE CORRUGATED STEEL ALUMINUM COATED 18-INCH",null,"LF"]
[null,"529.0121","CULVERT PIPE CORRUGATED STEEL ALUMINUM COATED 21-INCH",null,"LF"]
[null,"529.0124","CULVERT PIPE CORRUGATED STEEL ALUMINUM COATED 24-INCH",null,"LF"]
[null,"529.0130","CULVERT PIPE CORRUGATED STEEL ALUMINUM COATED 30-INCH",null,"LF"]
[null,"529.0136","CULVERT PIPE CORRUGATED STEEL ALUMINUM COATED 36-INCH",null,"LF"]
[null,"529.0142","CULVERT PIPE CORRUGATED STEEL ALUMINUM COATED 42-INCH",null,"LF"]
[null,"529.0148","CULVERT PIPE CORRUGATED STEEL ALUMINUM COATED 48-INCH",null,"LF"]
[null,"529.0154","CULVERT PIPE CORRUGATED STEEL ALUMINUM COATED 54-INCH",null,"LF"]
[null,"529.0160","CULVERT PIPE CORRUGATED STEEL ALUMINUM COATED 60-INCH",null,"LF"]
[null,"529.0172","CULVERT PIPE CORRUGATED STEEL ALUMINUM COATED 72-INCH",null,"LF"]
[null,"529.0184","CULVERT PIPE CORRUGATED STEEL ALUMINUM COATED 84-INCH",null,"LF"]
[null,"529.0196","CULVERT PIPE CORRUGATED STEEL ALUMINUM COATED 96-INCH",null,"LF"]
[null,"529.0317","PIPE ARCH CORRUGATED STEEL ALUMINUM COATED 17X13-INCH",null,"LF"]
[null,"529.0321","PIPE ARCH CORRUGATED STEEL ALUMINUM COATED 21X15-INCH",null,"LF"]
[null,"529.0324","PIPE ARCH CORRUGATED STEEL ALUMINUM COATED 24X18-INCH",null,"LF"]
[null,"529.0328","PIPE ARCH CORRUGATED STEEL ALUMINUM COATED 28X20-INCH",null,"LF"]
[null,"529.0335","PIPE ARCH CORRUGATED STEEL ALUMINUM COATED 35X24-INCH",null,"LF"]
[null,"529.0342","PIPE ARCH CORRUGATED STEEL ALUMINUM COATED 42X29-INCH",null,"LF"]
[null,"529.0349","PIPE ARCH CORRUGATED STEEL ALUMINUM COATED 49X33-INCH",null,"LF"]
[null,"529.0357","PIPE ARCH CORRUGATED STEEL ALUMINUM COATED 57X38-INCH",null,"LF"]
[null,"529.0364","PIPE ARCH CORRUGATED STEEL ALUMINUM COATED 64X43-INCH",null,"LF"]
[null,"529.0371","PIPE ARCH CORRUGATED STEEL ALUMINUM COATED 71X47-INCH",null,"LF"]
[null,"529.0377","PIPE ARCH CORRUGATED STEEL ALUMINUM COATED 77X52-INCH",null,"LF"]
[null,"529.0383","PIPE ARCH CORRUGATED STEEL ALUMINUM COATED 83X57-INCH",null,"LF"]
[null,"530.0112","CULVERT PIPE CORRUGATED POLYETHYLENE 12-INCH",null,"LF"]
[null,"530.0115","CULVERT PIPE CORRUGATED POLYETHYLENE 15-INCH",null,"LF"]
[null,"530.0118","CULVERT PIPE CORRUGATED POLYETHYLENE 18-INCH",null,"LF"]
[null,"530.0124","CULVERT PIPE CORRUGATED POLYETHYLENE 24-INCH",null,"LF"]
[null,"530.0130","CULVERT PIPE CORRUGATED POLYETHYLENE 30-INCH",null,"LF"]
[null,"530.0136","CULVERT PIPE CORRUGATED POLYETHYLENE 36-INCH",null,"LF"]
[null,"531.0200.S","NOISE BARRIERS SINGLE-SIDED SOUND ABSORPTIVE (STRUCTURE)",null,"SF"]
[null,"531.0300.S","NOISE BARRIERS DOUBLE-SIDED SOUND ABSORPTIVE (STRUCTURE)",null,"SF"]
[null,"531.0400.S","NOISE BARRIERS NON-ABSORPTIVE (STRUCTURE)",null,"SF"]
[null,"532.0200.S","WALL MODULAR BLOCK GRAVITY",null,"SF"]
[null,"532.0201.S","WALL MODULAR BLOCK GRAVITY LRFD",null,"SF"]
[null,"532.0225.S","WALL MODULAR BLOCK GRAVITY LANDSCAPE",null,"SF"]
[null,"532.0300.S","WALL MODULAR BLOCK MECHANICALLY STABILIZED EARTH",null,"SF"]
[null,"532.0301.S","WALL MODULAR BLOCK MECHANICALLY STABILIZED EARTH LRFD",null,"SF"]
[null,"532.0500.S","WALL CONCRETE PANEL MECHANICALLY STABILIZED EARTH",null,"SF"]
[null,"532.0501.S","WALL CONCRETE PANEL MECHANICALLY STABILIZED EARTH LRFD",null,"SF"]
[null,"532.0600.S","WALL CIP FACING MECHANICALLY STABILIZED EARTH",null,"SF"]
[null,"532.0601.S","WALL CIP FACING MECHANICALLY STABILIZED EARTH LRFD",null,"SF"]
[null,"532.0700.S","WALL WIRE FACED MECHANICALLY STABILIZED EARTH",null,"SF"]
[null,"532.0701.S","WALL WIRE FACED MECHANICALLY STABILIZED EARTH LRFD",null,"SF"]
[null,"532.0750.S","TEMPORARY WALL WIRE FACED MECHANICALLY STABILIZED EARTH",null,"SF"]
[null,"532.0751.S","TEMPORARY WALL WIRE FACED MECHANICALLY STABILIZED EARTH LRFD",null,"SF"]
[null,"532.0800.S","WALL GABION",null,"CY"]
[null,"532.0801.S","WALL GABION LRFD",null,"CY"]
[null,"532.0900.S","WALL MODULAR BIN OR CRIB",null,"SF"]
[null,"532.0901.S","WALL MODULAR BIN OR CRIB LRFD",null,"SF"]
[null,"550.0010","PRE-BORING UNCONSOLIDATED MATERIALS",null,"LF"]
[null,"550.0020","PRE-BORING ROCK OR CONSOLIDATED MATERIALS",null,"LF"]
[null,"550.0500","PILE POINTS",null,"EACH"]
[null,"550.0600","PILE REDRIVING",null,"EACH"]
[null,"550.1100","PILING STEEL HP 10-INCH X 42 LB",null,"LF"]
[null,"550.1120","PILING STEEL HP 12-INCH X 53 LB",null,"LF"]
[null,"550.1125","PILING STEEL HP 12-INCH X 74 LB",null,"LF"]
[null,"550.1140","PILING STEEL HP 14-INCH X 73 LB",null,"LF"]
[null,"550.2102","PILING CIP CONCRETE 10 3/4 X 0.219-INCH",null,"LF"]
[null,"550.2104","PILING CIP CONCRETE 10 3/4 X 0.25-INCH",null,"LF"]
[null,"550.2106","PILING CIP CONCRETE 10 3/4 X 0.365-INCH",null,"LF"]
[null,"550.2108","PILING CIP CONCRETE 10 3/4 X 0.50-INCH",null,"LF"]
[null,"550.2122","PILING CIP CONCRETE 12 3/4 X 0.219-INCH",null,"LF"]
[null,"550.2124","PILING CIP CONCRETE 12 3/4 X 0.25-INCH",null,"LF"]
[null,"550.2126","PILING CIP CONCRETE 12 3/4 X 0.375-INCH",null,"LF"]
[null,"550.2128","PILING CIP CONCRETE 12 3/4 X 0.50-INCH",null,"LF"]
[null,"550.2142","PILING CIP CONCRETE 14 X 0.219-INCH",null,"LF"]
[null,"550.2144","PILING CIP CONCRETE 14 X 0.25-INCH",null,"LF"]
[null,"550.2146","PILING CIP CONCRETE 14 X 0.375-INCH",null,"LF"]
[null,"550.2148","PILING CIP CONCRETE 14 X 0.50-INCH",null,"LF"]
[null,"550.2162","PILING CIP CONCRETE 16 X 0.219-INCH",null,"LF"]
[null,"550.2164","PILING CIP CONCRETE 16 X 0.25-INCH",null,"LF"]
[null,"550.2166","PILING CIP CONCRETE 16 X 0.375-INCH",null,"LF"]
[null,"550.2168","PILING CIP CONCRETE 16 X 0.50-INCH",null,"LF"]
[null,"550.3010.S","PILING PRECAST CONCRETE TESTING",null,"LF"]
[null,"550.3100","PILING PRECAST CONCRETE 10-INCH",null,"LF"]
[null,"550.3120","PILING PRECAST CONCRETE 12-INCH",null,"LF"]
[null,"550.3140","PILING PRECAST CONCRETE 14-INCH",null,"LF"]
[null,"550.3160","PILING PRECAST CONCRETE 16-INCH",null,"LF"]
[null,"550.3810","PILE SPLICES PRECAST CONCRETE 10-INCH",null,"LF"]
[null,"550.3812","PILE SPLICES PRECAST CONCRETE 12-INCH",null,"LF"]
[null,"550.3814","PILE SPLICES PRECAST CONCRETE 14-INCH",null,"LF"]
[null,"550.3816","PILE SPLICES PRECAST CONCRETE 16-INCH",null,"LF"]
[null,"550.5100.S","PILING WAVE ANALYSIS STEEL HP 10-INCH X 42 LB",null,"LF"]
[null,"550.5120.S","PILING WAVE ANALYSIS STEEL HP 12-INCH X 53 LB",null,"LF"]
[null,"550.5125.S","PILING WAVE ANALYSIS STEEL HP 12-INCH X 74 LB",null,"LF"]
[null,"550.5140.S","PILING WAVE ANALYSIS STEEL HP 14-INCH X 73 LB",null,"LF"]
[null,"550.6102.S","PILING WAVE ANALYSIS CIP CONCRETE 10 3/4 X 0.219-INCH",null,"LF"]
[null,"550.6104.S","PILING WAVE ANALYSIS CIP CONCRETE 10 3/4 X 0.25-INCH",null,"LF"]
[null,"550.6106.S","PILING WAVE ANALYSIS CIP CONCRETE 10 3/4 X 0.365-INCH",null,"LF"]
[null,"550.6108.S","PILING WAVE ANALYSIS CIP CONCRETE 10 3/4 X 0.50-INCH",null,"LF"]
[null,"550.6122.S","PILING WAVE ANALYSIS CIP CONCRETE 12 3/4 X 0.219-INCH",null,"LF"]
[null,"550.6124.S","PILING WAVE ANALYSIS CIP CONCRETE 12 3/4 X 0.25-INCH",null,"LF"]
[null,"550.6126.S","PILING WAVE ANALYSIS CIP CONCRETE 12 3/4 X 0.375-INCH",null,"LF"]
[null,"550.6128.S","PILING WAVE ANALYSIS CIP CONCRETE 12 3/4 X 0.50-INCH",null,"LF"]
[null,"550.6142.S","PILING WAVE ANALYSIS CIP CONCRETE 14 X 0.219-INCH",null,"LF"]
[null,"550.6144.S","PILING WAVE ANALYSIS CIP CONCRETE 14 X 0.25-INCH",null,"LF"]
[null,"550.6146.S","PILING WAVE ANALYSIS CIP CONCRETE 14 X 0.375-INCH",null,"LF"]
[null,"550.6148.S","PILING WAVE ANALYSIS CIP CONCRETE 14 X 0.50-INCH",null,"LF"]
[null,"550.6162.S","PILING WAVE ANALYSIS CIP CONCRETE 16 X 0.219-INCH",null,"LF"]
[null,"550.6164.S","PILING WAVE ANALYSIS CIP CONCRETE 16 X 0.25-INCH",null,"LF"]
[null,"550.6166.S","PILING WAVE ANALYSIS CIP CONCRETE 16 X 0.375-INCH",null,"LF"]
[null,"550.6168.S","PILING WAVE ANALYSIS CIP CONCRETE 16 X 0.50-INCH",null,"LF"]
[null,"550.7100.S","PILING WAVE ANALYSIS PRECAST CONCRETE 10-INCH",null,"LF"]
[null,"550.7120.S","PILING WAVE ANALYSIS PRECAST CONCRETE 12-INCH",null,"LF"]
[null,"550.7140.S","PILING WAVE ANALYSIS PRECAST CONCRETE 14-INCH",null,"LF"]
[null,"550.7160.S","PILING WAVE ANALYSIS PRECAST CONCRETE 16-INCH",null,"LF"]
[null,"601.0105","CONCRETE CURB TYPE A",null,"LF"]
[null,"601.0110","CONCRETE CURB TYPE D",null,"LF"]
[null,"601.0115","CONCRETE CURB TYPE G",null,"LF"]
[null,"601.0120","CONCRETE CURB TYPE J",null,"LF"]
[null,"601.0150","CONCRETE CURB INTEGRAL TYPE D",null,"LF"]
[null,"601.0155","CONCRETE CURB INTEGRAL TYPE J",null,"LF"]
[null,"601.0199.S","CONCRETE CURB PRECAST",null,"EACH"]
[null,"601.0205","CONCRETE GUTTER 24-INCH",null,"LF"]
[null,"601.0319","CONCRETE CURB & GUTTER 19-INCH",null,"LF"]
[null,"601.0322","CONCRETE CURB & GUTTER 22-INCH",null,"LF"]
[null,"601.0331","CONCRETE CURB & GUTTER 31-INCH",null,"LF"]
[null,"601.0342","CONCRETE CURB & GUTTER INTEGRAL 18-INCH",null,"LF"]
[null,"601.0344","CONCRETE CURB & GUTTER INTEGRAL 36-INCH",null,"LF"]
[null,"601.0405","CONCRETE CURB & GUTTER 18-INCH TYPE A",null,"LF"]
[null,"601.0407","CONCRETE CURB & GUTTER 18-INCH TYPE D",null,"LF"]
[null,"601.0409","CONCRETE CURB & GUTTER 30-INCH TYPE A",null,"LF"]
[null,"601.0411","CONCRETE CURB & GUTTER 30-INCH TYPE D",null,"LF"]
[null,"601.0413","CONCRETE CURB & GUTTER 6-INCH SLOPED 30-INCH TYPE G",null,"LF"]
[null,"601.0415","CONCRETE CURB & GUTTER 6-INCH SLOPED 30-INCH TYPE J",null,"LF"]
[null,"601.0417","CONCRETE CURB & GUTTER 30-INCH TYPE K",null,"LF"]
[null,"601.0419","CONCRETE CURB & GUTTER 30-INCH TYPE L",null,"LF"]
[null,"601.0452","CONCRETE CURB & GUTTER INTEGRAL 30-INCH TYPE D",null,"LF"]
[null,"601.0454","CONCRETE CURB & GUTTER INTEGRAL 30-INCH TYPE J",null,"LF"]
[null,"601.0456","CONCRETE CURB & GUTTER INTEGRAL 30-INCH TYPE L",null,"LF"]
[null,"601.0501","CONCRETE CURB AND GUTTER INTEGRAL 4-INCH SLOPED 36-INCH",null,"LF"]
[null,"601.0511","CONCRETE CURB AND GUTTER INTEGRAL 6-INCH SLOPED 36-INCH",null,"LF"]
[null,"601.0551","CONCRETE CURB AND GUTTER 4-INCH SLOPED 36-INCH TYPE A",null,"LF"]
[null,"601.0553","CONCRETE CURB AND GUTTER 4-INCH SLOPED 36-INCH TYPE D",null,"LF"]
[null,"601.0555","CONCRETE CURB AND GUTTER 6-INCH SLOPED 36-INCH TYPE A",null,"LF"]
[null,"601.0557","CONCRETE CURB AND GUTTER 6-INCH SLOPED 36-INCH TYPE D",null,"LF"]
[null,"601.0574","CONCRETE CURB & GUTTER 4-INCH SLOPED 30-INCH TYPE G",null,"LF"]
[null,"601.0576","CONCRETE CURB & GUTTER 4-INCH SLOPED 30-INCH TYPE J",null,"LF"]
[null,"601.0580","CONCRETE CURB & GUTTER 4-INCH SLOPED 36-INCH TYPE R",null,"LF"]
[null,"601.0582","CONCRETE CURB & GUTTER 4-INCH SLOPED 36-INCH TYPE T",null,"LF"]
[null,"601.0600","CONCRETE CURB PEDESTRIAN",null,"LF"]
[null,"602.0405","CONCRETE SIDEWALK 4-INCH",null,"SF"]
[null,"602.0410","CONCRETE SIDEWALK 5-INCH",null,"SF"]
[null,"602.0415","CONCRETE SIDEWALK 6-INCH",null,"SF"]
[null,"602.0420","CONCRETE SIDEWALK 7-INCH",null,"SF"]
[null,"602.0505","CURB RAMP DETECTABLE WARNING FIELD YELLOW",null,"SF"]
[null,"602.0510","CURB RAMP DETECTABLE WARNING FIELD WHITE",null,"SF"]
[null,"602.0515","CURB RAMP DETECTABLE WARNING FIELD NATURAL PATINA",null,"SF"]
[null,"602.1000","CONCRETE LOADING ZONE",null,"SF"]
[null,"602.1500","CONCRETE STEPS",null,"SF"]
[null,"602.2400","CONCRETE SAFETY ISLANDS",null,"SF"]
[null,"603.0105","CONCRETE BARRIER SINGLE-FACED 32-INCH",null,"LF"]
[null,"603.0205","CONCRETE BARRIER DOUBLE-FACED 32-INCH",null,"LF"]
[null,"603.0405","CONCRETE BARRIER TRANSITION SECTION 32-INCH",null,"LF"]
[null,"603.1132","CONCRETE BARRIER TYPE S32",null,"LF"]
[null,"603.1136","CONCRETE BARRIER TYPE S36",null,"LF"]
[null,"603.1142","CONCRETE BARRIER TYPE S42",null,"LF"]
[null,"603.1156","CONCRETE BARRIER TYPE S56",null,"LF"]
[null,"603.1232","CONCRETE BARRIER TYPE S32A",null,"LF"]
[null,"603.1236","CONCRETE BARRIER TYPE S36A",null,"LF"]
[null,"603.1242","CONCRETE BARRIER TYPE S42A",null,"LF"]
[null,"603.1256","CONCRETE BARRIER TYPE S56A",null,"LF"]
[null,"603.1332","CONCRETE BARRIER TYPE S32B",null,"LF"]
[null,"603.1336","CONCRETE BARRIER TYPE S36B",null,"LF"]
[null,"603.1342","CONCRETE BARRIER TYPE S42B",null,"LF"]
[null,"603.1356","CONCRETE BARRIER TYPE S56B",null,"LF"]
[null,"603.1436","CONCRETE BARRIER TYPE S36C",null,"LF"]
[null,"603.1442","CONCRETE BARRIER TYPE S42C",null,"LF"]
[null,"603.1456","CONCRETE BARRIER TYPE S56C",null,"LF"]
[null,"603.2132","CONCRETE BARRIER FIXED OBJECT PROTECTION TYPE S32",null,"LF"]
[null,"603.2136","CONCRETE BARRIER FIXED OBJECT PROTECTION TYPE S36",null,"LF"]
[null,"603.2142","CONCRETE BARRIER FIXED OBJECT PROTECTION TYPE S42",null,"LF"]
[null,"603.2156","CONCRETE BARRIER FIXED OBJECT PROTECTION TYPE S56",null,"LF"]
[null,"603.3111","CONCRETE BARRIER TRANSITION TYPE NJ32SF TO S32",null,"EACH"]
[null,"603.3113","CONCRETE BARRIER TRANSITION TYPE NJ32SF TO S36",null,"EACH"]
[null,"603.3155","CONCRETE BARRIER TRANSITION TYPE NJ42SF TO S42",null,"EACH"]
[null,"603.3175","CONCRETE BARRIER TRANSITION TYPE NJ51SF TO S42",null,"EACH"]
[null,"603.3211","CONCRETE BARRIER TRANSITION TYPE F32SF TO S32",null,"EACH"]
[null,"603.3213","CONCRETE BARRIER TRANSITION TYPE F32SF TO S36",null,"EACH"]
[null,"603.3255","CONCRETE BARRIER TRANSITION TYPE F42SF TO S42",null,"EACH"]
[null,"603.3275","CONCRETE BARRIER TRANSITION TYPE F51SF TO S42",null,"EACH"]
[null,"603.3279","CONCRETE BARRIER TRANSITION TYPE F51SF TO S56",null,"EACH"]
[null,"603.3311","CONCRETE BARRIER TRANSITION TYPE NJ32DF TO S32",null,"EACH"]
[null,"603.3313","CONCRETE BARRIER TRANSITION TYPE NJ32DF TO S36",null,"EACH"]
[null,"603.3355","CONCRETE BARRIER TRANSITION TYPE NJ42DF TO S42",null,"EACH"]
[null,"603.3375","CONCRETE BARRIER TRANSITION TYPE NJ51DF TO S42",null,"EACH"]
[null,"603.3411","CONCRETE BARRIER TRANSITION TYPE F32DF TO S32",null,"EACH"]
[null,"603.3413","CONCRETE BARRIER TRANSITION TYPE F32DF TO S36",null,"EACH"]
[null,"603.3455","CONCRETE BARRIER TRANSITION TYPE F42DF TO S42",null,"EACH"]
[null,"603.3475","CONCRETE BARRIER TRANSITION TYPE F51DF TO S42",null,"EACH"]
[null,"603.3513","CONCRETE BARRIER TRANSITION TYPE S32 TO S36",null,"EACH"]
[null,"603.3535","CONCRETE BARRIER TRANSITION TYPE S36 TO S42",null,"EACH"]
[null,"603.3559","CONCRETE BARRIER TRANSITION TYPE S42 TO S56",null,"EACH"]
[null,"603.3611","CONCRETE BARRIER TRANSITION TYPE V32 TO S32",null,"EACH"]
[null,"603.3613","CONCRETE BARRIER TRANSITION TYPE V32 TO S36",null,"EACH"]
[null,"603.3655","CONCRETE BARRIER TRANSITION TYPE V42 TO S42",null,"EACH"]
[null,"603.3675","CONCRETE BARRIER TRANSITION TYPE V51 TO S42",null,"EACH"]
[null,"603.3699","CONCRETE BARRIER TRANSITION TYPE V56 TO S56",null,"EACH"]
[null,"603.8000","CONCRETE BARRIER TEMPORARY PRECAST DELIVERED",null,"LF"]
[null,"603.8125","CONCRETE BARRIER TEMPORARY PRECAST INSTALLED",null,"LF"]
[null,"604.0400","SLOPE PAVING CONCRETE",null,"SY"]
[null,"604.0500","SLOPE PAVING CRUSHED AGGREGATE",null,"SY"]
[null,"604.0600","SLOPE PAVING SELECT CRUSHED MATERIAL",null,"SY"]
[null,"604.9010.S","SLOPE PAVING REPAIR CRUSHED AGGREGRATE",null,"CY"]
[null,"604.9015.S","RESEAL CRUSHED AGGREGATE SLOPE PAVING",null,"SY"]
[null,"605.0305","DITCH CHECKS MORTAR RUBBLE",null,"CY"]
[null,"605.0405","DITCH CHECKS CONCRETE",null,"CY"]
[null,"606.0100","RIPRAP LIGHT",null,"CY"]
["x","606.0200","RIPRAP MEDIUM",{"$f":"[0]!TOTAL606.0200_0010+[0]!TOTAL606.0200_0020+[0]!TOTAL606.0200_0030+[0]!TOTAL606.0200_0040+[0]!TOTAL606.0200_0050","v":7.7777777777777777},"CY",60,{"$f":"IF(A1122<>\"x\",\"\",IF(ISERROR(D1122),0,IF(D1122=\"\",0,IF(D1122=\" \",0,IF(D1122=\"<Error>\",0,F1122*D1122)))))","v":466.66666666666669}]
[null,"606.0300","RIPRAP HEAVY",null,"CY"]
[null,"606.0400","RIPRAP EXTRA-HEAVY",null,"CY"]
[null,"606.0500","GROUTED RIPRAP LIGHT",null,"CY"]
[null,"606.0600","GROUTED RIPRAP MEDIUM",null,"CY"]
[null,"606.0700","GROUTED RIPRAP HEAVY",null,"CY"]
[null,"606.0800","GROUTED RIPRAP EXTRA-HEAVY",null,"CY"]
[null,"606.1100.S","TRANSITION MAT",null,"SY"]
[null,"607.0106","STORM SEWER PIPE NONREINFORCED CONCRETE CLASS 1 6-INCH",null,"LF"]
[null,"607.0108","STORM SEWER PIPE NONREINFORCED CONCRETE CLASS 1 8-INCH",null,"LF"]
[null,"607.0110","STORM SEWER PIPE NONREINFORCED CONCRETE CLASS 1 10-INCH",null,"LF"]
[null,"607.0112","STORM SEWER PIPE NONREINFORCED CONCRETE CLASS 1 12-INCH",null,"LF"]
[null,"607.0115","STORM SEWER PIPE NONREINFORCED CONCRETE CLASS 1 15-INCH",null,"LF"]
[null,"607.0118","STORM SEWER PIPE NONREINFORCED CONCRETE CLASS 1 18-INCH",null,"LF"]
[null,"607.0121","STORM SEWER PIPE NONREINFORCED CONCRETE CLASS 1 21-INCH",null,"LF"]
[null,"607.0124","STORM SEWER PIPE NONREINFORCED CONCRETE CLASS 1 24-INCH",null,"LF"]
[null,"607.0130","STORM SEWER PIPE NONREINFORCED CONCRETE CLASS 1 30-INCH",null,"LF"]
[null,"607.0136","STORM SEWER PIPE NONREINFORCED CONCRETE CLASS 1 36-INCH",null,"LF"]
[null,"607.0306","STORM SEWER PIPE NONREINFORCED CONCRETE CLASS 3 6-INCH",null,"LF"]
[null,"607.0308","STORM SEWER PIPE NONREINFORCED CONCRETE CLASS 3 8-INCH",null,"LF"]
[null,"607.0310","STORM SEWER PIPE NONREINFORCED CONCRETE CLASS 3 10-INCH",null,"LF"]
[null,"607.0312","STORM SEWER PIPE NONREINFORCED CONCRETE CLASS 3 12-INCH",null,"LF"]
[null,"607.0315","STORM SEWER PIPE NONREINFORCED CONCRETE CLASS 3 15-INCH",null,"LF"]
[null,"607.0318","STORM SEWER PIPE NONREINFORCED CONCRETE CLASS 3 18-INCH",null,"LF"]
[null,"607.0321","STORM SEWER PIPE NONREINFORCED CONCRETE CLASS 3 21-INCH",null,"LF"]
[null,"607.0324","STORM SEWER PIPE NONREINFORCED CONCRETE CLASS 3 24-INCH",null,"LF"]
[null,"607.0330","STORM SEWER PIPE NONREINFORCED CONCRETE CLASS 3 30-INCH",null,"LF"]
[null,"607.0336","STORM SEWER PIPE NONREINFORCED CONCRETE CLASS 3 36-INCH",null,"LF"]
[null,"607.0406","STORM SEWER PIPE COMPOSITE 6-INCH",null,"LF"]
[null,"607.0408","STORM SEWER PIPE COMPOSITE 8-INCH",null,"LF"]
[null,"607.0410","STORM SEWER PIPE COMPOSITE 10-INCH",null,"LF"]
[null,"607.0412","STORM SEWER PIPE COMPOSITE 12-INCH",null,"LF"]
[null,"607.0415","STORM SEWER PIPE COMPOSITE 15-INCH",null,"LF"]
[null,"607.0600.S","STORM SEWER PIPE (INCH)",null,"LF"]
[null,"607.5000","STORM SEWER ROCK EXCAVATION",null,"CY"]
[null,"608.0212","STORM SEWER PIPE REINFORCED CONCRETE CLASS II 12-INCH",null,"LF"]
[null,"608.0215","STORM SEWER PIPE REINFORCED CONCRETE CLASS II 15-INCH",null,"LF"]
[null,"608.0218","STORM SEWER PIPE REINFORCED CONCRETE CLASS II 18-INCH",null,"LF"]
[null,"608.0221","STORM SEWER PIPE REINFORCED CONCRETE CLASS II 21-INCH",null,"LF"]
[null,"608.0224","STORM SEWER PIPE REINFORCED CONCRETE CLASS II 24-INCH",null,"LF"]
[null,"608.0227","STORM SEWER PIPE REINFORCED CONCRETE CLASS II 27-INCH",null,"LF"]
[null,"608.0230","STORM SEWER PIPE REINFORCED CONCRETE CLASS II 30-INCH",null,"LF"]
[null,"608.0236","STORM SEWER PIPE REINFORCED CONCRETE CLASS II 36-INCH",null,"LF"]
[null,"608.0242","STORM SEWER PIPE REINFORCED CONCRETE CLASS II 42-INCH",null,"LF"]
[null,"608.0248","STORM SEWER PIPE REINFORCED CONCRETE CLASS II 48-INCH",null,"LF"]
[null,"608.0254","STORM SEWER PIPE REINFORCED CONCRETE CLASS II 54-INCH",null,"LF"]
[null,"608.0260","STORM SEWER PIPE REINFORCED CONCRETE CLASS II 60-INCH",null,"LF"]
[null,"608.0266","STORM SEWER PIPE REINFORCED CONCRETE CLASS II 66-INCH",null,"LF"]
[null,"608.0272","STORM SEWER PIPE REINFORCED CONCRETE CLASS II 72-INCH",null,"LF"]
[null,"608.0278","STORM SEWER PIPE REINFORCED CONCRETE CLASS II 78-INCH",null,"LF"]
[null,"608.0284","STORM SEWER PIPE REINFORCED CONCRETE CLASS II 84-INCH",null,"LF"]
[null,"608.0290","STORM SEWER PIPE REINFORCED CONCRETE CLASS II 90-INCH",null,"LF"]
[null,"608.0296","STORM SEWER PIPE REINFORCED CONCRETE CLASS II 96-INCH",null,"LF"]
[null,"608.0297","STORM SEWER PIPE REINFORCED CONCRETE CLASS II 102-INCH",null,"LF"]
[null,"608.0298","STORM SEWER PIPE REINFORCED CONCRETE CLASS II 108-INCH",null,"LF"]
[null,"608.0312","STORM SEWER PIPE REINFORCED CONCRETE CLASS III 12-INCH",null,"LF"]
[null,"608.0315","STORM SEWER PIPE REINFORCED CONCRETE CLASS III 15-INCH",null,"LF"]
[null,"608.0318","STORM SEWER PIPE REINFORCED CONCRETE CLASS III 18-INCH",null,"LF"]
[null,"608.0321","STORM SEWER PIPE REINFORCED CONCRETE CLASS III 21-INCH",null,"LF"]
[null,"608.0324","STORM SEWER PIPE REINFORCED CONCRETE CLASS III 24-INCH",null,"LF"]
[null,"608.0327","STORM SEWER PIPE REINFORCED CONCRETE CLASS III 27-INCH",null,"LF"]
[null,"608.0330","STORM SEWER PIPE REINFORCED CONCRETE CLASS III 30-INCH",null,"LF"]
[null,"608.0336","STORM SEWER PIPE REINFORCED CONCRETE CLASS III 36-INCH",null,"LF"]
[null,"608.0342","STORM SEWER PIPE REINFORCED CONCRETE CLASS III 42-INCH",null,"LF"]
[null,"608.0348","STORM SEWER PIPE REINFORCED CONCRETE CLASS III 48-INCH",null,"LF"]
[null,"608.0354","STORM SEWER PIPE REINFORCED CONCRETE CLASS III 54-INCH",null,"LF"]
[null,"608.0360","STORM SEWER PIPE REINFORCED CONCRETE CLASS III 60-INCH",null,"LF"]
[null,"608.0366","STORM SEWER PIPE REINFORCED CONCRETE CLASS III 66-INCH",null,"LF"]
[null,"608.0372","STORM SEWER PIPE REINFORCED CONCRETE CLASS III 72-INCH",null,"LF"]
[null,"608.0378","STORM SEWER PIPE REINFORCED CONCRETE CLASS III 78-INCH",null,"LF"]
[null,"608.0384","STORM SEWER PIPE REINFORCED CONCRETE CLASS III 84-INCH",null,"LF"]
[null,"608.0390","STORM SEWER PIPE REINFORCED CONCRETE CLASS III 90-INCH",null,"LF"]
[null,"608.0396","STORM SEWER PIPE REINFORCED CONCRETE CLASS III 96-INCH",null,"LF"]
[null,"608.0397","STORM SEWER PIPE REINFORCED CONCRETE CLASS III 102-INCH",null,"LF"]
[null,"608.0398","STORM SEWER PIPE REINFORCED CONCRETE CLASS III 108-INCH",null,"LF"]
[null,"608.0412","STORM SEWER PIPE REINFORCED CONCRETE CLASS IV 12-INCH",null,"LF"]
[null,"608.0415","STORM SEWER PIPE REINFORCED CONCRETE CLASS IV 15-INCH",null,"LF"]
[null,"608.0418","STORM SEWER PIPE REINFORCED CONCRETE CLASS IV 18-INCH",null,"LF"]
[null,"608.0421","STORM SEWER PIPE REINFORCED CONCRETE CLASS IV 21-INCH",null,"LF"]
[null,"608.0424","STORM SEWER PIPE REINFORCED CONCRETE CLASS IV 24-INCH",null,"LF"]
[null,"608.0427","STORM SEWER PIPE REINFORCED CONCRETE CLASS IV 27-INCH",null,"LF"]
[null,"608.0430","STORM SEWER PIPE REINFORCED CONCRETE CLASS IV 30-INCH",null,"LF"]
[null,"608.0436","STORM SEWER PIPE REINFORCED CONCRETE CLASS IV 36-INCH",null,"LF"]
[null,"608.0442","STORM SEWER PIPE REINFORCED CONCRETE CLASS IV 42-INCH",null,"LF"]
[null,"608.0448","STORM SEWER PIPE REINFORCED CONCRETE CLASS IV 48-INCH",null,"LF"]
[null,"608.0454","STORM SEWER PIPE REINFORCED CONCRETE CLASS IV 54-INCH",null,"LF"]
[null,"608.0460","STORM SEWER PIPE REINFORCED CONCRETE CLASS IV 60-INCH",null,"LF"]
[null,"608.0466","STORM SEWER PIPE REINFORCED CONCRETE CLASS IV 66-INCH",null,"LF"]
[null,"608.0472","STORM SEWER PIPE REINFORCED CONCRETE CLASS IV 72-INCH",null,"LF"]
[null,"608.0478","STORM SEWER PIPE REINFORCED CONCRETE CLASS IV 78-INCH",null,"LF"]
[null,"608.0484","STORM SEWER PIPE REINFORCED CONCRETE CLASS IV 84-INCH",null,"LF"]
[null,"608.0512","STORM SEWER PIPE REINFORCED CONCRETE CLASS V 12-INCH",null,"LF"]
[null,"608.0515","STORM SEWER PIPE REINFORCED CONCRETE CLASS V 15-INCH",null,"LF"]
[null,"608.0518","STORM SEWER PIPE REINFORCED CONCRETE CLASS V 18-INCH",null,"LF"]
[null,"608.0521","STORM SEWER PIPE REINFORCED CONCRETE CLASS V 21-INCH",null,"LF"]
[null,"608.0524","STORM SEWER PIPE REINFORCED CONCRETE CLASS V 24-INCH",null,"LF"]
[null,"608.0527","STORM SEWER PIPE REINFORCED CONCRETE CLASS V 27-INCH",null,"LF"]
[null,"608.0530","STORM SEWER PIPE REINFORCED CONCRETE CLASS V 30-INCH",null,"LF"]
[null,"608.0536","STORM SEWER PIPE REINFORCED CONCRETE CLASS V 36-INCH",null,"LF"]
[null,"608.0542","STORM SEWER PIPE REINFORCED CONCRETE CLASS V 42-INCH",null,"LF"]
[null,"608.0548","STORM SEWER PIPE REINFORCED CONCRETE CLASS V 48-INCH",null,"LF"]
[null,"608.0554","STORM SEWER PIPE REINFORCED CONCRETE CLASS V 54-INCH",null,"LF"]
[null,"608.0560","STORM SEWER PIPE REINFORCED CONCRETE CLASS V 60-INCH",null,"LF"]
[null,"608.0566","STORM SEWER PIPE REINFORCED CONCRETE CLASS V 66-INCH",null,"LF"]
[null,"608.0572","STORM SEWER PIPE REINFORCED CONCRETE CLASS V 72-INCH",null,"LF"]
[null,"609.0106","RELAID STORM SEWER 6-INCH",null,"LF"]
[null,"609.0108","RELAID STORM SEWER 8-INCH",null,"LF"]
[null,"609.0110","RELAID STORM SEWER 10-INCH",null,"LF"]
[null,"609.0112","RELAID STORM SEWER 12-INCH",null,"LF"]
[null,"609.0115","RELAID STORM SEWER 15-INCH",null,"LF"]
[null,"609.0118","RELAID STORM SEWER 18-INCH",null,"LF"]
[null,"609.0121","RELAID STORM SEWER 21-INCH",null,"LF"]
[null,"609.0124","RELAID STORM SEWER 24-INCH",null,"LF"]
[null,"609.0127","RELAID STORM SEWER 27-INCH",null,"LF"]
[null,"609.0130","RELAID STORM SEWER 30-INCH",null,"LF"]
[null,"609.0136","RELAID STORM SEWER 36-INCH",null,"LF"]
[null,"609.0142","RELAID STORM SEWER 42-INCH",null,"LF"]
[null,"609.0148","RELAID STORM SEWER 48-INCH",null,"LF"]
[null,"609.0154","RELAID STORM SEWER 54-INCH",null,"LF"]
[null,"609.0160","RELAID STORM SEWER 60-INCH",null,"LF"]
[null,"609.0166","RELAID STORM SEWER 66-INCH",null,"LF"]
[null,"609.0172","RELAID STORM SEWER 72-INCH",null,"LF"]
[null,"609.0178","RELAID STORM SEWER 78-INCH",null,"LF"]
[null,"609.0184","RELAID STORM SEWER 84-INCH",null,"LF"]
[null,"609.0190","RELAID STORM SEWER 90-INCH",null,"LF"]
[null,"609.0196","RELAID STORM SEWER 96-INCH",null,"LF"]
[null,"610.0114","STORM SEWER PIPE REINFORCED CONCRETE HORIZONTAL ELLIPTICAL CLASS HE-III 14X23-INCH",null,"LF"]
[null,"610.0119","STORM SEWER PIPE REINFORCED CONCRETE HORIZONTAL ELLIPTICAL CLASS HE-III 19X30-INCH",null,"LF"]
[null,"610.0124","STORM SEWER PIPE REINFORCED CONCRETE HORIZONTAL ELLIPTICAL CLASS HE-III 24X38-INCH",null,"LF"]
[null,"610.0129","STORM SEWER PIPE REINFORCED CONCRETE HORIZONTAL ELLIPTICAL CLASS HE-III 29X45-INCH",null,"LF"]
[null,"610.0134","STORM SEWER PIPE REINFORCED CONCRETE HORIZONTAL ELLIPTICAL CLASS HE-III 34X53-INCH",null,"LF"]
[null,"610.0138","STORM SEWER PIPE REINFORCED CONCRETE HORIZONTAL ELLIPTICAL CLASS HE-III 38X60-INCH",null,"LF"]
[null,"610.0143","STORM SEWER PIPE REINFORCED CONCRETE HORIZONTAL ELLIPTICAL CLASS HE-III 43X68-INCH",null,"LF"]
[null,"610.0148","STORM SEWER PIPE REINFORCED CONCRETE HORIZONTAL ELLIPTICAL CLASS HE-III 48X76-INCH",null,"LF"]
[null,"610.0153","STORM SEWER PIPE REINFORCED CONCRETE HORIZONTAL ELLIPTICAL CLASS HE-III 53X83-INCH",null,"LF"]
[null,"610.0158","STORM SEWER PIPE REINFORCED CONCRETE HORIZONTAL ELLIPTICAL CLASS HE-III 58X91-INCH",null,"LF"]
[null,"610.0163","STORM SEWER PIPE REINFORCED CONCRETE HORIZONTAL ELLIPTICAL CLASS HE-III 63X98-INCH",null,"LF"]
[null,"610.0168","STORM SEWER PIPE REINFORCED CONCRETE HORIZONTAL ELLIPTICAL CLASS HE-III 68X106-INCH",null,"LF"]
[null,"610.0414","STORM SEWER PIPE REINFORCED CONCRETE HORIZONTAL ELLIPTICAL CLASS HE-IV 14X23-INCH",null,"LF"]
[null,"610.0419","STORM SEWER PIPE REINFORCED CONCRETE HORIZONTAL ELLIPTICAL CLASS HE-IV 19X30-INCH",null,"LF"]
[null,"610.0424","STORM SEWER PIPE REINFORCED CONCRETE HORIZONTAL ELLIPTICAL CLASS HE-IV 24X38-INCH",null,"LF"]
[null,"610.0429","STORM SEWER PIPE REINFORCED CONCRETE HORIZONTAL ELLIPTICAL CLASS HE-IV 29X45-INCH",null,"LF"]
[null,"610.0434","STORM SEWER PIPE REINFORCED CONCRETE HORIZONTAL ELLIPTICAL CLASS HE-IV 34X53-INCH",null,"LF"]
[null,"611.0410","RECONSTRUCTING CATCH BASINS",null,"EACH"]
[null,"611.0420","RECONSTRUCTING MANHOLES",null,"EACH"]
[null,"611.0430","RECONSTRUCTING INLETS",null,"EACH"]
[null,"611.0530","MANHOLE COVERS TYPE J",null,"EACH"]
[null,"611.0535","MANHOLE COVERS TYPE J-SPECIAL",null,"EACH"]
[null,"611.0540","MANHOLE COVERS TYPE K",null,"EACH"]
[null,"611.0545","MANHOLE COVERS TYPE L",null,"EACH"]
[null,"611.0550","MANHOLE COVERS TYPE M",null,"EACH"]
[null,"611.0552","MANHOLE COVERS TYPE M-COMMUNICATIONS",null,"EACH"]
[null,"611.0555","MANHOLE COVERS TYPE Q",null,"EACH"]
[null,"611.0557","MANHOLE COVERS TYPE Q-COMMUNICATIONS",null,"EACH"]
[null,"611.0600","INLET COVERS TYPE A",null,"EACH"]
[null,"611.0603","INLET COVERS TYPE A-S",null,"EACH"]
[null,"611.0606","INLET COVERS TYPE B",null,"EACH"]
[null,"611.0609","INLET COVERS TYPE B-A",null,"EACH"]
[null,"611.0610","INLET COVERS TYPE BW",null,"EACH"]
[null,"611.0612","INLET COVERS TYPE C",null,"EACH"]
[null,"611.0615","INLET COVERS TYPE F",null,"EACH"]
[null,"611.0624","INLET COVERS TYPE H",null,"EACH"]
[null,"611.0627","INLET COVERS TYPE HM",null,"EACH"]
[null,"611.0630","INLET COVERS TYPE HM-GJ",null,"EACH"]
[null,"611.0633","INLET COVERS TYPE HM-GJ-S",null,"EACH"]
[null,"611.0636","INLET COVERS TYPE HM-S",null,"EACH"]
[null,"611.0639","INLET COVERS TYPE H-S",null,"EACH"]
[null,"611.0642","INLET COVERS TYPE MS",null,"EACH"]
[null,"611.0645","INLET COVERS TYPE MS-A",null,"EACH"]
[null,"611.0648","INLET COVERS TYPE R",null,"EACH"]
[null,"611.0651","INLET COVERS TYPE S",null,"EACH"]
[null,"611.0652","INLET COVERS TYPE T",null,"EACH"]
[null,"611.0654","INLET COVERS TYPE V",null,"EACH"]
[null,"611.0657","INLET COVERS TYPE W",null,"EACH"]
[null,"611.0660","INLET COVERS TYPE WM",null,"EACH"]
[null,"611.0663","INLET COVERS TYPE X",null,"EACH"]
[null,"611.0666","INLET COVERS TYPE Z",null,"EACH"]
[null,"611.1003","CATCH BASINS 3-FT DIAMETER",null,"EACH"]
[null,"611.1004","CATCH BASINS 4-FT DIAMETER",null,"EACH"]
[null,"611.1005","CATCH BASINS 5-FT DIAMETER",null,"EACH"]
[null,"611.1006","CATCH BASINS 6-FT DIAMETER",null,"EACH"]
[null,"611.1230","CATCH BASINS 2X3-FT",null,"EACH"]
[null,"611.1253","CATCH BASINS 2.5X3-FT",null,"EACH"]
[null,"611.2003","MANHOLES 3-FT DIAMETER",null,"EACH"]
[null,"611.2004","MANHOLES 4-FT DIAMETER",null,"EACH"]
[null,"611.2005","MANHOLES 5-FT DIAMETER",null,"EACH"]
[null,"611.2006","MANHOLES 6-FT DIAMETER",null,"EACH"]
[null,"611.2007","MANHOLES 7-FT DIAMETER",null,"EACH"]
[null,"611.2008","MANHOLES 8-FT DIAMETER",null,"EACH"]
[null,"611.2033","MANHOLES 3X3-FT",null,"EACH"]
[null,"611.2044","MANHOLES 4X4-FT",null,"EACH"]
[null,"611.2055","MANHOLES 5X5-FT",null,"EACH"]
[null,"611.2066","MANHOLES 6X6-FT",null,"EACH"]
[null,"611.2104","MANHOLES COMMUNICATION 4-FT DIAMETER",null,"EACH"]
[null,"611.2504","MANHOLES VARIABLE TEE 4-FT DIAMETER",null,"EACH"]
[null,"611.2604","MANHOLES VARIABLE SPECIAL 4-FT DIAMETER",null,"EACH"]
[null,"611.3003","INLETS 3-FT DIAMETER",null,"EACH"]
[null,"611.3004","INLETS 4-FT DIAMETER",null,"EACH"]
[null,"611.3220","INLETS 2X2-FT",null,"EACH"]
[null,"611.3225","INLETS 2X2.5-FT",null,"EACH"]
[null,"611.3230","INLETS 2X3-FT",null,"EACH"]
[null,"611.3253","INLETS 2.5X3-FT",null,"EACH"]
[null,"611.3901","INLETS MEDIAN 1 GRATE",null,"EACH"]
[null,"611.3902","INLETS MEDIAN 2 GRATE",null,"EACH"]
[null,"611.3903","INLETS MEDIAN 3 GRATE",null,"EACH"]
[null,"611.3904","INLETS MEDIAN 4 GRATE",null,"EACH"]
[null,"611.8105","ADJUSTING CATCH BASIN COVERS",null,"EACH"]
[null,"611.8110","ADJUSTING MANHOLE COVERS",null,"EACH"]
[null,"611.8115","ADJUSTING INLET COVERS",null,"EACH"]
[null,"611.8120.S","COVER PLATES TEMPORARY",null,"EACH"]
[null,"611.9705","SALVAGED MANHOLE COVERS",null,"EACH"]
[null,"611.9710","SALVAGED INLET COVERS",null,"EACH"]
[null,"611.9800.S","PIPE GRATES",null,"EACH"]
[null,"611.9900.S","DRAIN SLOTTED VANE",null,"EACH"]
[null,"612.0104","PIPE UNDERDRAIN 4-INCH",null,"LF"]
[null,"612.0106","PIPE UNDERDRAIN 6-INCH",null,"LF"]
[null,"612.0108","PIPE UNDERDRAIN 8-INCH",null,"LF"]
[null,"612.0110","PIPE UNDERDRAIN 10-INCH",null,"LF"]
[null,"612.0112","PIPE UNDERDRAIN 12-INCH",null,"LF"]
[null,"612.0115","PIPE UNDERDRAIN 15-INCH",null,"LF"]
[null,"612.0118","PIPE UNDERDRAIN 18-INCH",null,"LF"]
[null,"612.0121","PIPE UNDERDRAIN 21-INCH",null,"LF"]
[null,"612.0204","PIPE UNDERDRAIN UNPERFORATED 4-INCH",null,"LF"]
[null,"612.0206","PIPE UNDERDRAIN UNPERFORATED 6-INCH",null,"LF"]
[null,"612.0208","PIPE UNDERDRAIN UNPERFORATED 8-INCH",null,"LF"]
[null,"612.0210","PIPE UNDERDRAIN UNPERFORATED 10-INCH",null,"LF"]
[null,"612.0212","PIPE UNDERDRAIN UNPERFORATED 12-INCH",null,"LF"]
[null,"612.0215","PIPE UNDERDRAIN UNPERFORATED 15-INCH",null,"LF"]
[null,"612.0218","PIPE UNDERDRAIN UNPERFORATED 18-INCH",null,"LF"]
[null,"612.0221","PIPE UNDERDRAIN UNPERFORATED 21-INCH",null,"LF"]
[null,"612.0404","PIPE UNDERDRAIN WRAPPED 4-INCH",null,"LF"]
[null,"612.0406","PIPE UNDERDRAIN WRAPPED 6-INCH",null,"LF"]
[null,"612.0408","PIPE UNDERDRAIN WRAPPED 8-INCH",null,"LF"]
[null,"612.0410","PIPE UNDERDRAIN WRAPPED 10-INCH",null,"LF"]
[null,"612.0412","PIPE UNDERDRAIN WRAPPED 12-INCH",null,"LF"]
[null,"612.0415","PIPE UNDERDRAIN WRAPPED 15-INCH",null,"LF"]
[null,"612.0504","PIPE UNDERDRAIN WRAPPED AND PLOWED 4-INCH",null,"LF"]
[null,"612.0506","PIPE UNDERDRAIN WRAPPED AND PLOWED 6-INCH",null,"LF"]
[null,"612.0600","UNDERDRAIN TRENCH",null,"LF"]
[null,"612.0700","DRAIN TILE EXPLORATION",null,"LF"]
[null,"612.0804","APRON ENDWALLS FOR UNDERDRAIN REINFORCED CONCRETE 4-INCH",null,"EACH"]
[null,"612.0806","APRON ENDWALLS FOR UNDERDRAIN REINFORCED CONCRETE 6-INCH",null,"EACH"]
[null,"612.0902.S","INSULATION BOARD POLYSTYRENE (INCH)",null,"SY"]
[null,"614.0010","BARRIER SYSTEM GRADING SHAPING FINISHING",null,"EACH"]
[null,"614.0115","ANCHORAGES FOR STEEL PLATE BEAM GUARD TYPE 2",null,"EACH"]
[null,"614.0150","ANCHOR ASSEMBLIES FOR STEEL PLATE BEAM GUARD",null,"EACH"]
[null,"614.0200","STEEL THRIE BEAM STRUCTURE APPROACH",null,"LF"]
[null,"614.0212","STEEL THRIE BEAM STRUCTURE APPROACH RETROFIT CANTILEVER BLUNT END",null,"EACH"]
[null,"614.0213","STEEL THRIE BEAM STRUCTURE APPROACH RETROFIT CANTILEVER SLOPED END",null,"EACH"]
[null,"614.0215","STEEL THRIE BEAM STRUCTURE APPROACH RETROFIT SPAN",null,"EACH"]
[null,"614.0216","STEEL THRIE BEAM STRUCTURE APPROACH RETROFIT POST",null,"EACH"]
[null,"614.0220","STEEL THRIE BEAM BULLNOSE TERMINAL",null,"EACH"]
[null,"614.0230","STEEL THRIE BEAM",null,"LF"]
[null,"614.0250","STEEL THRIE BEAM STRUCTURE APPROACH TEMPORARY",null,"LF"]
[null,"614.0305","STEEL PLATE BEAM GUARD CLASS A",null,"LF"]
[null,"614.0340","STEEL PLATE BEAM GUARD OVER LOW-FILL CULVERTS CLASS A",null,"LF"]
[null,"614.0345","STEEL PLATE BEAM GUARD SHORT RADIUS",null,"LF"]
[null,"614.0355-RETIRE","RETIRE-STEEL PLATE BEAM MEDIAN GUARD",null,"LF"]
[null,"614.0360","STEEL PLATE BEAM GUARD TEMPORARY",null,"LF"]
[null,"614.0370","STEEL PLATE BEAM GUARD ENERGY ABSORBING TERMINAL",null,"EACH"]
[null,"614.0380","STEEL PLATE BEAM GUARD ENERGY ABSORBING TERMINAL TEMPORARY",null,"EACH"]
[null,"614.0390","STEEL PLATE BEAM GUARD SHORT RADIUS TERMINAL",null,"EACH"]
[null,"614.0395","GUARDRAIL MOW STRIP CONCRETE",null,"SY"]
[null,"614.0396","GUARDRAIL MOW STRIP ASPHALT",null,"SY"]
[null,"614.0397","GUARDRAIL MOW STRIP EMULSIFIED ASPHALT",null,"SY"]
[null,"614.0400","ADJUSTING STEEL PLATE BEAM GUARD",null,"LF"]
[null,"614.0510","GUARDRAIL STIFFENED NW",null,"LF"]
[null,"614.0515","GUARDRAIL STIFENED LHW",null,"LF"]
[null,"614.0700","SAND BARRELS ARRAYS",null,"EACH"]
[null,"614.0800","CRASH CUSHIONS PERMANENT",null,"EACH"]
[null,"614.0805","CRASH CUSHIONS PERMANENT LOW MAINTENANCE",null,"EACH"]
[null,"614.0905","CRASH CUSHIONS TEMPORARY",null,"EACH"]
[null,"614.0920","SALVAGED RAIL",null,"LF",2,{"$f":"IF(A1394<>\"x\",\"\",IF(ISERROR(D1394),0,IF(D1394=\"\",0,IF(D1394=\" \",0,IF(D1394=\"<Error>\",0,F1394*D1394)))))","v":""}]
[null,"614.0925","SALVAGED GUARDRAIL END TREATMENTS",null,"EACH"]
[null,"614.0930","SALVAGED CRASH CUSHIONS",null,"EACH"]
[null,"614.0935","SALVAGED SAND BARRELS",null,"EACH"]
[null,"614.0950","REPLACING GUARDRAIL POSTS AND BLOCKS",null,"EACH"]
[null,"614.0951","REPLACING GUARDRAIL RAIL AND HARDWARE",null,"LF"]
[null,"614.1000","MGS GUARDRAIL TEMPORARY",null,"LF"]
[null,"614.1100","MGS GUARDRAIL TEMPORARY THRIE BEAM TRANSITION",null,"LF"]
[null,"614.1200","MGS GUARDRAIL TEMPORARY TRANSITION EAT",null,"EACH"]
["x","614.2300","MGS GUARDRAIL 3",{"$f":"[0]!TOTAL614.2300_0010+[0]!TOTAL614.2300_0020+[0]!TOTAL614.2300_0030+[0]!TOTAL614.2300_0040+[0]!TOTAL614.2300_0050","v":200},"LF",18,{"$f":"IF(A1403<>\"x\",\"\",IF(ISERROR(D1403),0,IF(D1403=\"\",0,IF(D1403=\" \",0,IF(D1403=\"<Error>\",0,F1403*D1403)))))","v":3600}]
[null,"614.2310","MGS GUARDRAIL 3 HS",null,"LF"]
[null,"614.2320","MGS GUARDRAIL 3 QS",null,"LF"]
[null,"614.2330","MGS GUARDRAIL 3 K",null,"LF"]
[null,"614.2340","MGS GUARDRAIL 3 L",null,"LF"]
[null,"614.2500","MGS THRIE BEAM TRANSITION",null,"LF"]
["x","614.2610","MGS GUARDRAIL TERMINAL EAT",{"$f":"[0]!TOTAL614.2610_0010+[0]!TOTAL614.2610_0020+[0]!TOTAL614.2610_0030+[0]!TOTAL614.2610_0040+[0]!TOTAL614.2610_0050","v":4},"EACH",2500,{"$f":"IF(A1409<>\"x\",\"\",IF(ISERROR(D1409),0,IF(D1409=\"\",0,IF(D1409=\" \",0,IF(D1409=\"<Error>\",0,F1409*D1409)))))","v":10000}]
[null,"614.2620","MGS GUARDRAIL TERMINAL TYPE 2",null,"EACH"]
[null,"614.8010","ANCHOR POST ASSEMBLY TOP MOUNT",null,"EACH"]
[null,"615.0100","GUARD FENCE TIMBER RAIL",null,"LF"]
[null,"615.0200","CURBS TREATED TIMBER",null,"EACH"]
[null,"615.0300","GUARD POSTS TIMBER",null,"EACH"]
[null,"615.0400","MARKER POSTS RUSTIC",null,"EACH"]
[null,"615.1000","WISCONSIN HISTORICAL MARKER (PROJECT)",null,"LS"]
[null,"616.0100","FENCE WOVEN WIRE (HEIGHT)",null,"LF"]
[null,"616.0120.S","FENCING SMALL ANIMAL",null,"LF"]
[null,"616.0204","FENCE CHAIN LINK 4-FT",null,"LF"]
[null,"616.0205","FENCE CHAIN LINK 5-FT",null,"LF"]
[null,"616.0206","FENCE CHAIN LINK 6-FT",null,"LF"]
[null,"616.0207","FENCE CHAIN LINK 7-FT",null,"LF"]
[null,"616.0208","FENCE CHAIN LINK 8-FT",null,"LF"]
[null,"616.0210","FENCE CHAIN LINK 10-FT",null,"LF"]
[null,"616.0329","GATES CHAIN LINK (WIDTH)",null,"EACH"]
[null,"616.0350.S","GATES WOOD SINGLE LEAF (LENGTH)",null,"EACH"]
[null,"616.0352.S","GATES WOOD DOUBLE LEAF (LENGTH)",null,"EACH"]
[null,"616.0360.S","GATES PIPE SINGLE LEAF (LENGTH)",null,"EACH"]
[null,"616.0404","FENCE CHAIN LINK SALVAGED 4-FT",null,"LF"]
[null,"616.0405","FENCE CHAIN LINK SALVAGED 5-FT",null,"LF"]
[null,"616.0406","FENCE CHAIN LINK SALVAGED 6-FT",null,"LF"]
[null,"616.0407","FENCE CHAIN LINK SALVAGED 7-FT",null,"LF"]
[null,"616.0408","FENCE CHAIN LINK SALVAGED 8-FT",null,"LF"]
[null,"616.0410","FENCE CHAIN LINK SALVAGED 10-FT",null,"LF"]
[null,"616.0600.S","FENCE TEMPORARY",null,"LF"]
[null,"616.0700.S","FENCE SAFETY",null,"LF"]
[null,"616.0800.S","FENCE TRACK CLEARANCE",null,"LF"]
[null,"617.0100","HAULING (MATERIAL)",null,"CYMI"]
[null,"618.0100","MAINTENANCE AND REPAIR OF HAUL ROADS (PROJECT)",null,"EACH"]
["x","619.1000","MOBILIZATION",{"$f":"[0]!TOTAL619.1000_0010+[0]!TOTAL619.1000_0020+[0]!TOTAL619.1000_0030+[0]!TOTAL619.1000_0040+[0]!TOTAL619.1000_0050","v":1},"EACH",6000,{"$f":"IF(A1440<>\"x\",\"\",IF(ISERROR(D1440),0,IF(D1440=\"\",0,IF(D1440=\" \",0,IF(D1440=\"<Error>\",0,F1440*D1440)))))","v":6000}]
[null,"620.0100","CONCRETE CORRUGATED MEDIAN",null,"SF"]
[null,"620.0200","CONCRETE MEDIAN BLUNT NOSE",null,"SF"]
[null,"620.0300","CONCRETE MEDIAN SLOPED NOSE",null,"SF"]
[null,"621.0100","LANDMARK REFERENCE MONUMENTS",null,"EACH"]
[null,"621.1100","LANDMARK REFERENCE MONUMENTS AND CAST IRON COVERS",null,"EACH"]
[null,"621.1200","LANDMARK REFERENCE MONUMENTS AND ALUMINUM COVERS",null,"EACH"]
[null,"623.0200","DUST CONTROL SURFACE TREATMENT",null,"SY"]
[null,"624.0100","WATER",null,"MGAL"]
[null,"625.0100","TOPSOIL",null,"SY"]
[null,"625.0105","TOPSOIL",null,"CY"]
["x","625.0500","SALVAGED TOPSOIL",{"$f":"[0]!TOTAL625.0500_0010+[0]!TOTAL625.0500_0020+[0]!TOTAL625.0500_0030+[0]!TOTAL625.0500_0040+[0]!TOTAL625.0500_0050","v":1400},"SY",1.75,{"$f":"IF(A1451<>\"x\",\"\",IF(ISERROR(D1451),0,IF(D1451=\"\",0,IF(D1451=\" \",0,IF(D1451=\"<Error>\",0,F1451*D1451)))))","v":2450}]
[null,"626.0200","PEAT HUMUS",null,"SY"]
[null,"627.0200","MULCHING",null,"SY",null,{"$f":"IF(A1453<>\"x\",\"\",IF(ISERROR(D1453),0,IF(D1453=\"\",0,IF(D1453=\" \",0,IF(D1453=\"<Error>\",0,F1453*D1453)))))","v":""}]
[null,"627.0205","MULCHING",null,"TON"]
[null,"628.1104","EROSION BALES",null,"EACH"]
["x","628.1504","SILT FENCE",{"$f":"[0]!TOTAL628.1504_0010+[0]!TOTAL628.1504_0020+[0]!TOTAL628.1504_0030+[0]!TOTAL628.1504_0040+[0]!TOTAL628.1504_0050","v":700},"LF",2,{"$f":"IF(A1456<>\"x\",\"\",IF(ISERROR(D1456),0,IF(D1456=\"\",0,IF(D1456=\" \",0,IF(D1456=\"<Error>\",0,F1456*D1456)))))","v":1400}]
["x","628.1520","SILT FENCE MAINTENANCE",{"$f":"[0]!TOTAL628.1520_0010+[0]!TOTAL628.1520_0020+[0]!TOTAL628.1520_0030+[0]!TOTAL628.1520_0040+[0]!TOTAL628.1520_0050","v":700},"LF",0.34,{"$f":"IF(A1457<>\"x\",\"\",IF(ISERROR(D1457),0,IF(D1457=\"\",0,IF(D1457=\" \",0,IF(D1457=\"<Error>\",0,F1457*D1457)))))","v":238.00000000000003}]
[null,"628.1550","SILT SCREEN",null,"LF"]
["x","628.1905","MOBILIZATIONS EROSION CONTROL",{"$f":"[0]!TOTAL628.1905_0010+[0]!TOTAL628.1905_0020+[0]!TOTAL628.1905_0030+[0]!TOTAL628.1905_0040+[0]!TOTAL628.1905_0050","v":1},"EACH",200,{"$f":"IF(A1459<>\"x\",\"\",IF(ISERROR(D1459),0,IF(D1459=\"\",0,IF(D1459=\" \",0,IF(D1459=\"<Error>\",0,F1459*D1459)))))","v":200}]
["x","628.1910","MOBILIZATIONS EMERGENCY EROSION CONTROL",{"$f":"[0]!TOTAL628.1910_0010+[0]!TOTAL628.1910_0020+[0]!TOTAL628.1910_0030+[0]!TOTAL628.1910_0040+[0]!TOTAL628.1910_0050","v":1},"EACH",150,{"$f":"IF(A1460<>\"x\",\"\",IF(ISERROR(D1460),0,IF(D1460=\"\",0,IF(D1460=\" \",0,IF(D1460=\"<Error>\",0,F1460*D1460)))))","v":150}]
[null,"628.1920","CLEANING SEDIMENT BASINS",null,"CY"]
[null,"628.2002","EROSION MAT CLASS I TYPE A",null,"SY"]
["x","628.2004","EROSION MAT CLASS I TYPE B",{"$f":"[0]!TOTAL628.2004_0010+[0]!TOTAL628.2004_0020+[0]!TOTAL628.2004_0030+[0]!TOTAL628.2004_0040+[0]!TOTAL628.2004_0050","v":1400},"SY",1.5,{"$f":"IF(A1463<>\"x\",\"\",IF(ISERROR(D1463),0,IF(D1463=\"\",0,IF(D1463=\" \",0,IF(D1463=\"<Error>\",0,F1463*D1463)))))","v":2100}]
[null,"628.2006","EROSION MAT URBAN CLASS I TYPE A",null,"SY"]
[null,"628.2008","EROSION MAT URBAN CLASS I TYPE B",null,"SY"]
[null,"628.2021","EROSION MAT CLASS II TYPE A",null,"SY"]
[null,"628.2023","EROSION MAT CLASS II TYPE B",null,"SY"]
[null,"628.2027","EROSION MAT CLASS II TYPE C",null,"SY"]
[null,"628.2031","EROSION MAT CLASS III TYPE A",null,"SY"]
[null,"628.2033","EROSION MAT CLASS III TYPE B",null,"SY"]
[null,"628.2037","EROSION MAT CLASS III TYPE C",null,"SY"]
[null,"628.2039","EROSION MAT CLASS III TYPE D",null,"SY"]
[null,"628.5505","POLYETHYLENE SHEETING",null,"SY"]
[null,"628.6005","TURBIDITY BARRIERS",null,"SY"]
[null,"628.6505","SOIL STABILIZER TYPE A",null,"ACRE"]
[null,"628.6510","SOIL STABILIZER TYPE B",null,"ACRE"]
[null,"628.7005","INLET PROTECTION TYPE A",null,"EACH"]
[null,"628.7010","INLET PROTECTION TYPE B",null,"EACH"]
[null,"628.7015","INLET PROTECTION TYPE C",null,"EACH"]
[null,"628.7020","INLET PROTECTION TYPE D",null,"EACH"]
["x","628.7504","TEMPORARY DITCH CHECKS",{"$f":"[0]!TOTAL628.7504_0010+[0]!TOTAL628.7504_0020+[0]!TOTAL628.7504_0030+[0]!TOTAL628.7504_0040+[0]!TOTAL628.7504_0050","v":100},"LF",7.25,{"$f":"IF(A1481<>\"x\",\"\",IF(ISERROR(D1481),0,IF(D1481=\"\",0,IF(D1481=\" \",0,IF(D1481=\"<Error>\",0,F1481*D1481)))))","v":725}]
["x","628.7555","CULVERT PIPE CHECKS",{"$f":"[0]!TOTAL628.7555_0010+[0]!TOTAL628.7555_0020+[0]!TOTAL628.7555_0030+[0]!TOTAL628.7555_0040+[0]!TOTAL628.7555_0050","v":2},"EACH",20,{"$f":"IF(A1482<>\"x\",\"\",IF(ISERROR(D1482),0,IF(D1482=\"\",0,IF(D1482=\" \",0,IF(D1482=\"<Error>\",0,F1482*D1482)))))","v":40}]
[null,"628.7560","TRACKING PADS",null,"EACH"]
[null,"628.7560.S","STONE OR ROCK DITCH CHECKS",null,"CY"]
[null,"628.7570","ROCK BAGS",null,"EACH"]
[null,"629.0205","FERTILIZER TYPE A",null,"CWT",null,{"$f":"IF(A1486<>\"x\",\"\",IF(ISERROR(D1486),0,IF(D1486=\"\",0,IF(D1486=\" \",0,IF(D1486=\"<Error>\",0,F1486*D1486)))))","v":""}]
["x","629.0210","FERTILIZER TYPE B",{"$f":"[0]!TOTAL629.0210_0010+[0]!TOTAL629.0210_0020+[0]!TOTAL629.0210_0030+[0]!TOTAL629.0210_0040+[0]!TOTAL629.0210_0050","v":1.5875999999999999},"CWT",100,{"$f":"IF(A1487<>\"x\",\"\",IF(ISERROR(D1487),0,IF(D1487=\"\",0,IF(D1487=\" \",0,IF(D1487=\"<Error>\",0,F1487*D1487)))))","v":158.76}]
[null,"629.1100","AGRICULTURAL LIMESTONE TREATMENT",null,"TON"]
[null,"630.0110","SEEDING MIXTURE NO. 10",null,"LB"]
["x","630.0120","SEEDING MIXTURE NO. 20",{"$f":"[0]!TOTAL630.0120_0010+[0]!TOTAL630.0120_0020+[0]!TOTAL630.0120_0030+[0]!TOTAL630.0120_0040+[0]!TOTAL630.0120_0050","v":45.36},"LB",11,{"$f":"IF(A1490<>\"x\",\"\",IF(ISERROR(D1490),0,IF(D1490=\"\",0,IF(D1490=\" \",0,IF(D1490=\"<Error>\",0,F1490*D1490)))))","v":498.96}]
[null,"630.0130","SEEDING MIXTURE NO. 30",null,"LB"]
[null,"630.0140","SEEDING MIXTURE NO. 40",null,"LB"]
[null,"630.0160","SEEDING MIXTURE NO. 60",null,"LB"]
[null,"630.0170","SEEDING MIXTURE NO. 70",null,"LB"]
[null,"630.0171","SEEDING MIXTURE NO. 70A",null,"LB"]
[null,"630.0175","SEEDING MIXTURE NO. 75",null,"LB"]
[null,"630.0180","SEEDING MIXTURE NO. 80",null,"LB"]
["x","630.0200","SEEDING TEMPORARY",{"$f":"[0]!TOTAL630.0200_0010+[0]!TOTAL630.0200_0020+[0]!TOTAL630.0200_0030+[0]!TOTAL630.0200_0040+[0]!TOTAL630.0200_0050","v":68.040000000000006},"LB",4,{"$f":"IF(A1498<>\"x\",\"\",IF(ISERROR(D1498),0,IF(D1498=\"\",0,IF(D1498=\" \",0,IF(D1498=\"<Error>\",0,F1498*D1498)))))","v":272.16000000000003}]
[null,"630.0300","SEEDING BORROW PIT",null,"LB"]
[null,"630.0400","SEEDING NURSE CROP",null,"LB"]
[null,"631.0300","SOD WATER",null,"MGAL"]
[null,"631.1000","SOD LAWN",null,"SY"]
[null,"631.1100","SOD EROSION CONTROL",null,"SY"]
[null,"631.1200","SOD EROSION CONTROL SANDY SOIL",null,"SY"]
[null,"632.0101","TREES (SPECIES, ROOT, SIZE)",null,"EACH"]
[null,"632.0201","SHRUBS (SPECIES, ROOT, SIZE)",null,"EACH"]
[null,"632.0301","VINES (SPECIES, ROOT, SIZE)",null,"EACH"]
[null,"632.9101","LANDSCAPE PLANTING SURVEILLANCE AND CARE CYCLES",null,"EACH"]
[null,"633.0100","DELINEATOR POSTS STEEL",null,"EACH"]
[null,"633.0200","DELINEATORS FLEXIBLE",null,"EACH"]
[null,"633.0500","DELINEATOR REFLECTORS",null,"EACH"]
[null,"633.1000","DELINEATOR BRACKETS",null,"EACH"]
[null,"633.1100","DELINEATORS TEMPORARY",null,"EACH"]
[null,"633.5100","MARKERS ROW",null,"EACH"]
["x","633.5200","MARKERS CULVERT END",{"$f":"[0]!TOTAL633.5200_0010+[0]!TOTAL633.5200_0020+[0]!TOTAL633.5200_0030+[0]!TOTAL633.5200_0040+[0]!TOTAL633.5200_0050","v":2},"EACH",40,{"$f":"IF(A1515<>\"x\",\"\",IF(ISERROR(D1515),0,IF(D1515=\"\",0,IF(D1515=\" \",0,IF(D1515=\"<Error>\",0,F1515*D1515)))))","v":80}]
[null,"633.9010","SALVAGED DELINEATOR STEEL",null,"EACH"]
[null,"634.0410","POSTS WOOD 4X4-INCH X 10-FT",null,"EACH"]
[null,"634.0412","POSTS WOOD 4X4-INCH X 12-FT",null,"EACH"]
[null,"634.0414","POSTS WOOD 4X4-INCH X 14-FT",null,"EACH"]
["x","634.0416","POSTS WOOD 4X4-INCH X 16-FT",{"$f":"[0]!TOTAL634.0416_0010+[0]!TOTAL634.0416_0020+[0]!TOTAL634.0416_0030+[0]!TOTAL634.0416_0040+[0]!TOTAL634.0416_0050","v":1},"EACH",75,{"$f":"IF(A1520<>\"x\",\"\",IF(ISERROR(D1520),0,IF(D1520=\"\",0,IF(D1520=\" \",0,IF(D1520=\"<Error>\",0,F1520*D1520)))))","v":75}]
[null,"634.0418","POSTS WOOD 4X4-INCH X 18-FT",null,"EACH"]
[null,"634.0612","POSTS WOOD 4X6-INCH X 12-FT",null,"EACH"]
[null,"634.0614","POSTS WOOD 4X6-INCH X 14-FT",null,"EACH"]
[null,"634.0616","POSTS WOOD 4X6-INCH X 16-FT",null,"EACH"]
[null,"634.0618","POSTS WOOD 4X6-INCH X 18-FT",null,"EACH"]
[null,"634.0620","POSTS WOOD 4X6-INCH X 20-FT",null,"EACH"]
[null,"634.0622","POSTS WOOD 4X6-INCH X 22-FT",null,"EACH"]
[null,"634.0624","POSTS WOOD 4X6-INCH X 24-FT",null,"EACH"]
[null,"634.0801","POSTS TUBULAR STEEL 2X2-INCH X 1.5-FT",null,"EACH"]
[null,"634.0803","POSTS TUBULAR STEEL 2X2-INCH X 3-FT",null,"EACH"]
["x","634.0805","POSTS TUBULAR STEEL 2X2-INCH X 5-FT",{"$f":"[0]!TOTAL634.0805_0010+[0]!TOTAL634.0805_0020+[0]!TOTAL634.0805_0030+[0]!TOTAL634.0805_0040+[0]!TOTAL634.0805_0050","v":4},"EACH",100,{"$f":"IF(A1531<>\"x\",\"\",IF(ISERROR(D1531),0,IF(D1531=\"\",0,IF(D1531=\" \",0,IF(D1531=\"<Error>\",0,F1531*D1531)))))","v":400}]
[null,"634.0808","POSTS TUBULAR STEEL 2X2-INCH X 8-FT",null,"EACH"]
[null,"634.0809","POSTS TUBULAR STEEL 2X2-INCH X 9.5-FT",null,"EACH"]
[null,"634.0810","POSTS TUBULAR STEEL 2X2-INCH X 10-FT",null,"EACH"]
[null,"634.0811","POSTS TUBULAR STEEL 2X2-INCH X 11-FT",null,"EACH"]
[null,"634.0812","POSTS TUBULAR STEEL 2X2-INCH X 12-FT",null,"EACH"]
[null,"634.0814","POSTS TUBULAR STEEL 2X2-INCH X 14-FT",null,"EACH"]
[null,"634.0816","POSTS TUBULAR STEEL 2X2-INCH X 16-FT",null,"EACH"]
[null,"634.0818","POSTS TUBULAR STEEL 2X2-INCH X 18-FT",null,"EACH"]
[null,"634.0885","POSTS TUBULAR STEEL 2X2-INCH X 8.5-FT",null,"EACH"]
[null,"635.0200","SIGN SUPPORTS STRUCTURAL STEEL HS",null,"LB"]
[null,"635.0300","SIGN SUPPORTS REPLACING BASE CONNECTION BOLTS",null,"EACH"]
[null,"635.9010.S","SIGN SUPPORTS SHORTEN STRUCTURAL STEEL",null,"EACH"]
[null,"636.0050.S","FOUNDATION DRILLING (DIAMETER)",null,"LF"]
[null,"636.0100","SIGN SUPPORTS CONCRETE MASONRY",null,"CY"]
[null,"636.0500","SIGN SUPPORTS STEEL REINFORCEMENT",null,"LB"]
[null,"636.1000","SIGN SUPPORTS STEEL REINFORCEMENT HS",null,"LB"]
[null,"636.1500","SIGN SUPPORTS STEEL COATED REINFORCEMENT HS",null,"LB"]
[null,"637.0620","SIGN FLAGS PERMANENT TYPE II",null,"EACH"]
[null,"637.0630","SIGN FLAGS PERMANENT TYPE III",null,"EACH"]
[null,"637.1210","SIGNS TYPE I REFLECTIVE H",null,"SF"]
[null,"637.1220","SIGNS TYPE I REFLECTIVE SH",null,"SF"]
[null,"637.1230","SIGNS TYPE I REFLECTIVE F",null,"SF"]
[null,"637.2110","SIGNS TYPE II NON REFLECTIVE",null,"SF"]
[null,"637.2115","SIGNS TYPE II NON REFLECTIVE FOLDING",null,"SF"]
["x","637.2210","SIGNS TYPE II REFLECTIVE H",{"$f":"[0]!TOTAL637.2210_0010+[0]!TOTAL637.2210_0020+[0]!TOTAL637.2210_0030+[0]!TOTAL637.2210_0040+[0]!TOTAL637.2210_0050","v":18.25},"SF",17,{"$f":"IF(A1556<>\"x\",\"\",IF(ISERROR(D1556),0,IF(D1556=\"\",0,IF(D1556=\" \",0,IF(D1556=\"<Error>\",0,F1556*D1556)))))","v":310.25}]
[null,"637.2215","SIGNS TYPE II REFLECTIVE H FOLDING",null,"SF"]
[null,"637.2220","SIGNS TYPE II REFLECTIVE SH",null,"SF"]
[null,"637.2225","SIGNS TYPE II REFLECTIVE SH FOLDING",null,"SF"]
[null,"637.2230","SIGNS TYPE II REFLECTIVE F",null,"SF"]
[null,"637.2235","SIGNS TYPE II REFLECTIVE F FOLDING",null,"SF"]
[null,"637.3110","SIGNS TYPE III NON REFLECTIVE",null,"SF"]
[null,"637.3210","SIGN S TYPE III REFLECTIVE H",null,"SF"]
[null,"637.3220","SIGNS TYPE III REFLECTIVE SH",null,"SF"]
[null,"637.3230","SIGNS TYPE III REFLECTIVE F",null,"SF"]
[null,"638.2101","MOVING SIGNS TYPE I",null,"EACH"]
[null,"638.2102","MOVING SIGNS TYPE II",null,"EACH"]
[null,"638.2103","MOVING SIGNS TYPE III",null,"EACH"]
[null,"638.2601","REMOVING SIGNS TYPE I",null,"EACH"]
["x","638.2602","REMOVING SIGNS TYPE II",{"$f":"[0]!TOTAL638.2602_0010+[0]!TOTAL638.2602_0020+[0]!TOTAL638.2602_0030+[0]!TOTAL638.2602_0040+[0]!TOTAL638.2602_0050","v":5},"EACH",125,{"$f":"IF(A1570<>\"x\",\"\",IF(ISERROR(D1570),0,IF(D1570=\"\",0,IF(D1570=\" \",0,IF(D1570=\"<Error>\",0,F1570*D1570)))))","v":625}]
[null,"638.2603","REMOVING SIGNS TYPE III",null,"EACH"]
[null,"638.3000","REMOVING SMALL SIGN SUPPORTS",null,"EACH"]
[null,"638.3100","REMOVING STRUCTURAL STEEL SIGN SUPPORTS",null,"EACH"]
[null,"638.3210","REVISING SIGNS TYPE I",null,"EACH"]
[null,"638.3230","REVISING SIGNS TYPE III",null,"EACH"]
[null,"638.3610","ERECTING STATE OWNED SIGNS TYPE I",null,"EACH"]
[null,"638.3620","ERECTING STATE OWNED SIGNS TYPE II",null,"EACH"]
[null,"638.3630","ERECTING STATE OWNED SIGNS TYPE III",null,"EACH"]
[null,"638.4000","MOVING SMALL SIGN SUPPORTS",null,"EACH"]
[null,"638.4100","MOVING STRUCTURAL STEEL SIGN SUPPORTS",null,"EACH"]
[null,"639.0106","DRILL HOLE IN EARTH 6-INCH",null,"LF"]
[null,"639.0108","DRILL HOLE IN EARTH 8-INCH",null,"LF"]
[null,"639.0110","DRILL HOLE IN EARTH 10-INCH",null,"LF"]
[null,"639.0112","DRILL HOLE IN EARTH 12-INCH",null,"LF"]
[null,"639.0504","DRILL HOLE IN ROCK 4-INCH",null,"LF"]
[null,"639.0506","DRILL HOLE IN ROCK 6-INCH",null,"LF"]
[null,"639.0508","DRILL HOLE IN ROCK 8-INCH",null,"LF"]
[null,"639.0510","DRILL HOLE IN ROCK 10-INCH",null,"LF"]
[null,"639.0512","DRILL HOLE IN ROCK 12-INCH",null,"LF"]
[null,"639.1004","WELL CASING PIPE 4-INCH",null,"LF"]
[null,"639.1006","WELL CASING PIPE 6-INCH",null,"LF"]
[null,"639.1008","WELL CASING PIPE 8-INCH",null,"LF"]
[null,"639.1010","WELL CASING PIPE 10-INCH",null,"LF"]
[null,"639.1012","WELL CASING PIPE 12-INCH",null,"LF"]
[null,"639.1700","WELL SCREEN",null,"LF"]
[null,"639.2100","GROUT FOR SEALING WELL CASING",null,"CF"]
[null,"639.2500","PUMP AND WELL PLATFORM",null,"EACH"]
[null,"639.3000","WAYSIDE WELL SHELTER",null,"EACH"]
[null,"639.4000","TEST PUMPING",null,"EACH"]
[null,"640.0200.S","PLACING INDUSTRIAL (BYPRODUCT)",null,"CY"]
[null,"640.0250.S","HAULING INDUSTRIAL (BYPRODUCT)",null,"TON"]
[null,"640.0270.S","MAINTENANCE OF CELLS (BYPRODUCT)",null,"HRS"]
[null,"640.0400.S","BASIN LYSIMETER",null,"EACH"]
[null,"640.0500.S","HEAD MONITORING WELL",null,"EACH"]
[null,"640.1303.S","POND LINER CLAY",null,"CY"]
[null,"640.1305.S","CLAY COVER",null,"CY"]
[null,"641.0100","SIGN BRIDGE SINGLE POLE SIGN SUPPORT ONE SIGN (STRUCTURE)",null,"LS"]
[null,"641.0600","SIGN BRIDGE SINGLE POLE SIGN SUPPORT TWO SIGNS (STRUCTURE)",null,"LS"]
[null,"641.1200","SIGN BRIDGE CANTILEVERED (STRUCTURE)",null,"LS"]
[null,"641.5100","SIGN BRIDGE STRUCTURE MOUNTED (STRUCTURE)",null,"LS"]
[null,"641.6600","SIGN BRIDGE (STRUCTURE)",null,"LS"]
[null,"641.8100","OVERHEAD SIGN SUPPORT (STRUCTURE)",null,"LS"]
["x","642.5001","FIELD OFFICE TYPE B",{"$f":"[0]!TOTAL642.5001_0010+[0]!TOTAL642.5001_0020+[0]!TOTAL642.5001_0030+[0]!TOTAL642.5001_0040+[0]!TOTAL642.5001_0050","v":1},"EACH",2000,{"$f":"IF(A1613<>\"x\",\"\",IF(ISERROR(D1613),0,IF(D1613=\"\",0,IF(D1613=\" \",0,IF(D1613=\"<Error>\",0,F1613*D1613)))))","v":2000}]
[null,"642.5201","FIELD OFFICE TYPE C",null,"EACH"]
[null,"642.5401","FIELD OFFICE TYPE D",null,"EACH"]
[null,"642.6001","FIELD LABORATORY",null,"EACH"]
[null,"643.0100","TRAFFIC CONTROL (PROJECT)",null,"EACH",11000,{"$f":"IF(A1617<>\"x\",\"\",IF(ISERROR(D1617),0,IF(D1617=\"\",0,IF(D1617=\" \",0,IF(D1617=\"<Error>\",0,F1617*D1617)))))","v":""}]
[null,"643.0200","TRAFFIC CONTROL SURVEILLANCE AND MAINTENANCE (PROJECT)",null,"DAY"]
[null,"643.0300","TRAFFIC CONTROL DRUMS",null,"DAY"]
[null,"643.0405","TRAFFIC CONTROL BARRICADES TYPE I",null,"DAY"]
[null,"643.0410","TRAFFIC CONTROL BARRICADES TYPE II",null,"DAY"]
[null,"643.0420","TRAFFIC CONTROL BARRICADES TYPE III",null,"DAY"]
[null,"643.0453","TRAFFIC CONTROL BARRICADES PERMANENT TYPE III",null,"EACH"]
[null,"643.0500","TRAFFIC CONTROL FLEXIBLE TUBULAR MARKER POSTS",null,"EACH"]
[null,"643.0600","TRAFFIC CONTROL FLEXIBLE TUBULAR MARKER BASES",null,"EACH"]
[null,"643.0705","TRAFFIC CONTROL WARNING LIGHTS TYPE A",null,"DAY"]
[null,"643.0710","TRAFFIC CONTROL WARNING LIGHTS TYPE B",null,"DAY"]
[null,"643.0715","TRAFFIC CONTROL WARNING LIGHTS TYPE C",null,"DAY"]
[null,"643.0800","TRAFFIC CONTROL ARROW BOARDS",null,"DAY"]
[null,"643.0900","TRAFFIC CONTROL SIGNS",null,"DAY"]
[null,"643.0910","TRAFFIC CONTROL COVERING SIGNS TYPE I",null,"EACH"]
[null,"643.0920","TRAFFIC CONTROL COVERING SIGNS TYPE II",null,"EACH"]
[null,"643.1000","TRAFFIC CONTROL SIGNS FIXED MESSAGE",null,"SF"]
[null,"643.1050","TRAFFIC CONTROL SIGNS PCMS",null,"DAY"]
[null,"643.1055.S","TRUCK OR TRAILER MOUNTED ATTENUATOR",null,"DAY"]
[null,"643.2000","TRAFFIC CONTROL DETOUR (PROJECT)",null,"EACH"]
[null,"643.3000","TRAFFIC CONTROL DETOUR SIGNS",null,"DAY"]
[null,"645.0105","GEOTEXTILE FABRIC TYPE C",null,"SY"]
[null,"645.0111","GEOTEXTILE FABRIC TYPE DF SCHEDULE A",null,"SY"]
[null,"645.0112","GEOTEXTILE FABRIC TYPE DF SCHEDULE B",null,"SY"]
[null,"645.0113","GEOTEXTILE FABRIC TYPE DF SCHEDULE C",null,"SY"]
[null,"645.0115","GEOTEXTILE FABRIC TYPE ES",null,"SY"]
["x","645.0120","GEOTEXTILE FABRIC TYPE HR",{"$f":"[0]!TOTAL645.0120_0010+[0]!TOTAL645.0120_0020+[0]!TOTAL645.0120_0030+[0]!TOTAL645.0120_0040+[0]!TOTAL645.0120_0050","v":15.555555555555555},"SY",6,{"$f":"IF(A1643<>\"x\",\"\",IF(ISERROR(D1643),0,IF(D1643=\"\",0,IF(D1643=\" \",0,IF(D1643=\"<Error>\",0,F1643*D1643)))))","v":93.333333333333329}]
[null,"645.0125","GEOTEXTILE FABRIC TYPE MS",null,"SY"]
[null,"645.0130","GEOTEXTILE FABRIC TYPE R",null,"SY"]
[null,"645.0135","GEOTEXTILE FABRIC TYPE SR",null,"SY"]
[null,"645.0140","GEOTEXTILE FABRIC TYPE SAS",null,"SY"]
[null,"646.0101.S","PAVEMENT MARKING PAINT HIGH BUILD 4-INCH",null,"LF"]
[null,"646.0103","PAVEMENT MARKING PAINT 4-INCH",null,"LF"]
["x","646.0106","PAVEMENT MARKING EPOXY 4-INCH",{"$f":"[0]!TOTAL646.0106_0010+[0]!TOTAL646.0106_0020+[0]!TOTAL646.0106_0030+[0]!TOTAL646.0106_0040+[0]!TOTAL646.0106_0050","v":1755},"LF",5,{"$f":"IF(A1650<>\"x\",\"\",IF(ISERROR(D1650),0,IF(D1650=\"\",0,IF(D1650=\" \",0,IF(D1650=\"<Error>\",0,F1650*D1650)))))","v":8775}]
[null,"646.0109","PAVEMENT MARKING PREFORMED PLASTIC 4-INCH",null,"LF"]
[null,"646.0113","PAVEMENT MARKING PAINT 6-INCH",null,"LF"]
[null,"646.0116","PAVEMENT MARKING EPOXY 6-INCH",null,"LF"]
[null,"646.0119","PAVEMENT MARKING PREFORMED PLASTIC 6-INCH",null,"LF"]
[null,"646.0121.S","PAVEMENT MARKING PAINT HIGH BUILD 8-INCH",null,"LF"]
[null,"646.0123","PAVEMENT MARKING PAINT 8-INCH",null,"LF"]
[null,"646.0126","PAVEMENT MARKING EPOXY 8-INCH",null,"LF"]
[null,"646.0128","PAVEMENT MARKING PREFORMED THERMOPLASTIC 8-INCH",null,"LF"]
[null,"646.0129","PAVEMENT MARKING PREFORMED PLASTIC 8-INCH",null,"LF"]
[null,"646.0133","PAVEMENT MARKING PAINT 12-INCH",null,"LF"]
[null,"646.0136","PAVEMENT MARKING EPOXY 12-INCH",null,"LF"]
[null,"646.0138","PAVEMENT MARKING PREFORMED THERMOPLASTIC 12-INCH",null,"LF"]
[null,"646.0139","PAVEMENT MARKING PREFORMED PLASTIC 12-INCH",null,"LF"]
[null,"646.0143","PAVEMENT MARKING PAINT 16-INCH",null,"LF"]
[null,"646.0146","PAVEMENT MARKING EPOXY 16-INCH",null,"LF"]
[null,"646.0148","PAVEMENT MARKING PREFORMED THERMOPLASTIC 16-INCH",null,"LF"]
[null,"646.0149","PAVEMENT MARKING PREFORMED PLASTIC 16-INCH",null,"LF"]
[null,"646.0153","PAVEMENT MARKING PAINT 18-INCH",null,"LF"]
[null,"646.0156","PAVEMENT MARKING EPOXY 18-INCH",null,"LF"]
[null,"646.0158","PAVEMENT MARKING PREFORMED THERMOPLASTIC 18-INCH",null,"LF"]
[null,"646.0159","PAVEMENT MARKING PREFORMED PLASTIC 18-INCH",null,"LF"]
[null,"646.0406","PAVEMENT MARKING SAME DAY EPOXY 4-INCH",null,"LF"]
[null,"646.0600","REMOVING PAVEMENT MARKINGS",null,"LF"]
[null,"646.0790.S","REMOVING RAISED PAVEMENT MARKERS",null,"EACH"]
[null,"646.0805.S","PAVEMENT MARKING OUTFALL",null,"EACH"]
[null,"646.0841.S","PAVEMENT MARKING GROOVED WET REFLECTIVE CONTRAST TAPE 4-INCH",null,"LF"]
[null,"646.0843.S","PAVEMENT MARKING GROOVED WET REFLECTIVE CONTRAST TAPE 8-INCH",null,"LF"]
[null,"646.0871.S","PAVEMENT MARKING WET REFLECTIVE TAPE 4-INCH",null,"LF"]
[null,"646.0873.S","PAVEMENT MARKING WET REFLECTIVE TAPE 8-INCH",null,"LF"]
[null,"646.0881.S","PAVEMENT MARKING GROOVED WET REFLECTIVE TAPE 4-INCH",null,"LF"]
[null,"646.0883.S","PAVEMENT MARKING GROOVED WET REFLECTIVE TAPE 8-INCH",null,"LF"]
[null,"646.0900.S","PAVEMENT MARKING LATE SEASON",null,"LF"]
[null,"647.0105","PAVEMENT MARKING RAILROAD CROSSINGS PAINT",null,"EACH"]
[null,"647.0110","PAVEMENT MARKING RAILROAD CROSSINGS EPOXY",null,"EACH"]
[null,"647.0115","PAVEMENT MARKING RAILROAD CROSSINGS PREFORMED PLASTIC",null,"EACH"]
[null,"647.0118","PAVEMENT MARKING RAILROAD CROSSINGS PREFORMED THERMOPLASTIC",null,"EACH"]
[null,"647.0130","PAVEMENT MARKING ARROWS EPOXY TYPE 7R",null,"EACH"]
[null,"647.0131","PAVEMENT MARKING ARROWS PREFORMED THERMOPLASTIC TYPE 7R",null,"EACH"]
[null,"647.0132","PAVEMENT MARKING ARROWS PREFORMED PLASTIC TYPE 7R",null,"EACH"]
[null,"647.0136","PAVEMENT MARKING ARROWS EPOXY TYPE 7",null,"EACH"]
[null,"647.0138","PAVEMENT MARKING ARROWS PREFORMED THERMOPLASTIC TYPE 7",null,"EACH"]
[null,"647.0139","PAVEMENT MARKING ARROWS PREFORMED PLASTIC TYPE 7",null,"EACH"]
[null,"647.0140","PAVEMENT MARKING ARROWS EPOXY TYPE 6R",null,"EACH"]
[null,"647.0141","PAVEMENT MARKING ARROWS PREFORMED THERMOPLASTIC 6R",null,"EACH"]
[null,"647.0142","PAVEMENT MARKING ARROWS PREFORMED PLASTIC TYPE 6R",null,"EACH"]
[null,"647.0146","PAVEMENT MARKING ARROWS EPOXY TYPE 6",null,"EACH"]
[null,"647.0148","PAVEMENT MARKING ARROWS PREFORMED THERMOPLASTIC TYPE 6",null,"EACH"]
[null,"647.0149","PAVEMENT MARKING ARROWS PREFORMED PLASTIC TYPE 6",null,"EACH"]
[null,"647.0153","PAVEMENT MARKING ARROWS PAINT TYPE 1",null,"EACH"]
[null,"647.0156","PAVEMENT MARKING ARROWS EPOXY TYPE 1",null,"EACH"]
[null,"647.0158","PAVEMENT MARKING ARROWS PREFORMED THERMOPLASTIC TYPE 1",null,"EACH"]
[null,"647.0159","PAVEMENT MARKING ARROWS PREFORMED PLASTIC TYPE 1",null,"EACH"]
[null,"647.0160","PAVEMENT MARKING ARROWS EPOXY TYPE 2R",null,"EACH"]
[null,"647.0161","PAVEMENT MARKING ARROWS PREFORMED THERMOPLASTIC TYPE 2R",null,"EACH"]
[null,"647.0162","PAVEMENT MARKING ARROWS PREFORMED PLASTIC TYPE 2R",null,"EACH"]
[null,"647.0163","PAVEMENT MARKING ARROWS PAINT TYPE 2",null,"EACH"]
[null,"647.0166","PAVEMENT MARKING ARROWS EPOXY TYPE 2",null,"EACH"]
[null,"647.0168","PAVEMENT MARKING ARROWS PREFORMED THERMOPLASTIC TYPE 2",null,"EACH"]
[null,"647.0169","PAVEMENT MARKING ARROWS PREFORMED PLASTIC TYPE 2",null,"EACH"]
[null,"647.0170","PAVEMENT MARKING ARROWS EPOXY TYPE 3R",null,"EACH"]
[null,"647.0171","PAVEMENT MARKING ARROW PREFORMED THERMOPLASTIC TYPE 3R",null,"EACH"]
[null,"647.0172","PAVEMENT MARKING ARROWS PREFORMED PLASTIC TYPE 3R",null,"EACH"]
[null,"647.0173","PAVEMENT MARKING ARROWS PAINT TYPE 3",null,"EACH"]
[null,"647.0176","PAVEMENT MARKING ARROWS EPOXY TYPE 3",null,"EACH"]
[null,"647.0178","PAVEMENT MARKING ARROWS PREFORMED THERMOPLASTIC TYPE 3",null,"EACH"]
[null,"647.0179","PAVEMENT MARKING ARROWS PREFORMED PLASTIC TYPE 3",null,"EACH"]
[null,"647.0183","PAVEMENT MARKING ARROWS PAINT TYPE 4",null,"EACH"]
[null,"647.0186","PAVEMENT MARKING ARROWS EPOXY TYPE 4",null,"EACH"]
[null,"647.0188","PAVEMENT MARKING ARROWS PREFORMED THERMOPLASTIC TYPE 4",null,"EACH"]
[null,"647.0189","PAVEMENT MARKING ARROWS PREFORMED PLASTIC TYPE 4",null,"EACH"]
[null,"647.0193","PAVEMENT MARKING ARROWS PAINT TYPE 5",null,"EACH"]
[null,"647.0196","PAVEMENT MARKING ARROWS EPOXY TYPE 5",null,"EACH"]
[null,"647.0198","PAVEMENT MARKING ARROWS PREFORMED THERMOPLASTIC TYPE 5",null,"EACH"]
[null,"647.0199","PAVEMENT MARKING ARROWS PREFORMED PLASTIC TYPE 5",null,"EACH"]
[null,"647.0203","PAVEMENT MARKING ARROWS BIKE LANE PAINT",null,"EACH"]
[null,"647.0206","PAVEMENT MARKING ARROWS BIKE LANE EPOXY",null,"EACH"]
[null,"647.0208","PAVEMENT MARKING ARROWS BIKE LANE PREFORMED THERMOPLASTIC",null,"EACH"]
[null,"647.0209","PAVEMENT MARKING ARROWS BIKE LANE PREFORMED PLASTIC",null,"EACH"]
[null,"647.0253","PAVEMENT MARKING SYMBOLS PAINT",null,"EACH"]
[null,"647.0256","PAVEMENT MARKING SYMBOLS EPOXY",null,"EACH"]
[null,"647.0258","PAVEMENT MARKING SYMBOLS PREFORMED THERMOPLASTIC",null,"EACH"]
[null,"647.0259","PAVEMENT MARKING SYMBOLS PREFORMED PLASTIC",null,"EACH"]
[null,"647.0303","PAVEMENT MARKING SYMBOLS BIKE LANE PAINT",null,"EACH"]
[null,"647.0306","PAVEMENT MARKING SYMBOLS BIKE LANE EPOXY",null,"EACH"]
[null,"647.0308","PAVEMENT MARKING SYMBOLS BIKE LANE PREFORMED THERMOPLASTIC",null,"EACH"]
[null,"647.0309","PAVEMENT MARKING SYMBOLS BIKE LANE PREFORMED PLASTIC",null,"EACH"]
[null,"647.0313","PAVEMENT MARKING SYMBOLS BIKE DETECTOR PAINT",null,"EACH"]
[null,"647.0316","PAVEMENT MARKING SYMBOLS BIKE DETECTOR EPOXY",null,"EACH"]
[null,"647.0318","PAVEMENT MARKING SYMBOLS BIKE DETECTOR PREFORMED THERMOPLASTIC",null,"EACH"]
[null,"647.0319","PAVEMENT MARKING SYMBOLS BIKE DETECTOR PREFORMED PLASTIC",null,"EACH"]
[null,"647.0323","PAVEMENT MARKING SYMBOLS BIKE CROSSING PAINT",null,"EACH"]
[null,"647.0326","PAVEMENT MARKING SYMBOLS BIKE CROSSING EPOXY",null,"EACH"]
[null,"647.0328","PAVEMENT MARKING SYMBOLS BIKE CROSSING PREFORMED THERMOPLASTIC",null,"EACH"]
[null,"647.0329","PAVEMENT MARKING SYMBOLS BIKE CROSSING PREFORMED PLASTIC",null,"EACH"]
[null,"647.0333","PAVEMENT MARKING SYMBOLS BIKE SHARED LANE PAINT",null,"EACH"]
[null,"647.0336","PAVEMENT MARKING SYMBOLS BIKE SHARED LANE EPOXY",null,"EACH"]
[null,"647.0338","PAVEMENT MARKING SYMBOLS BIKE SHARED LANE PREFORMED THERMOPLASTIC",null,"EACH"]
[null,"647.0339","PAVEMENT MARKING SYMBOLS BIKE SHARED LANE PREFORMED PLASTIC",null,"EACH"]
[null,"647.0353","PAVEMENT MARKING WORDS PAINT",null,"EACH"]
[null,"647.0356","PAVEMENT MARKING WORDS EPOXY",null,"EACH"]
[null,"647.0358","PAVEMENT MARKING WORDS PREFORMED THERMOPLASTIC",null,"EACH"]
[null,"647.0359","PAVEMENT MARKING WORDS PREFORMED PLASTIC",null,"EACH"]
[null,"647.0403","PAVEMENT MARKING WORDS BIKE LANE PAINT",null,"EACH"]
[null,"647.0406","PAVEMENT MARKING WORDS BIKE LANE EPOXY",null,"EACH"]
[null,"647.0408","PAVEMENT MARKING WORDS BIKE LANE PREFORMED THERMOPLASTIC",null,"EACH"]
[null,"647.0409","PAVEMENT MARKING WORDS BIKE LANE PREFORMED PLASTIC",null,"EACH"]
[null,"647.0453","PAVEMENT MARKING CURB PAINT",null,"LF"]
[null,"647.0456","PAVEMENT MARKING CURB EPOXY",null,"LF"]
[null,"647.0503","PAVEMENT MARKING CURB RAMP PAINT",null,"LF"]
[null,"647.0506","PAVEMENT MARKING CURB RAMP EPOXY",null,"LF"]
[null,"647.0509","PAVEMENT MARKING CURB RAMP PREFORMED PLASTIC",null,"LF"]
[null,"647.0523","PAVEMENT MARKING YIELD LINE SYMBOLS PAINT 18-INCH",null,"EACH"]
[null,"647.0526","PAVEMENT MARKING YIELD LINE SYMBOLS EPOXY 18-INCH",null,"EACH"]
[null,"647.0528","PAVEMENT MARKING YIELD LINE SYMBOLS PREFORMED THERMOPLASTIC 18-INCH",null,"EACH"]
[null,"647.0529","PAVEMENT MARKING YIELD LINE SYMBOLS PREFORMED PLASTIC 18-INCH",null,"EACH"]
[null,"647.0543","PAVEMENT MARKING YIELD LINE SYMBOLS PAINT 36-INCH",null,"EACH"]
[null,"647.0546","PAVEMENT MARKING YIELD LINE SYMBOLS EPOXY 36-INCH",null,"EACH"]
[null,"647.0548","PAVEMENT MARKING YIELD LINE SYMBOLS PREFORMED THERMOPLASTIC 36-INCH",null,"EACH"]
[null,"647.0549","PAVEMENT MARKING YIELD LINE SYMBOLS PREFORMED PLASTIC 36-INCH",null,"EACH"]
[null,"647.0553","PAVEMENT MARKING STOP LINE PAINT 12-INCH",null,"LF"]
[null,"647.0556","PAVEMENT MARKING STOP LINE EPOXY 12-INCH",null,"LF"]
[null,"647.0558","PAVEMENT MARKING STOP LINE PREFORMED THERMOPLASTIC 12-INCH",null,"LF"]
[null,"647.0559","PAVEMENT MARKING STOP LINE PREFORMED PLASTIC 12-INCH",null,"LF"]
[null,"647.0563","PAVEMENT MARKING STOP LINE PAINT 18-INCH",null,"LF"]
[null,"647.0566","PAVEMENT MARKING STOP LINE EPOXY 18-INCH",null,"LF"]
[null,"647.0568","PAVEMENT MARKING STOP LINE PREFORMED THERMOPLASTIC 18-INCH",null,"LF"]
[null,"647.0569","PAVEMENT MARKING STOP LINE PREFORMED PLASTIC 18-INCH",null,"LF"]
[null,"647.0573","PAVEMENT MARKING STOP LINE PAINT 24-INCH",null,"LF"]
[null,"647.0576","PAVEMENT MARKING STOP LINE EPOXY 24-INCH",null,"LF"]
[null,"647.0578","PAVEMENT MARKING STOP LINE PREFORMED THERMOPLASTIC 24-INCH",null,"LF"]
[null,"647.0579","PAVEMENT MARKING STOP LINE PREFORMED PLASTIC 24-INCH",null,"LF"]
[null,"647.0603","PAVEMENT MARKING ISLAND NOSE PAINT",null,"EACH"]
[null,"647.0606","PAVEMENT MARKING ISLAND NOSE EPOXY",null,"EACH"]
[null,"647.0653","PAVEMENT MARKING PARKING STALL PAINT",null,"LF"]
[null,"647.0656","PAVEMENT MARKING PARKING STALL EPOXY",null,"LF"]
[null,"647.0658","PAVEMENT MARKING PARKING STALL PERFORMED THERMOPLASTIC",null,"LF"]
[null,"647.0659","PAVEMENT MARKING PARKING STALL PREFORMED PLASTIC",null,"LF"]
[null,"647.0706","PAVEMENT MARKING DIAGONAL EPOXY 6-INCH",null,"LF"]
[null,"647.0713","PAVEMENT MARKING DIAGONAL PAINT 8-INCH",null,"LF"]
[null,"647.0716","PAVEMENT MARKING DIAGONAL EPOXY 8-INCH",null,"LF"]
[null,"647.0718","PAVEMENT MARKING DIAGONAL PREFORMED THERMOPLASTIC 8-INCH",null,"LF"]
[null,"647.0719","PAVEMENT MARKING DIAGONAL PREFORMED PLASTIC 8-INCH",null,"LF"]
[null,"647.0723","PAVEMENT MARKING DIAGONAL PAINT 12-INCH",null,"LF"]
[null,"647.0726","PAVEMENT MARKING DIAGONAL EPOXY 12-INCH",null,"LF"]
[null,"647.0728","PAVEMENT MARKING DIAGONAL PREFORMED THERMOPLASTIC 12-INCH",null,"LF"]
[null,"647.0729","PAVEMENT MARKING DIAGONAL PREFORMED PLASTIC 12-INCH",null,"LF"]
[null,"647.0733","PAVEMENT MARKING DIAGONAL PAINT 18-INCH",null,"LF"]
[null,"647.0736","PAVEMENT MARKING DIAGONAL EPOXY 18-INCH",null,"LF"]
[null,"647.0738","PAVEMENT MARKING DIAGONAL PREFORMED THERMOPLASTIC 18-INCH",null,"LF"]
[null,"647.0739","PAVEMENT MARKING DIAGONAL PREFORMED PLASTIC 18-INCH",null,"LF"]
[null,"647.0743","PAVEMENT MARKING DIAGONAL PAINT 24-INCH",null,"LF"]
[null,"647.0746","PAVEMENT MARKING DIAGONAL EPOXY 24-INCH",null,"LF"]
[null,"647.0748","PAVEMENT MARKING DIAGONAL PREFORMED THERMOPLASTIC 24-INCH",null,"LF"]
[null,"647.0749","PAVEMENT MARKING DIAGONAL PREFORMED PLASTIC 24-INCH",null,"LF"]
[null,"647.0763","PAVEMENT MARKING CROSSWALK PAINT 6-INCH",null,"LF"]
[null,"647.0766","PAVEMENT MARKING CROSSWALK EPOXY 6-INCH",null,"LF"]
[null,"647.0768","PAVEMENT MARKING CROSSWALK PREFORMED THERMOPLASTIC 6-INCH",null,"LF"]
[null,"647.0769","PAVEMENT MARKING CROSSWALK PREFORMED PLASTIC 6-INCH",null,"LF"]
[null,"647.0773","PAVEMENT MARKING CROSSWALK PAINT 12-INCH",null,"LF"]
[null,"647.0776","PAVEMENT MARKING CROSSWALK EPOXY 12-INCH",null,"LF"]
[null,"647.0778","PAVEMENT MARKING CROSSWALK PREFORMED THERMOPLASTIC 12-INCH",null,"LF"]
[null,"647.0779","PAVEMENT MARKING CROSSWALK PREFORMED PLASTIC 12-INCH",null,"LF"]
[null,"647.0783","PAVEMENT MARKING CROSSWALK PAINT 18-INCH",null,"LF"]
[null,"647.0786","PAVEMENT MARKING CROSSWALK EPOXY 18-INCH",null,"LF"]
[null,"647.0788","PAVEMENT MARKING CROSSWALK PREFORMED THERMOPLASTIC 18-INCH",null,"LF"]
[null,"647.0789","PAVEMENT MARKING CROSSWALK PREFORMED PLASTIC 18-INCH",null,"LF"]
[null,"647.0793","PAVEMENT MARKING CROSSWALK PAINT 24-INCH",null,"LF"]
[null,"647.0796","PAVEMENT MARKING CROSSWALK EPOXY 24-INCH",null,"LF"]
[null,"647.0798","PAVEMENT MARKING CROSSWALK PREFORMED THERMOPLASTIC 24-INCH",null,"LF"]
[null,"647.0799","PAVEMENT MARKING CROSSWALK PREFORMED PLASTIC 24-INCH",null,"LF"]
[null,"647.0803","PAVEMENT MARKING AERIAL ENFORCEMENT BARS EPOXY 24-INCH",null,"LF"]
[null,"647.0806","PAVEMENT MARKING AERIAL ENFORCEMENT BARS PREFORMED PLASTIC 24-INCH",null,"LF"]
[null,"647.0808","PAVEMENT MARKING AERIAL ENFORCEMENT BARS PREFORMED THERMOPLASTIC 24-INCH",null,"LF"]
[null,"647.0853","PAVEMENT MARKING CONCRETE CORRUGATED MEDIAN PAINT",null,"SF"]
[null,"647.0856","PAVEMENT MARKING CONCRETE CORRUGATED MEDIAN EPOXY",null,"SF"]
[null,"647.0955","REMOVING PAVEMENT MARKINGS ARROWS",null,"EACH"]
[null,"647.0960","REMOVING PAVEMENT MARKINGS SYMBOLS",null,"EACH"]
[null,"647.0965","REMOVING PAVEMENT MARKINGS WORDS",null,"EACH"]
["x","648.0100","LOCATING NO-PASSING ZONES",{"$f":"[0]!TOTAL648.0100_0010+[0]!TOTAL648.0100_0020+[0]!TOTAL648.0100_0030+[0]!TOTAL648.0100_0040+[0]!TOTAL648.0100_0050","v":0.13},"MI",3500,{"$f":"IF(A1829<>\"x\",\"\",IF(ISERROR(D1829),0,IF(D1829=\"\",0,IF(D1829=\" \",0,IF(D1829=\"<Error>\",0,F1829*D1829)))))","v":455}]
[null,"649.0100","TEMPORARY PAVEMENT MARKING 4-INCH",null,"LF"]
[null,"649.0200","TEMPORARY PAVEMENT MARKING REFLECTIVE PAINT 4-INCH",null,"LF"]
[null,"649.0300","TEMPORARY PAVEMENT MARKING REFLECTIVE TAPE 4-INCH",null,"LF"]
[null,"649.0400","TEMPORARY PAVEMENT MARKING REMOVABLE TAPE 4-INCH",null,"LF"]
[null,"649.0600","TEMPORARY PAVEMENT MARKING REMOVABLE TAPE 6-INCH",null,"LF"]
[null,"649.0701","TEMPORARY PAVEMENT MARKING 8-INCH",null,"LF"]
[null,"649.0801","TEMPORARY PAVEMENT MARKING REMOVABLE TAPE 8-INCH",null,"LF"]
[null,"649.0900","TEMPORARY PAVEMENT MARKING STOP LINE 12-INCH",null,"LF"]
[null,"649.1000","TEMPORARY PAVEMENT MARKING STOP LINE REMOVABLE TAPE 12-INCH",null,"LF"]
[null,"649.1100","TEMPORARY PAVEMENT MARKING STOP LINE 18-INCH",null,"LF"]
[null,"649.1200","TEMPORARY PAVEMENT MARKING STOP LINE REMOVABLE TAPE 18-INCH",null,"LF"]
[null,"649.1300","TEMPORARY PAVEMENT MARKING STOP LINE 24-INCH",null,"LF"]
[null,"649.1400","TEMPORARY PAVEMENT MARKING STOP LINE REMOVABLE TAPE 24-INCH",null,"LF"]
[null,"649.1500","TEMPORARY PAVEMENT MARKING DIAGONAL 12-INCH",null,"LF"]
[null,"649.1600","TEMPORARY PAVEMENT MARKING DIAGONAL REMOVABLE TAPE 12-INCH",null,"LF"]
[null,"649.1700","TEMPORARY PAVEMENT MARKING ARROWS",null,"EACH"]
[null,"649.1800","TEMPORARY PAVEMENT MARKING ARROWS REMOVABLE TAPE",null,"EACH"]
[null,"649.1900","TEMPORARY PAVEMENT MARKING WORDS",null,"EACH"]
[null,"649.2000","TEMPORARY PAVEMENT MARKING WORDS REMOVABLE TAPE",null,"EACH"]
[null,"649.2100","TEMPORARY RAISED PAVEMENT MARKERS",null,"EACH"]
[null,"650.4000","CONSTRUCTION STAKING STORM SEWER",null,"EACH"]
[null,"650.4500","CONSTRUCTION STAKING SUBGRADE",null,"LF"]
[null,"650.5000","CONSTRUCTION STAKING BASE",null,"LF"]
[null,"650.5500","CONSTRUCTION STAKING CURB GUTTER AND CURB & GUTTER",null,"LF"]
["x","650.6000","CONSTRUCTION STAKING PIPE CULVERTS",{"$f":"[0]!TOTAL650.6000_0010+[0]!TOTAL650.6000_0020+[0]!TOTAL650.6000_0030+[0]!TOTAL650.6000_0040+[0]!TOTAL650.6000_0050","v":1},"EACH",125,{"$f":"IF(A1854<>\"x\",\"\",IF(ISERROR(D1854),0,IF(D1854=\"\",0,IF(D1854=\" \",0,IF(D1854=\"<Error>\",0,F1854*D1854)))))","v":125}]
[null,"650.6500","CONSTRUCTION STAKING STRUCTURE LAYOUT (STRUCTURE)",null,"LS"]
[null,"650.7000","CONSTRUCTION STAKING CONCRETE PAVEMENT",null,"LF"]
[null,"650.7500","CONSTRUCTION STAKING CONCRETE BARRIER",null,"LF"]
[null,"650.8000","CONSTRUCTION STAKING RESURFACING REFERENCE",null,"LF"]
[null,"650.8500","CONSTRUCTION STAKING ELECTRICAL INSTALLATIONS (PROJECT)",null,"LS"]
[null,"650.9910","CONSTRUCTION STAKING SUPPLEMENTAL CONTROL (PROJECT)",null,"LS"]
[null,"650.9920","CONSTRUCTION STAKING SLOPE STAKES",null,"LF"]
[null,"651.1000.S","SIGNAL CONTROLLER TRAINING",null,"LS"]
[null,"652.0105","CONDUIT RIGID METALLIC 3/4-INCH",null,"LF"]
[null,"652.0110","CONDUIT RIGID METALLIC 1-INCH",null,"LF"]
[null,"652.0115","CONDUIT RIGID METALLIC 1 1/4-INCH",null,"LF"]
[null,"652.0120","CONDUIT RIGID METALLIC 1 1/2-INCH",null,"LF"]
[null,"652.0125","CONDUIT RIGID METALLIC 2-INCH",null,"LF"]
[null,"652.0130","CONDUIT RIGID METALLIC 2 1/2-INCH",null,"LF"]
[null,"652.0135","CONDUIT RIGID METALLIC 3-INCH",null,"LF"]
[null,"652.0140","CONDUIT RIGID METALLIC 3 1/2-INCH",null,"LF"]
[null,"652.0145","CONDUIT RIGID METALLIC 4-INCH",null,"LF"]
[null,"652.0205","CONDUIT RIGID NONMETALLIC SCHEDULE 40 3/4-INCH",null,"LF"]
[null,"652.0210","CONDUIT RIGID NONMETALLIC SCHEDULE 40 1-INCH",null,"LF"]
[null,"652.0215","CONDUIT RIGID NONMETALLIC SCHEDULE 40 1 1/4-INCH",null,"LF"]
[null,"652.0220","CONDUIT RIGID NONMETALLIC SCHEDULE 40 1 1/2-INCH",null,"LF"]
[null,"652.0225","CONDUIT RIGID NONMETALLIC SCHEDULE 40 2-INCH",null,"LF"]
[null,"652.0230","CONDUIT RIGID NONMETALLIC SCHEDULE 40 2 1/2-INCH",null,"LF"]
[null,"652.0235","CONDUIT RIGID NONMETALLIC SCHEDULE 40 3-INCH",null,"LF"]
[null,"652.0240","CONDUIT RIGID NONMETALLIC SCHEDULE 40 4-INCH",null,"LF"]
[null,"652.0305","CONDUIT RIGID NONMETALLIC SCHEDULE 80 3/4-INCH",null,"LF"]
[null,"652.0310","CONDUIT RIGID NONMETALLIC SCHEDULE 80 1-INCH",null,"LF"]
[null,"652.0315","CONDUIT RIGID NONMETALLIC SCHEDULE 80 1 1/4-INCH",null,"LF"]
[null,"652.0320","CONDUIT RIGID NONMETALLIC SCHEDULE 80 1 1/2-INCH",null,"LF"]
[null,"652.0325","CONDUIT RIGID NONMETALLIC SCHEDULE 80 2-INCH",null,"LF"]
[null,"652.0330","CONDUIT RIGID NONMETALLIC SCHEDULE 80 2 1/2-INCH",null,"LF"]
[null,"652.0335","CONDUIT RIGID NONMETALLIC SCHEDULE 80 3-INCH",null,"LF"]
[null,"652.0340","CONDUIT RIGID NONMETALLIC SCHEDULE 80 4-INCH",null,"LF"]
[null,"652.0405","CONDUIT REINFORCED THERMOSETTING RESIN 2-INCH",null,"LF"]
[null,"652.0410","CONDUIT REINFORCED THERMOSETTING RESIN 3-INCH",null,"LF"]
[null,"652.0415","CONDUIT REINFORCED THERMOSETTING RESIN 4-INCH",null,"LF"]
[null,"652.0605","CONDUIT SPECIAL 2-INCH",null,"LF"]
[null,"652.0610","CONDUIT SPECIAL 2 1/2-INCH",null,"LF"]
[null,"652.0615","CONDUIT SPECIAL 3-INCH",null,"LF"]
[null,"652.0620","CONDUIT SPECIAL 3 1/2-INCH",null,"LF"]
[null,"652.0625","CONDUIT SPECIAL 4-INCH",null,"LF"]
[null,"652.0690","CONDUIT SPECIAL (INCH)",null,"LF"]
[null,"652.0700.S","INSTALL CONDUIT INTO EXISTING ITEM",null,"EACH"]
[null,"652.0800","CONDUIT LOOP DETECTOR",null,"LF"]
[null,"652.0900","LOOP DETECTOR SLOTS",null,"LF"]
[null,"653.0105","PULL BOXES STEEL 12X24-INCH",null,"EACH"]
[null,"653.0110","PULL BOXES STEEL 12X30-INCH",null,"EACH"]
[null,"653.0115","PULL BOXES STEEL 12X36-INCH",null,"EACH"]
[null,"653.0120","PULL BOXES STEEL 18X24-INCH",null,"EACH"]
[null,"653.0125","PULL BOXES STEEL 18X30-INCH",null,"EACH"]
[null,"653.0130","PULL BOXES STEEL 18X36-INCH",null,"EACH"]
[null,"653.0135","PULL BOXES STEEL 24X36-INCH",null,"EACH"]
[null,"653.0140","PULL BOXES STEEL 24X42-INCH",null,"EACH"]
[null,"653.0145","PULL BOXES STEEL 24X48-INCH",null,"EACH"]
[null,"653.0180","PULL BOXES STEEL COMMUNICATIONS (INCH)",null,"EACH"]
[null,"653.0208","JUNCTION BOXES 8X8X8-INCH",null,"EACH"]
[null,"653.0220","JUNCTION BOXES 18X6X6-INCH",null,"EACH"]
[null,"653.0222","JUNCTION BOXES 18X12X6-INCH",null,"EACH"]
[null,"653.0900","ADJUSTING PULL BOXES",null,"EACH"]
[null,"653.0905","REMOVING PULL BOXES",null,"EACH"]
[null,"654.0101","CONCRETE BASES TYPE 1",null,"EACH"]
[null,"654.0102","CONCRETE BASES TYPE 2",null,"EACH"]
[null,"654.0105","CONCRETE BASES TYPE 5",null,"EACH"]
[null,"654.0106","CONCRETE BASES TYPE 6",null,"EACH"]
[null,"654.0107","CONCRETE BASES TYPE 7",null,"EACH"]
[null,"654.0108","CONCRETE BASES TYPE 8",null,"EACH"]
[null,"654.0110","CONCRETE BASES TYPE 10",null,"EACH"]
[null,"654.0111","CONCRETE BASES TYPE 11",null,"EACH"]
[null,"654.0113","CONCRETE BASES TYPE 13",null,"EACH"]
[null,"654.0200","CONCRETE CONTROL CABINET BASES TYPE 6",null,"EACH"]
[null,"654.0205","CONCRETE CONTROL CABINET BASES TYPE 7",null,"EACH"]
[null,"654.0210","CONCRETE CONTROL CABINET BASES TYPE 8",null,"EACH"]
[null,"654.0215","CONCRETE CONTROL CABINET BASES TYPE 9",null,"EACH"]
[null,"654.0217","CONCRETE CONTROL CABINET BASES TYPE 9 SPECIAL",null,"EACH"]
[null,"654.0220","CONCRETE CONTROL CABINET BASES TYPE 10",null,"EACH"]
[null,"654.0224","CONCRETE CONTROL CABINET BASES TYPE L24",null,"EACH"]
[null,"654.0230","CONCRETE CONTROL CABINET BASES TYPE L30",null,"EACH"]
[null,"655.0102","CABLE IN DUCT 2-2 AWG",null,"LF"]
[null,"655.0104","CABLE IN DUCT 2-4 AWG",null,"LF"]
[null,"655.0106","CABLE IN DUCT 2-6 AWG",null,"LF"]
[null,"655.0108","CABLE IN DUCT 2-8 AWG",null,"LF"]
[null,"655.0110","CABLE IN DUCT 2-10 AWG",null,"LF"]
[null,"655.0122","CABLE IN DUCT 3-2 AWG",null,"LF"]
[null,"655.0124","CABLE IN DUCT 3-4 AWG",null,"LF"]
[null,"655.0126","CABLE IN DUCT 3-6 AWG",null,"LF"]
[null,"655.0128","CABLE IN DUCT 3-8 AWG",null,"LF"]
[null,"655.0130","CABLE IN DUCT 3-10 AWG",null,"LF"]
[null,"655.0144","CABLE IN DUCT 4-4 AWG",null,"LF"]
[null,"655.0146","CABLE IN DUCT 4-6 AWG",null,"LF"]
[null,"655.0148","CABLE IN DUCT 4-8 AWG",null,"LF"]
[null,"655.0150","CABLE IN DUCT 4-10 AWG",null,"LF"]
[null,"655.0205","CABLE TRAFFIC SIGNAL 3-12 AWG",null,"LF"]
[null,"655.0210","CABLE TRAFFIC SIGNAL 3-14 AWG",null,"LF"]
[null,"655.0215","CABLE TRAFFIC SIGNAL 4-12 AWG",null,"LF"]
[null,"655.0220","CABLE TRAFFIC SIGNAL 4-14 AWG",null,"LF"]
[null,"655.0223","CABLE TRAFFIC SIGNAL 5-10 AWG",null,"LF"]
[null,"655.0225","CABLE TRAFFIC SIGNAL 5-12 AWG",null,"LF"]
[null,"655.0230","CABLE TRAFFIC SIGNAL 5-14 AWG",null,"LF"]
[null,"655.0233","CABLE TRAFFIC SIGNAL 7-10 AWG",null,"LF"]
[null,"655.0235","CABLE TRAFFIC SIGNAL 7-12 AWG",null,"LF"]
[null,"655.0240","CABLE TRAFFIC SIGNAL 7-14 AWG",null,"LF"]
[null,"655.0243","CABLE TRAFFIC SIGNAL 9-10 AWG",null,"LF"]
[null,"655.0245","CABLE TRAFFIC SIGNAL 9-12 AWG",null,"LF"]
[null,"655.0250","CABLE TRAFFIC SIGNAL 9-14 AWG",null,"LF"]
[null,"655.0253","CABLE TRAFFIC SIGNAL 12-10 AWG",null,"LF"]
[null,"655.0255","CABLE TRAFFIC SIGNAL 12-12 AWG",null,"LF"]
[null,"655.0260","CABLE TRAFFIC SIGNAL 12-14 AWG",null,"LF"]
[null,"655.0263","CABLE TRAFFIC SIGNAL 15-10 AWG",null,"LF"]
[null,"655.0265","CABLE TRAFFIC SIGNAL 15-12 AWG",null,"LF"]
[null,"655.0270","CABLE TRAFFIC SIGNAL 15-14 AWG",null,"LF"]
[null,"655.0273","CABLE TRAFFIC SIGNAL 19-10 AWG",null,"LF"]
[null,"655.0275","CABLE TRAFFIC SIGNAL 19-12 AWG",null,"LF"]
[null,"655.0280","CABLE TRAFFIC SIGNAL 19-14 AWG",null,"LF"]
[null,"655.0285","CABLE TRAFFIC SIGNAL 21-12 AWG",null,"LF"]
[null,"655.0290","CABLE TRAFFIC SIGNAL 21-14 AWG",null,"LF"]
[null,"655.0305","CABLE TYPE UF 2-12 AWG GROUNDED",null,"LF"]
[null,"655.0310","CABLE TYPE UF 2-12 AWG",null,"LF"]
[null,"655.0315","CABLE TYPE UF 2-10 AWG",null,"LF"]
[null,"655.0320","CABLE TYPE UF 2-10 AWG GROUNDED",null,"LF"]
[null,"655.0400","COMMUNICATION CABLE PLOWED",null,"LF"]
[null,"655.0405","COMMUNICATION CABLE TRENCHED",null,"LF"]
[null,"655.0410","COMMUNICATION CABLE INSTALLED IN CONDUIT",null,"LF"]
[null,"655.0505","ELECTRICAL WIRE TRAFFIC SIGNALS 14 AWG",null,"LF"]
[null,"655.0510","ELECTRICAL WIRE TRAFFIC SIGNALS 12 AWG",null,"LF"]
[null,"655.0515","ELECTRICAL WIRE TRAFFIC SIGNALS 10 AWG",null,"LF"]
[null,"655.0520","ELECTRICAL WIRE TRAFFIC SIGNALS 8 AWG",null,"LF"]
[null,"655.0525","ELECTRICAL WIRE TRAFFIC SIGNALS 6 AWG",null,"LF"]
[null,"655.0530","ELECTRICAL WIRE TRAFFIC SIGNALS 4 AWG",null,"LF"]
[null,"655.0535","ELECTRICAL WIRE TRAFFIC SIGNALS 2 AWG",null,"LF"]
[null,"655.0610","ELECTRICAL WIRE LIGHTING 12 AWG",null,"LF"]
[null,"655.0615","ELECTRICAL WIRE LIGHTING 10 AWG",null,"LF"]
[null,"655.0620","ELECTRICAL WIRE LIGHTING 8 AWG",null,"LF"]
[null,"655.0625","ELECTRICAL WIRE LIGHTING 6 AWG",null,"LF"]
[null,"655.0630","ELECTRICAL WIRE LIGHTING 4 AWG",null,"LF"]
[null,"655.0635","ELECTRICAL WIRE LIGHTING 2 AWG",null,"LF"]
[null,"655.0640","ELECTRICAL WIRE LIGHTING 1 AWG",null,"LF"]
[null,"655.0645","ELECTRICAL WIRE LIGHTING 1/0 AWG",null,"LF"]
[null,"655.0700","LOOP DETECTOR LEAD IN CABLE",null,"LF"]
[null,"655.0800","LOOP DETECTOR WIRE",null,"LF"]
[null,"655.0900","TRAFFIC SIGNAL EVP DETECTOR CABLE",null,"LF"]
[null,"656.0100","ELECTRICAL SERVICE METER SOCKET (LOCATION)",null,"LS"]
[null,"656.0200","ELECTRICAL SERVICE METER BREAKER PEDESTAL (LOCATION)",null,"LS"]
[null,"656.0300","ELECTRICAL SERVICE UNMETERED (LOCATION)",null,"LS"]
[null,"656.0400","ELECTRICAL SERVICE MAIN LUGS ONLY METER PEDESTAL (LOCATION)",null,"LS"]
[null,"656.0500","ELECTRICAL SERVICE BREAKER DISCONNECT BOX (LOCATION)",null,"LS"]
[null,"657.0100","PEDESTAL BASES",null,"EACH"]
[null,"657.0205","TRANSFORMER BASES BREAKAWAY 13-15 INCH BOLT CIRCLE",null,"EACH"]
[null,"657.0210","TRANSFORMER BASES BREAKAWAY 15-17 INCH BOLT CIRCLE",null,"EACH"]
[null,"657.0255","TRANSFORMER BASES BREAKAWAY 11 1/2-INCH BOLT CIRCLE",null,"EACH"]
[null,"657.0305","POLES TYPE 2",null,"EACH"]
[null,"657.0310","POLES TYPE 3",null,"EACH"]
[null,"657.0315","POLES TYPE 4",null,"EACH"]
[null,"657.0321","POLES TYPE 5-STEEL",null,"EACH"]
[null,"657.0322","POLES TYPE 5-ALUMINUM",null,"EACH"]
[null,"657.0326","POLES TYPE 6-STEEL",null,"EACH"]
[null,"657.0327","POLES TYPE 6-ALUMINUM",null,"EACH"]
[null,"657.0330","POLES TYPE 7",null,"EACH"]
[null,"657.0336","POLES TYPE 17-STEEL",null,"EACH"]
[null,"657.0337","POLES TYPE 17-ALUMINUM",null,"EACH"]
[null,"657.0375","POLES TYPE A",null,"EACH"]
[null,"657.0380","POLES TYPE E",null,"EACH"]
[null,"657.0405","TRAFFIC SIGNAL STANDARDS ALUMINUM 3.5-FT",null,"EACH"]
[null,"657.0410","TRAFFIC SIGNAL STANDARDS ALUMINUM 9-FT",null,"EACH"]
[null,"657.0415","TRAFFIC SIGNAL STANDARDS ALUMINUM 11-FT",null,"EACH"]
[null,"657.0420","TRAFFIC SIGNAL STANDARDS ALUMINUM 13-FT",null,"EACH"]
[null,"657.0425","TRAFFIC SIGNAL STANDARDS ALUMINUM 15-FT",null,"EACH"]
[null,"657.0430","TRAFFIC SIGNAL STANDARDS ALUMINUM 10-FT",null,"EACH"]
[null,"657.0585","TROMBONE ARMS 15-FT",null,"EACH"]
[null,"657.0590","TROMBONE ARMS 20-FT",null,"EACH"]
[null,"657.0595","TROMBONE ARMS 25-FT",null,"EACH"]
[null,"657.0605","LUMINAIRE ARMS SINGLE MEMBER 4 1/2-INCH CLAMP 4-FT",null,"EACH"]
[null,"657.0609","LUMINAIRE ARMS SINGLE MEMBER 4-INCH CLAMP 6-FT",null,"EACH"]
[null,"657.0610","LUMINAIRE ARMS SINGLE MEMBER 4 1/2-INCH CLAMP 6-FT",null,"EACH"]
[null,"657.0614","LUMINAIRE ARMS SINGLE MEMBER 4-INCH CLAMP 8-FT",null,"EACH"]
[null,"657.0615","LUMINAIRE ARMS SINGLE MEMBER 4 1/2-INCH CLAMP 8-FT",null,"EACH"]
[null,"657.0620","LUMINAIRE ARMS SINGLE MEMBER 6-INCH CLAMP 4-FT",null,"EACH"]
[null,"657.0625","LUMINAIRE ARMS SINGLE MEMBER 6-INCH CLAMP 6-FT",null,"EACH"]
[null,"657.0630","LUMINAIRE ARMS SINGLE MEMBER 6-INCH CLAMP 8-FT",null,"EACH"]
[null,"657.0635","LUMINAIRE ARMS SINGLE MEMBER 6-INCH CLAMP 10-FT",null,"EACH"]
[null,"657.0640","LUMINAIRE ARMS SINGLE MEMBER 6-INCH CLAMP 15-FT",null,"EACH"]
[null,"657.0704","LUMINAIRE ARMS TRUSS TYPE 4-INCH CLAMP 10-FT",null,"EACH"]
[null,"657.0705","LUMINAIRE ARMS TRUSS TYPE 4 1/2-INCH CLAMP 10-FT",null,"EACH"]
[null,"657.0709","LUMINAIRE ARMS TRUSS TYPE 4-INCH CLAMP 12-FT",null,"EACH"]
[null,"657.0710","LUMINAIRE ARMS TRUSS TYPE 4 1/2-INCH CLAMP 12-FT",null,"EACH"]
[null,"657.0714","LUMINAIRE ARMS TRUSS TYPE 4-INCH CLAMP 15-FT",null,"EACH"]
[null,"657.0715","LUMINAIRE ARMS TRUSS TYPE 4 1/2-INCH CLAMP 15-FT",null,"EACH"]
[null,"657.0720","LUMINAIRE ARMS TRUSS TYPE 6-INCH CLAMP 20-FT",null,"EACH"]
[null,"657.0725","LUMINAIRE ARMS TRUSS TYPE 6-INCH CLAMP 15-FT",null,"EACH"]
[null,"657.0730","LUMINAIRE ARMS TRUSS TYPE 6-INCH CLAMP 12-FT",null,"EACH"]
[null,"657.0735","LUMINAIRE ARMS TRUSS TYPE 6-INCH CLAMP 10-FT",null,"EACH"]
[null,"657.1345","INSTALL POLES TYPE 9",null,"EACH"]
[null,"657.1350","INSTALL POLES TYPE 10",null,"EACH"]
[null,"657.1355","INSTALL POLES TYPE 12",null,"EACH"]
[null,"657.1360","INSTALL POLES TYPE 13",null,"EACH"]
[null,"657.1515","INSTALL MONOTUBE ARMS 15-FT",null,"EACH"]
[null,"657.1520","INSTALL MONOTUBE ARMS 20-FT",null,"EACH"]
[null,"657.1525","INSTALL MONOTUBE ARMS 25-FT",null,"EACH"]
[null,"657.1530","INSTALL MONOTUBE ARMS 30-FT",null,"EACH"]
[null,"657.1535","INSTALL MONOTUBE ARMS 35-FT",null,"EACH"]
[null,"657.1540","INSTALL MONOTUBE ARMS 40-FT",null,"EACH"]
[null,"657.1545","INSTALL MONOTUBE ARMS 45-FT",null,"EACH"]
[null,"657.1550","INSTALL MONOTUBE ARMS 50-FT",null,"EACH"]
[null,"657.1555","INSTALL MONOTUBE ARMS 55-FT",null,"EACH"]
[null,"657.1806","INSTALL LUMINAIRE ARMS STEEL 6-FT",null,"EACH"]
[null,"657.1808","INSTALL LUMINAIRE ARMS STEEL 8-FT",null,"EACH"]
[null,"657.1810","INSTALL LUMINAIRE ARMS STEEL 10-FT",null,"EACH"]
[null,"657.1812","INSTALL LUMINAIRE ARMS STEEL 12-FT",null,"EACH"]
[null,"657.1815","INSTALL LUMINAIRE ARMS STEEL 15-FT",null,"EACH"]
[null,"657.6005.S","ANCHOR ASSEMBLIES LIGHT POLES ON STRUCTURES",null,"EACH"]
[null,"658.0101","TRAFFIC SIGNAL FACE 1-8 INCH VERTICAL",null,"EACH"]
[null,"658.0103","TRAFFIC SIGNAL FACE 1-12 INCH VERTICAL",null,"EACH"]
[null,"658.0105","TRAFFIC SIGNAL FACE 1-12 INCH 2-8 INCH VERTICAL",null,"EACH"]
[null,"658.0110","TRAFFIC SIGNAL FACE 3-12 INCH VERTICAL",null,"EACH"]
[null,"658.0115","TRAFFIC SIGNAL FACE 4-12 INCH VERTICAL",null,"EACH"]
[null,"658.0120","TRAFFIC SIGNAL FACE 5-12 INCH VERTICAL",null,"EACH"]
[null,"658.0155","TRAFFIC SIGNAL FACE 3-12 INCH HORIZONTAL",null,"EACH"]
[null,"658.0160","TRAFFIC SIGNAL FACE 4-12 INCH HORIZONTAL",null,"EACH"]
[null,"658.0165","TRAFFIC SIGNAL FACE 5-12 INCH HORIZONTAL",null,"EACH"]
[null,"658.0190.S","TRAFFIC SIGNAL FACE - LED STATE FURNISHED",null,"EACH"]
[null,"658.0205","BACKPLATES SIGNAL FACE 1 SECTION 8-INCH",null,"EACH"]
[null,"658.0210","BACKPLATES SIGNAL FACE 1 SECTION 12-INCH",null,"EACH"]
[null,"658.0215","BACKPLATES SIGNAL FACE 3 SECTION 12-INCH",null,"EACH"]
[null,"658.0220","BACKPLATES SIGNAL FACE 4 SECTION 12-INCH",null,"EACH"]
[null,"658.0225","BACKPLATES SIGNAL FACE 5 SECTION 12-INCH",null,"EACH"]
[null,"658.0300","BACKPLATES SIGNAL FACE 12-8-8 INCH",null,"EACH"]
[null,"658.0412","PEDESTRIAN SIGNAL FACE 12-INCH",null,"EACH"]
[null,"658.0416","PEDESTRIAN SIGNAL FACE 16-INCH",null,"EACH"]
[null,"658.0420.S","PEDESTRIAN SIGNAL FACE - LED STATE FURNISHED",null,"EACH"]
[null,"658.0500","PEDESTRIAN PUSH BUTTONS",null,"EACH"]
[null,"658.0600","LED MODULES 12-INCH RED BALL",null,"EACH"]
[null,"658.0605","LED MODULES 12-INCH YELLOW BALL",null,"EACH"]
[null,"658.0610","LED MODULES 12-INCH GREEN BALL",null,"EACH"]
[null,"658.0615","LED MODULES 12-INCH RED ARROW",null,"EACH"]
[null,"658.0620","LED MODULES 12-INCH YELLOW ARROW",null,"EACH"]
[null,"658.0625","LED MODULES 12-INCH GREEN ARROW",null,"EACH"]
[null,"658.0635","LED MODULES PEDESTRIAN COUNTDOWN TIMER 16-INCH",null,"EACH"]
[null,"658.0660","LED MODULES COUNTDWN TIMER 12-INCH",null,"EACH"]
[null,"658.1110","PROGRAMMABLE TRAFFIC SIGNAL FACE 3-12 VERTICAL",null,"EACH"]
[null,"658.1115","PROGRAMMABLE TRAFFIC SIGNAL FACE 4-12 VERTICAL",null,"EACH"]
[null,"658.1120","PROGRAMMABLE TRAFFIC SIGNAL FACE 5-12 VERTICAL",null,"EACH"]
[null,"658.1155","PROGRAMMABLE TRAFFIC SIGNAL FACE 3-12 HORIZONTAL",null,"EACH"]
[null,"658.1160","PROGRAMMABLE TRAFFIC SIGNAL FACE 4-12 HORIZONTAL",null,"EACH"]
[null,"658.1165","PROGRAMMABLE TRAFFIC SIGNAL FACE 5-12 HORIZONTAL",null,"EACH"]
[null,"658.5069","SIGNAL MOUNTING HARDWARE (LOCATION)",null,"LS"]
[null,"659.0115","LUMINAIRES UTILITY HPS 150 WATTS",null,"EACH"]
[null,"659.0125","LUMINAIRES UTILITY HPS 250 WATTS",null,"EACH"]
[null,"659.0135","LUMINAIRES UTILITY HPS 400 WATTS",null,"EACH"]
[null,"659.0150","LUMINAIRES UTILITY MH 250 WATTS",null,"EACH"]
[null,"659.0205","LUMINAIRES UNDERDECK 70 WATTS",null,"EACH"]
[null,"659.0210","LUMINAIRES UNDERDECK 100 WATTS",null,"EACH"]
[null,"659.0215","LUMINAIRES UNDERDECK 150 WATTS",null,"EACH"]
[null,"659.0400","LUMINAIRES HIGH MAST LIGHTING",null,"EACH"]
[null,"659.0600","UNDERDECK LIGHTING (LOCATION)",null,"LS"]
[null,"659.0700","LIGHTING UNITS WALKWAY",null,"EACH"]
[null,"659.0802","PLAQUES SEQUENCE IDENTIFICATION",null,"EACH"]
[null,"659.1115","LUMINAIRES UTILITY LED A",null,"EACH"]
[null,"659.1120","LUMINAIRES UTILITY LED B",null,"EACH"]
[null,"659.1125","LUMINAIRES UTILITY LED C",null,"EACH"]
[null,"659.1130","LUMINAIRES UTILITY LED D",null,"EACH"]
[null,"659.1205","LUMINAIRES UNDERDECK LED A",null,"EACH"]
[null,"659.1210","LUMINAIRES UNDERDECK LED B",null,"EACH"]
[null,"659.1215","LUMINAIRES UNDERDECK LED C",null,"EACH"]
[null,"659.2124","LIGHTING CONTROL CABINETS 120/240 24-INCH",null,"EACH"]
[null,"659.2130","LIGHTING CONTROL CABINETS 120/240 30-INCH",null,"EACH"]
[null,"659.2224","LIGHTING CONTROL CABINETS 240/480 24-INCH",null,"EACH"]
[null,"659.2230","LIGHTING CONTROL CABINETS 240/480 30-INCH",null,"EACH"]
[null,"660.0100","HIGH MAST FOUNDATION (LOCATION)",null,"LS"]
[null,"660.0200","HIGH MAST LIGHTING TOWER (LOCATION)",null,"LS"]
[null,"661.0100","TEMPORARY TRAFFIC SIGNALS FOR BRIDGES (STRUCTURE)",null,"LS"]
[null,"661.0200","TEMPORARY TRAFFIC SIGNALS FOR INTERSECTIONS (LOCATION)",null,"LS"]
[null,"661.0300","GENERATORS",null,"DAY"]
[null,"661.0400.S-RETIRE","RETIRE-LIGHTING CONTROL CABINET (TYPE)",null,"EACH"]
[null,"661.0700","TEMPORARY RAMP METER (LOCATION)",null,"LS"]
[null,"662.1024.S","RAMP CLOSURE GATES HARDWIRED 24-FT",null,"EACH"]
[null,"662.1026.S","RAMP CLOSURE GATES HARDWIRED 26-FT",null,"EACH"]
[null,"662.1028.S","RAMP CLOSURE GATES HARDWIRED 28-FT",null,"EACH"]
[null,"662.1030.S","RAMP CLOSURE GATES HARDWIRED 30-FT",null,"EACH"]
[null,"662.1032.S","RAMP CLOSURE GATES HARDWIRED 32-FT",null,"EACH"]
[null,"662.1037.S","RAMP CLOSURE GATES HARDWIRED 37-FT",null,"EACH"]
[null,"662.1040.S","RAMP CLOSURE GATES HARDWIRED 40-FT",null,"EACH"]
[null,"662.2024.S","RAMP CLOSURE GATES SOLAR 24-FT",null,"EACH"]
[null,"662.2026.S","RAMP CLOSURE GATES SOLAR 26-FT",null,"EACH"]
[null,"662.2028.S","RAMP CLOSURE GATES SOLAR 28-FT",null,"EACH"]
[null,"662.2030.S","RAMP CLOSURE GATES SOLAR 30-FT",null,"EACH"]
[null,"662.2032.S","RAMP CLOSURE GATES SOLAR 32-FT",null,"EACH"]
[null,"662.2037.S","RAMP CLOSURE GATES SOLAR 37-FT",null,"EACH"]
[null,"662.2040.S","RAMP CLOSURE GATES SOLAR 40-FT",null,"EACH"]
[null,"662.3024.S","RAMP CLOSURE GATE ARMS STOCKPILE 24-FT",null,"EACH"]
[null,"662.3026.S","RAMP CLOSURE GATE ARMS STOCKPILE 26-FT",null,"EACH"]
[null,"662.3028.S","RAMP CLOSURE GATE ARMS STOCKPILE 28-FT",null,"EACH"]
[null,"662.3030.S","RAMP CLOSURE GATE ARMS STOCKPILE 30-FT",null,"EACH"]
[null,"662.3032.S","RAMP CLOSURE GATE ARMS STOCKPILE 32-FT",null,"EACH"]
[null,"662.3037.S","RAMP CLOSURE GATE ARMS STOCKPILE 37-FT",null,"EACH"]
[null,"662.3040.S","RAMP CLOSURE GATE ARMS STOCKPILE 40-FT",null,"EACH"]
[null,"662.4000.S","RAMP CLOSURE GATE FLASHERS STOCKPILE",null,"EACH"]
[null,"662.6020.S","RAMP CLOSURE BARRICADE RACK 2-UNIT",null,"EACH"]
[null,"662.6030.S","RAMP CLOSURE BARRICADE RACK 3-UNIT",null,"EACH"]
[null,"670.0100","FIELD SYSTEM INTEGRATOR",null,"LS"]
[null,"670.0200","ITS DOCUMENTATION",null,"LS"]
[null,"671.0100","CONDUIT HDPE 4-DUCT 1 1/4-INCH",null,"LF"]
[null,"671.0112","CONDUIT HDPE 1-DUCT 2-INCH",null,"LF"]
[null,"671.0122","CONDUIT HDPE 2-DUCT 2-INCH",null,"LF"]
[null,"671.0132","CONDUIT HDPE 3-DUCT 2-INCH",null,"LF"]
[null,"671.0142","CONDUIT HDPE 4-DUCT 2-INCH",null,"LF"]
[null,"671.0200","CONDUIT HDPE DIRECTIONAL BORE 4-DUCT 1 1/4-INCH",null,"LF"]
[null,"671.0212","CONDUIT HDPE DIRECTIONAL BORE 1-DUCT 2-IN",null,"LF"]
[null,"671.0222","CONDUIT HDPE DIRECTIONAL BORE 2-DUCT 2-IN",null,"LF"]
[null,"671.0232","CONDUIT HDPE DIRECTIONAL BORE 3-DUCT 2-IN",null,"LF"]
[null,"671.0242","CONDUIT HDPE DIRECTIONAL BORE 4-DUCT 2-IN",null,"LF"]
[null,"671.0244","CONDUIT HDPE DIRECTIONAL BORE 4-DUCT 4-IN",null,"LF"]
[null,"671.0300","FIBER OPTIC CABLE MARKER",null,"EACH"]
[null,"672.0100","BASE ITS CONTROLLER CABINET",null,"EACH"]
[null,"672.0230","BASE CAMERA POLE 30-FT",null,"EACH"]
[null,"672.0250","BASE CAMERA POLE 50-FT",null,"EACH"]
[null,"672.0280","BASE CAMERA POLE 80-FT",null,"EACH"]
[null,"673.0105","COMMUNICATION VAULT TYPE 1",null,"EACH"]
[null,"673.0200.S","INSTALL ITS FIELD CABINET",null,"EACH"]
[null,"673.0225.S","INSTALL POLE MOUNTED CABINET",null,"EACH"]
[null,"674.0106","CABLE ITS COMMUNICATION 6 PAIR",null,"LF"]
[null,"674.0112","CABLE ITS COMMUNICATION 12 PAIR",null,"LF"]
[null,"674.0125","CABLE ITS COMMUNICATION 25 PAIR",null,"LF"]
[null,"674.0200","CABLE MICROWAVE DETECTOR",null,"LF"]
[null,"674.0300","REMOVE CABLE",null,"LF"]
[null,"674.0400","REINSTALL CABLE",null,"LF"]
[null,"675.0100","INSTALL CONTROLLER RAMP METER PROCESSOR ASSEMBLY",null,"EACH"]
[null,"675.0200","INSTALL CONTROLLER DETECTOR PROCESSOR ASSEMBLY",null,"EACH"]
[null,"675.0300","INSTALL MOUNTED CONTROLLER MICROWAVE DETECTOR ASSEMBLY",null,"EACH"]
[null,"675.0400.S","INSTALL ETHERNET SWITCH",null,"EACH"]
[null,"676.0100","SIGNAL ASSEMBLY RAMP CONTROL SIDEMOUNT",null,"EACH"]
[null,"676.0105","SIGNAL ASSEMBLY RAMP CONTROL OVERHEAD",null,"EACH"]
[null,"676.0200","SIGNAL ASSEMBLY DISPLAY ENFORCEMENT",null,"EACH"]
[null,"676.0300","SIGNAL ASSEMBLY ADVANCE FLASHER TYPE 1",null,"EACH"]
[null,"676.0305","SIGNAL ASSEMBLY ADVANCE FLASHER TYPE 2",null,"EACH"]
[null,"676.9001.S","REMOVING ADVANCE FLASHER ASSEMBLIES TYPE 1",null,"EACH"]
[null,"676.9002.S","REMOVING ADVANCE FLASHER ASSEMBLIES TYPE 2",null,"EACH"]
[null,"677.0100","INSTALL CAMERA POLE",null,"EACH"]
[null,"677.0200","INSTALL CAMERA ASSEMBLY",null,"EACH"]
[null,"677.0300.S","INSTALL VIDEO ENCODER",null,"EACH"]
[null,"677.0400.S","INSTALL VIDEO IMAGE DETECTOR CARD",null,"EACH"]
[null,"677.0500.S","INSTALL VIDEO DETECTION CAMERA",null,"EACH"]
[null,"677.0600.S","INSTALL VIDEO DETECTION PROCESSOR",null,"EACH"]
[null,"677.9050.S","SALVAGE 50-FOOT CAMERA POLE WITH LOWERING SYSTEM",null,"EACH"]
[null,"677.9051.S","REMOVING 50-FOOT CAMERA POLE",null,"EACH"]
[null,"677.9080.S","SALVAGE 80-FOOT CAMERA POLE WITH LOWERING SYSTEM",null,"EACH"]
[null,"677.9081.S","REMOVING 80-FOOT CAMERA POLE",null,"EACH"]
[null,"677.9200.S","REMOVING CCTV CAMERA",null,"EACH"]
[null,"678.0006","INSTALL FIBER OPTIC CABLE OUTDOOR PLANT 6-CT",null,"LF"]
[null,"678.0012","INSTALL FIBER OPTIC CABLE OUTDOOR PLANT 12-CT",null,"LF"]
[null,"678.0024","INSTALL FIBER OPTIC CABLE OUTDOOR PLANT 24-CT",null,"LF"]
[null,"678.0036","INSTALL FIBER OPTIC CABLE OUTDOOR PLANT 36-CT",null,"LF"]
[null,"678.0048","INSTALL FIBER OPTIC CABLE OUTDOOR PLANT 48-CT",null,"LF"]
[null,"678.0072","INSTALL FIBER OPTIC CABLE OUTDOOR PLANT 72-CT",null,"LF"]
[null,"678.0096","INSTALL FIBER OPTIC CABLE OUTDOOR PLANT 96-CT",null,"LF"]
[null,"678.0100.S","INSTALL OVERHEAD FREEWAY DMS FULL MATRIX",null,"EACH"]
[null,"678.0144","INSTALL FIBER OPTIC CABLE OUTDOOR PLANT 144-CT",null,"LF"]
[null,"678.0200","FIBER OPTIC SPLICE ENCLOSURE",null,"EACH"]
[null,"678.0300","FIBER OPTIC SPLICE",null,"EACH"]
[null,"678.0400","FIBER OPTIC TERMINATION",null,"EACH"]
[null,"678.0500","COMMUNICATION SYSTEM TESTING",null,"LS"]
["x","690.0150","SAWING ASPHALT",{"$f":"[0]!TOTAL690.0150_0010+[0]!TOTAL690.0150_0020+[0]!TOTAL690.0150_0030+[0]!TOTAL690.0150_0040+[0]!TOTAL690.0150_0050","v":60},"LF",3.5,{"$f":"IF(A2214<>\"x\",\"\",IF(ISERROR(D2214),0,IF(D2214=\"\",0,IF(D2214=\" \",0,IF(D2214=\"<Error>\",0,F2214*D2214)))))","v":210}]
[null,"690.0250","SAWING CONCRETE",null,"LF",null,{"$f":"IF(A2215<>\"x\",\"\",IF(ISERROR(D2215),0,IF(D2215=\"\",0,IF(D2215=\" \",0,IF(D2215=\"<Error>\",0,F2215*D2215)))))","v":""}]
[null,"715.0415","INCENTIVE STRENGTH CONCRETE PAVEMENT",null,"DOL",1]
[null,"715.0502","INCENTIVE STRENGTH CONCRETE STRUCTURES",null,"DOL",1]
[null,"999.1000.S","SEISMOGRAPH",null,"LS"]
[null,"999.1500.S","CRACK AND DAMAGE SURVEY",null,"LS"]
[null,"999.1800.S","PICNIC TABLES SINGLE PEDESTAL",null,"EACH"]
[null,"999.1950.S","BICYCLE RACK ASPHALT OR CONCRETE-MOUNTED",null,"EACH"]
[null,"ASP.1T0A","ON-THE-JOB TRAINING APPRENTICE AT $5.00/HR",null,"HRS",5]
[null,"ASP.1T0G","ON-THE-JOB TRAINING GRADUATE AT $5.00/HR",null,"HRS",5]
["x","SPV.0005","SPECIAL",{"$f":"[0]!TOTALSPV.0005_0010+[0]!TOTALSPV.0005_0020+[0]!TOTALSPV.0005_0030+[0]!TOTALSPV.0005_0040+[0]!TOTALSPV.0005_0050","v":0.42148760330578511},"ACRE",10000,{"$f":"IF(A2224<>\"x\",\"\",IF(ISERROR(D2224),0,IF(D2224=\"\",0,IF(D2224=\" \",0,IF(D2224=\"<Error>\",0,F2224*D2224)))))","v":4214.8760330578507}]
[null,"SPV.0010","SPECIAL",null,"AD"]
[null,"SPV.0015","SPECIAL",null,"BBL"]
[null,"SPV.0020","SPECIAL",null,"BD"]
[null,"SPV.0025","SPECIAL",null,"CF"]
[null,"SPV.0030","SPECIAL",null,"CWT"]
[null,"SPV.0035","SPECIAL",null,"CY"]
[null,"SPV.0040","SPECIAL",null,"CYMI"]
[null,"SPV.0045","SPECIAL",null,"DAY"]
[null,"SPV.0050","SPECIAL",null,"DD"]
[null,"SPV.0055","SPECIAL",null,"DOL"]
[null,"SPV.0060","SPECIAL",null,"EACH"]
[null,"SPV.0065","SPECIAL",null,"F A"]
[null,"SPV.0070","SPECIAL",null,"GAL"]
[null,"SPV.0075","SPECIAL",null,"HRS"]
[null,"SPV.0080","SPECIAL",null,"ID"]
[null,"SPV.0085","SPECIAL",null,"LB"]
[null,"SPV.0090","SPECIAL",null,"LF"]
[null,"SPV.0095","SPECIAL",null,"LM"]
[null,"SPV.0100","SPECIAL",null,"LOT"]
[null,"SPV.0105","SPECIAL",null,"LS"]
[null,"SPV.0110","SPECIAL",null,"MBM"]
[null,"SPV.0120","SPECIAL",null,"MGAL"]
[null,"SPV.0125","SPECIAL",null,"MI"]
[null,"SPV.0130","SPECIAL",null,"MKFT"]
[null,"SPV.0135","SPECIAL",null,"MON"]
[null,"SPV.0140","SPECIAL",null,"NONE"]
[null,"SPV.0145","SPECIAL",null,"OZ"]
[null,"SPV.0150","SPECIAL",null,"PD"]
[null,"SPV.0152","SPECIAL",null,"PH"]
[null,"SPV.0153","SPECIAL",null,"PR"]
[null,"SPV.0155","SPECIAL",null,"SACK"]
[null,"SPV.0160","SPECIAL",null,"SD"]
[null,"SPV.0165","SPECIAL",null,"SF"]
[null,"SPV.0170","SPECIAL",null,"STA"]
[null,"SPV.0175","SPECIAL",null,"STYD"]
[null,"SPV.0180","SPECIAL",null,"SY"]
[null,"SPV.0185","SPECIAL",null,"TD"]
[null,"SPV.0187","SPECIAL",null,"TF"]
[null,"SPV.0190","SPECIAL",null,"TM"]
[null,"SPV.0195","SPECIAL",null,"TON"]
[null,"SPV.0200","SPECIAL",null,"VF"]
[null,"SPV.0205","SPECIAL",null,"WD"]
[null,"SPV.0210","SPECIAL",null,"WK"]
[null,"SPV.0215","SPECIAL",null,"YDMI"]
[null,"SPV.0999.10","CONTINGENCY (10. CAT 0010 XX%)",null,"$$$"]
[null,"SPV.0999.20","CONTINGENCY (20. CAT 0020 XX%)",null,"$$$"]
[null,"SPV.0999.30","CONTINGENCY (30. CAT 0030 XX%)",null,"$$$"]
[null,"SPV.0999.40","CONTINGENCY (40. CAT 0040 XX%)",null,"$$$"]
[null,"SPV.0999.50","CONTINGENCY (50. CAT 0050 XX%)",null,"$$$"]
[null,"SPV.0999.X0","CONTINGENCY (X0. CAT 00X0 XX%)",null,"$$$"]
[]
[null,null,null,null,"CONSTRUCTION TOTAL:     ",null,{"$f":"SUM(G13:G2275)","v":133209.05695898377}]
[null,null,null,"DELIVERY COST: ",null,0.15,{"$f":"F2277*G2276","v":19981.358543847564}]
[null,null,null,null,"TOTAL:",null,{"$f":"SUM(G2276+G2277)","v":153190.41550283134}]
[]
[]
[null,"CATEGORIES","FEDERAL WORK TYPES AND (CATEGORY DESCRIPTION)",null,"FUNDING (REFER TO FIIPS)"]
[null,"0010","05 - 4R MAINTENANCE, RESURFACING...(ROADWAY CONSTRUCTION)",null,"80% FEDERAL  20% STATE"]
[null,"0020","14 - BRIDGE REHABILITATION, NO ADDED CAPACITY...(BRIDGE OVERLAY)",null,"80% FEDERAL  20% STATE"]
[null,"0030","06 - 4R MAINTENANCE, RESTORATION & REHABILITAT...(BIKE/PED TRAIL)",null,"100% CITY OF WISCONSIN RAPIDS"]
[null,"0040","43 - UTILITIES...(SANITARY SEWER & WATERMAIN)",null,"100% CITY OF RHINELANDER"]
[null,"0050","44 - OTHER...(CSD)",null,"100% CITY OF MADISON"]

{"sheet":"203.0200","index":1,"n_rows":51,"n_cols":11,"rows_kept":51,"cut":false,"hidden":false,"merged":[]}
[null,null,null,null,null,null,{"$f":"UPPER(IF('Bid Items'!$C$28=\"\",\"Enter an Item DESCRIPTION in 'Bid Items' sheet\",'Bid Items'!$C$28))","v":"REMOVING OLD STRUCTURE (130+21, C-55-0014)"}]
[]
[]
[null,null,null,null,null,null,null,null,{"$f":"UPPER('Bid Items'!$B$28)","v":"203.0200"}]
["CATEGORY",null,"STATION","TO"," STATION",null,"LOCATION",null,{"$f":"UPPER('Bid Items'!$E$28)","v":"LS"},null,"REMARKS"]
[null,null,null,{"$f":"INSERTDASH(C6,E6)","v":""}]
["0010",null,null,"",null,null,null,null,1]
["0010",null,null,""]
["0010",null,null,""]
["0010",null,null,""]
["0010",null,null,""]
[]
["0010",null,null,""]
["0010",null,null,""]
["0010",null,null,""]
["0010",null,null,""]
["0010",null,null,""]
[null,null,null,""]
[null,null,null,"",null,null,"TOTAL 0010",null,{"$f":"SUM(I6:I18)","v":1}]
[null,null,null,""]
["0020",null,null,""]
["0020",null,null,""]
["0020",null,null,""]
["0020",null,null,""]
["0020",null,null,""]
[null,null,null,""]
[null,null,null,"",null,null,"TOTAL 0020",null,{"$f":"SUM(I20:I26)","v":0}]
[null,null,null,""]
["0030",null,null,""]
["0030",null,null,""]
["0030",null,null,""]
["0030",null,null,""]
["0030",null,null,""]
[null,null,null,""]
[null,null,null,null,null,null,"TOTAL 0030",null,{"$f":"SUM(I28:I34)","v":0}]
[null,null,null,{"$f":"INSERTDASH(C36,E36)","v":""}]
["0040",null,null,""]
["0040",null,null,""]
["0040",null,null,""]
["0040",null,null,""]
["0040",null,null,""]
[null,null,null,""]
[null,null,null,null,null,null,"TOTAL 0040",null,{"$f":"SUM(I36:I42)","v":0}]
[null,null,null,{"$f":"INSERTDASH(C44,E44)","v":""}]
["0050",null,null,""]
["0050",null,null,""]
["0050",null,null,""]
["0050",null,null,""]
["0050",null,null,""]
[null,null,null,""]
[null,null,null,null,null,null,"TOTAL 0050",null,{"$f":"SUM(I44:I50)","v":0}]

{"sheet":"204.0100","index":2,"n_rows":51,"n_cols":14,"rows_kept":51,"cut":false,"hidden":false,"merged":[]}
[null,null,null,null,null,null,{"$f":"UPPER(IF('Bid Items'!$C$34=\"\",\"Enter an Item DESCRIPTION in 'Bid Items' sheet\",'Bid Items'!$C$34))","v":"REMOVING PAVEMENT"}]
[]
[]
[null,null,null,null,null,null,null,null,{"$f":"UPPER('Bid Items'!$B$34)","v":"204.0100"}]
["CATEGORY",null,"STATION","TO"," STATION",null,"LOCATION",null,{"$f":"UPPER('Bid Items'!$E$34)","v":"SY"},null,"REMARKS"]
[null,null,null,{"$f":"INSERTDASH(C6,E6)","v":""}]
["0010",null,5149,"-",5174,null,null,null,{"$f":"M13","v":111.11111111111111},null,null,"L =",50,"ft"]
["0010",null,5194,"-",5219,null,null,null,{"$f":"M13","v":111.11111111111111}]
["0010",null,null,"",null,null,null,null,null,null,null,"W =",20,"ft"]
["0010",null,null,""]
["0010",null,null,"",null,null,null,null,null,null,null,"Area =",{"$f":"M7*M9","v":1000},"ft2"]
[]
["0010",null,null,"",null,null,null,null,null,null,null,null,{"$f":"M11/9","v":111.11111111111111},"SY"]
["0010",null,null,""]
["0010",null,null,""]
["0010",null,null,""]
["0010",null,null,""]
[null,null,null,""]
[null,null,null,"",null,null,"TOTAL 0010",null,{"$f":"SUM(I6:I18)","v":222.22222222222223}]
[null,null,null,""]
["0020",null,null,""]
["0020",null,null,""]
["0020",null,null,""]
["0020",null,null,""]
["0020",null,null,""]
[null,null,null,""]
[null,null,null,"",null,null,"TOTAL 0020",null,{"$f":"SUM(I20:I26)","v":0}]
[null,null,null,""]
["0030",null,null,""]
["0030",null,null,""]
["0030",null,null,""]
["0030",null,null,""]
["0030",null,null,""]
[null,null,null,""]
[null,null,null,null,null,null,"TOTAL 0030",null,{"$f":"SUM(I28:I34)","v":0}]
[null,null,null,{"$f":"INSERTDASH(C36,E36)","v":""}]
["0040",null,null,""]
["0040",null,null,""]
["0040",null,null,""]
["0040",null,null,""]
["0040",null,null,""]
[null,null,null,""]
[null,null,null,null,null,null,"TOTAL 0040",null,{"$f":"SUM(I36:I42)","v":0}]
[null,null,null,{"$f":"INSERTDASH(C44,E44)","v":""}]
["0050",null,null,""]
["0050",null,null,""]
["0050",null,null,""]
["0050",null,null,""]
["0050",null,null,""]
[null,null,null,""]
[null,null,null,null,null,null,"TOTAL 0050",null,{"$f":"SUM(I44:I50)","v":0}]

{"sheet":"204.0110","index":3,"n_rows":51,"n_cols":14,"rows_kept":51,"cut":false,"hidden":false,"merged":[]}
[null,null,null,null,null,null,{"$f":"UPPER(IF('Bid Items'!$C$37=\"\",\"Enter an Item DESCRIPTION in 'Bid Items' sheet\",'Bid Items'!$C$37))","v":"REMOVING ASPHALTIC SURFACE"}]
[]
[]
[null,null,null,null,null,null,null,null,{"$f":"UPPER('Bid Items'!$B$37)","v":"204.0110"}]
["CATEGORY",null,"STATION","TO"," STATION",null,"LOCATION",null,{"$f":"UPPER('Bid Items'!$E$37)","v":"SY"},null,"REMARKS"]
[null,null,null,{"$f":"INSERTDASH(C6,E6)","v":""}]
["0010",null,5034,"-",5334,null,null,null,{"$f":"M13","v":600},null,null,"L =",{"$f":"E7-C7","v":300},"ft"]
["0010",null,null,""]
["0010",null,null,"",null,null,null,null,null,null,null,"W =",18,"ft"]
["0010",null,null,""]
["0010",null,null,"",null,null,null,null,null,null,null,"Area =",{"$f":"M7*M9","v":5400},"ft2"]
[]
["0010",null,null,"",null,null,null,null,null,null,null,null,{"$f":"M11/9","v":600},"SY"]
["0010",null,null,""]
["0010",null,null,""]
["0010",null,null,""]
["0010",null,null,""]
[null,null,null,""]
[null,null,null,"",null,null,"TOTAL 0010",null,{"$f":"SUM(I6:I18)","v":600}]
[null,null,null,""]
["0020",null,null,""]
["0020",null,null,""]
["0020",null,null,""]
["0020",null,null,""]
["0020",null,null,""]
[null,null,null,""]
[null,null,null,"",null,null,"TOTAL 0020",null,{"$f":"SUM(I20:I26)","v":0}]
[null,null,null,""]
["0030",null,null,""]
["0030",null,null,""]
["0030",null,null,""]
["0030",null,null,""]
["0030",null,null,""]
[null,null,null,""]
[null,null,null,null,null,null,"TOTAL 0030",null,{"$f":"SUM(I28:I34)","v":0}]
[null,null,null,{"$f":"INSERTDASH(C36,E36)","v":""}]
["0040",null,null,""]
["0040",null,null,""]
["0040",null,null,""]
["0040",null,null,""]
["0040",null,null,""]
[null,null,null,""]
[null,null,null,null,null,null,"TOTAL 0040",null,{"$f":"SUM(I36:I42)","v":0}]
[null,null,null,{"$f":"INSERTDASH(C44,E44)","v":""}]
["0050",null,null,""]
["0050",null,null,""]
["0050",null,null,""]
["0050",null,null,""]
["0050",null,null,""]
[null,null,null,""]
[null,null,null,null,null,null,"TOTAL 0050",null,{"$f":"SUM(I44:I50)","v":0}]

{"sheet":"205.0100","index":4,"n_rows":51,"n_cols":14,"rows_kept":51,"cut":false,"hidden":false,"merged":[]}
[null,null,null,null,null,null,{"$f":"UPPER(IF('Bid Items'!$C$83=\"\",\"Enter an Item DESCRIPTION in 'Bid Items' sheet\",'Bid Items'!$C$83))","v":"EXCAVATION COMMON"}]
[]
[]
[null,null,null,null,null,null,null,null,{"$f":"UPPER('Bid Items'!$B$83)","v":"205.0100"}]
["CATEGORY",null,"STATION","TO"," STATION",null,"LOCATION",null,{"$f":"UPPER('Bid Items'!$E$83)","v":"CY"},null,"REMARKS"]
[null,null,null,{"$f":"INSERTDASH(C6,E6)","v":""}]
["0010",null,4914,"-",5454,null,null,null,3200,null,null,"L =",540,"ft"]
["0010",null,null,"",null,null,null,null,null,null,null,"W =",20,"ft"]
["0010",null,null,"",null,null,null,null,null,null,null,"H =",8,"ft"]
["0010",null,null,"",null,null,null,null,null,null,null,null,{"$f":"M7*M8*M9","v":86400},"ft3"]
["0010",null,null,"",null,null,null,null,null,null,null,null,{"$f":"M10/27","v":3200},"CY"]
[]
["0010",null,null,""]
["0010",null,null,""]
["0010",null,null,""]
["0010",null,null,""]
["0010",null,null,""]
[null,null,null,""]
[null,null,null,"",null,null,"TOTAL 0010",null,{"$f":"SUM(I6:I18)","v":3200}]
[null,null,null,""]
["0020",null,null,""]
["0020",null,null,""]
["0020",null,null,""]
["0020",null,null,""]
["0020",null,null,""]
[null,null,null,""]
[null,null,null,"",null,null,"TOTAL 0020",null,{"$f":"SUM(I20:I26)","v":0}]
[null,null,null,""]
["0030",null,null,""]
["0030",null,null,""]
["0030",null,null,""]
["0030",null,null,""]
["0030",null,null,""]
[null,null,null,""]
[null,null,null,null,null,null,"TOTAL 0030",null,{"$f":"SUM(I28:I34)","v":0}]
[null,null,null,{"$f":"INSERTDASH(C36,E36)","v":""}]
["0040",null,null,""]
["0040",null,null,""]
["0040",null,null,""]
["0040",null,null,""]
["0040",null,null,""]
[null,null,null,""]
[null,null,null,null,null,null,"TOTAL 0040",null,{"$f":"SUM(I36:I42)","v":0}]
[null,null,null,{"$f":"INSERTDASH(C44,E44)","v":""}]
["0050",null,null,""]
["0050",null,null,""]
["0050",null,null,""]
["0050",null,null,""]
["0050",null,null,""]
[null,null,null,""]
[null,null,null,null,null,null,"TOTAL 0050",null,{"$f":"SUM(I44:I50)","v":0}]

{"sheet":"211.0100","index":5,"n_rows":51,"n_cols":11,"rows_kept":51,"cut":false,"hidden":false,"merged":[]}
[null,null,null,null,null,null,{"$f":"UPPER(IF('Bid Items'!$C$110=\"\",\"Enter an Item DESCRIPTION in 'Bid Items' sheet\",'Bid Items'!$C$110))","v":"PREPARE FOUNDATION FOR ASPHALTIC PAVING (PROJECT)"}]
[]
[]
[null,null,null,null,null,null,null,null,{"$f":"UPPER('Bid Items'!$B$110)","v":"211.0100"}]
["CATEGORY",null,"STATION","TO"," STATION",null,"LOCATION",null,{"$f":"UPPER('Bid Items'!$E$110)","v":"LS"},null,"REMARKS"]
[null,null,null,{"$f":"INSERTDASH(C6,E6)","v":""}]
["0010",null,null,"",null,null,null,null,1]
["0010",null,null,""]
["0010",null,null,""]
["0010",null,null,""]
["0010",null,null,""]
[]
["0010",null,null,""]
["0010",null,null,""]
["0010",null,null,""]
["0010",null,null,""]
["0010",null,null,""]
[null,null,null,""]
[null,null,null,"",null,null,"TOTAL 0010",null,{"$f":"SUM(I6:I18)","v":1}]
[null,null,null,""]
["0020",null,null,""]
["0020",null,null,""]
["0020",null,null,""]
["0020",null,null,""]
["0020",null,null,""]
[null,null,null,""]
[null,null,null,"",null,null,"TOTAL 0020",null,{"$f":"SUM(I20:I26)","v":0}]
[null,null,null,""]
["0030",null,null,""]
["0030",null,null,""]
["0030",null,null,""]
["0030",null,null,""]
["0030",null,null,""]
[null,null,null,""]
[null,null,null,null,null,null,"TOTAL 0030",null,{"$f":"SUM(I28:I34)","v":0}]
[null,null,null,{"$f":"INSERTDASH(C36,E36)","v":""}]
["0040",null,null,""]
["0040",null,null,""]
["0040",null,null,""]
["0040",null,null,""]
["0040",null,null,""]
[null,null,null,""]
[null,null,null,null,null,null,"TOTAL 0040",null,{"$f":"SUM(I36:I42)","v":0}]
[null,null,null,{"$f":"INSERTDASH(C44,E44)","v":""}]
["0050",null,null,""]
["0050",null,null,""]
["0050",null,null,""]
["0050",null,null,""]
["0050",null,null,""]
[null,null,null,""]
[null,null,null,null,null,null,"TOTAL 0050",null,{"$f":"SUM(I44:I50)","v":0}]

{"sheet":"305.0110","index":6,"n_rows":51,"n_cols":22,"rows_kept":51,"cut":false,"hidden":false,"merged":[]}
[null,null,null,null,null,null,{"$f":"UPPER(IF('Bid Items'!$C$117=\"\",\"Enter an Item DESCRIPTION in 'Bid Items' sheet\",'Bid Items'!$C$117))","v":"BASE AGGREGATE DENSE 3/4-INCH"}]
[]
[]
[null,null,null,null,null,null,null,null,{"$f":"UPPER('Bid Items'!$B$117)","v":"305.0110"},null,null,null,null,"ft3 x (2.0 Tons/yd3) x (1 yd3/27 ft3)",null,"=tons"]
["CATEGORY",null,"STATION","TO"," STATION",null,"LOCATION",null,{"$f":"UPPER('Bid Items'!$E$117)","v":"TON"},null,"REMARKS"]
[null,null,null,{"$f":"INSERTDASH(C6,E6)","v":""}]
["0010",null,4914,"-",5454,null,null,null,{"$f":"O12","v":60},null,null,"Shoulder",null,"Length =",{"$f":"E7-C7","v":540},"ft","With at Hinge Point",null,"With at Hinge Point"]
["0010",null,null,"",null,null,null,null,null,null,null,null,null,"Width Average (Hinge Point) =",{"$f":"U8","v":6},"ft",8,"ft",4,"ft",{"$f":"(Q8+S8)/2","v":6},"ft"]
["0010",null,null,"",null,null,null,null,null,null,null,null,null,"Thickness (3\")",0.25,"ft"]
["0010",null,null,""]
["0010",null,null,"",null,null,null,null,null,null,null,null,null,null,{"$f":"O7*O8*O9","v":810},"ft3"]
[null,null,null,null,null,null,null,null,null,null,null,null,null,null,{"$f":"O11*((2)*(1/27))","v":60},"Tons"]
["0010",null,null,""]
["0010",null,null,""]
["0010",null,null,""]
["0010",null,null,""]
["0010",null,null,""]
[null,null,null,""]
[null,null,null,"",null,null,"TOTAL 0010",null,{"$f":"SUM(I6:I18)","v":60}]
[null,null,null,""]
["0020",null,null,""]
["0020",null,null,""]
["0020",null,null,""]
["0020",null,null,""]
["0020",null,null,""]
[null,null,null,""]
[null,null,null,"",null,null,"TOTAL 0020",null,{"$f":"SUM(I20:I26)","v":0}]
[null,null,null,""]
["0030",null,null,""]
["0030",null,null,""]
["0030",null,null,""]
["0030",null,null,""]
["0030",null,null,""]
[null,null,null,""]
[null,null,null,null,null,null,"TOTAL 0030",null,{"$f":"SUM(I28:I34)","v":0}]
[null,null,null,{"$f":"INSERTDASH(C36,E36)","v":""}]
["0040",null,null,""]
["0040",null,null,""]
["0040",null,null,""]
["0040",null,null,""]
["0040",null,null,""]
[null,null,null,""]
[null,null,null,null,null,null,"TOTAL 0040",null,{"$f":"SUM(I36:I42)","v":0}]
[null,null,null,{"$f":"INSERTDASH(C44,E44)","v":""}]
["0050",null,null,""]
["0050",null,null,""]
["0050",null,null,""]
["0050",null,null,""]
["0050",null,null,""]
[null,null,null,""]
[null,null,null,null,null,null,"TOTAL 0050",null,{"$f":"SUM(I44:I50)","v":0}]

{"sheet":"305.0120","index":7,"n_rows":51,"n_cols":18,"rows_kept":51,"cut":false,"hidden":false,"merged":[]}
[null,null,null,null,null,null,{"$f":"UPPER(IF('Bid Items'!$C$119=\"\",\"Enter an Item DESCRIPTION in 'Bid Items' sheet\",'Bid Items'!$C$119))","v":"BASE AGGREGATE DENSE 1 1/4-INCH"}]
[]
[]
[null,null,null,null,null,null,null,null,{"$f":"UPPER('Bid Items'!$B$119)","v":"305.0120"}]
["CATEGORY",null,"STATION","TO"," STATION",null,"LOCATION",null,{"$f":"UPPER('Bid Items'!$E$119)","v":"TON"},null,"REMARKS",null,"ft3 x (2.0 Tons/yd3) x (1 yd3/27 ft3)",null,null,"=tons"]
[null,null,null,{"$f":"INSERTDASH(C6,E6)","v":""}]
["0010",null,5159,"-",5209,null,null,null,{"$f":"P16","v":60.493827160493829}]
["0010",null,null,"",null,null,null,null,null,null,null,null,null,7,"inches",{"$f":"N8/12","v":0.58333333333333337},"ft","fill above where new pipe will be"]
["0010",null,null,""]
["0010",null,null,"",null,null,null,null,null,null,null,null,null,null,null,50,"ft","length"]
["0010",null,null,""]
[null,null,null,null,null,null,null,null,null,null,null,null,null,null,null,28,"ft","roadway width"]
["0010",null,null,""]
["0010",null,null,"",null,null,null,null,null,null,null,null,null,null,null,{"$f":"P8*P10*P12","v":816.66666666666674},"ft3"]
["0010",null,null,""]
["0010",null,null,"",null,null,null,null,null,null,null,null,null,null,null,{"$f":"P14*((2*(1/27)))","v":60.493827160493829},"Ton"]
["0010",null,null,""]
[null,null,null,""]
[null,null,null,"",null,null,"TOTAL 0010",null,{"$f":"SUM(I6:I18)","v":60.493827160493829}]
[null,null,null,""]
["0020",null,null,""]
["0020",null,null,""]
["0020",null,null,""]
["0020",null,null,""]
["0020",null,null,""]
[null,null,null,""]
[null,null,null,"",null,null,"TOTAL 0020",null,{"$f":"SUM(I20:I26)","v":0}]
[null,null,null,""]
["0030",null,null,""]
["0030",null,null,""]
["0030",null,null,""]
["0030",null,null,""]
["0030",null,null,""]
[null,null,null,""]
[null,null,null,null,null,null,"TOTAL 0030",null,{"$f":"SUM(I28:I34)","v":0}]
[null,null,null,{"$f":"INSERTDASH(C36,E36)","v":""}]
["0040",null,null,""]
["0040",null,null,""]
["0040",null,null,""]
["0040",null,null,""]
["0040",null,null,""]
[null,null,null,""]
[null,null,null,null,null,null,"TOTAL 0040",null,{"$f":"SUM(I36:I42)","v":0}]
[null,null,null,{"$f":"INSERTDASH(C44,E44)","v":""}]
["0050",null,null,""]
["0050",null,null,""]
["0050",null,null,""]
["0050",null,null,""]
["0050",null,null,""]
[null,null,null,""]
[null,null,null,null,null,null,"TOTAL 0050",null,{"$f":"SUM(I44:I50)","v":0}]

{"sheet":"305.0500","index":8,"n_rows":51,"n_cols":11,"rows_kept":51,"cut":false,"hidden":false,"merged":[]}
[null,null,null,null,null,null,{"$f":"UPPER(IF('Bid Items'!$C$125=\"\",\"Enter an Item DESCRIPTION in 'Bid Items' sheet\",'Bid Items'!$C$125))","v":"SHAPING SHOULDERS"}]
[]
[]
[null,null,null,null,null,null,null,null,{"$f":"UPPER('Bid Items'!$B$125)","v":"305.0500"}]
["CATEGORY",null,"STATION","TO"," STATION",null,"LOCATION",null,{"$f":"UPPER('Bid Items'!$E$125)","v":"STA"},null,"REMARKS"]
[null,null,null,{"$f":"INSERTDASH(C6,E6)","v":""}]
["0010",null,4914,"-",5454,null,"LT",null,{"$f":"(E7-C7)/100","v":5.4}]
["0010",null,4914,"-",5454,null,"RT",null,{"$f":"(E8-C8)/100","v":5.4}]
["0010",null,null,""]
["0010",null,null,""]
["0010",null,null,""]
[]
["0010",null,null,""]
["0010",null,null,""]
["0010",null,null,""]
["0010",null,null,""]
["0010",null,null,""]
[null,null,null,""]
[null,null,null,"",null,null,"TOTAL 0010",null,{"$f":"SUM(I7:I18)","v":10.8}]
[null,null,null,""]
["0020",null,null,""]
["0020",null,null,""]
["0020",null,null,""]
["0020",null,null,""]
["0020",null,null,""]
[null,null,null,""]
[null,null,null,"",null,null,"TOTAL 0020",null,{"$f":"SUM(I20:I26)","v":0}]
[null,null,null,""]
["0030",null,null,""]
["0030",null,null,""]
["0030",null,null,""]
["0030",null,null,""]
["0030",null,null,""]
[null,null,null,""]
[null,null,null,null,null,null,"TOTAL 0030",null,{"$f":"SUM(I28:I34)","v":0}]
[null,null,null,{"$f":"INSERTDASH(C36,E36)","v":""}]
["0040",null,null,""]
["0040",null,null,""]
["0040",null,null,""]
["0040",null,null,""]
["0040",null,null,""]
[null,null,null,""]
[null,null,null,null,null,null,"TOTAL 0040",null,{"$f":"SUM(I36:I42)","v":0}]
[null,null,null,{"$f":"INSERTDASH(C44,E44)","v":""}]
["0050",null,null,""]
["0050",null,null,""]
["0050",null,null,""]
["0050",null,null,""]
["0050",null,null,""]
[null,null,null,""]
[null,null,null,null,null,null,"TOTAL 0050",null,{"$f":"SUM(I44:I50)","v":0}]

{"sheet":"455.0605","index":9,"n_rows":51,"n_cols":15,"rows_kept":51,"cut":false,"hidden":false,"merged":[]}
[null,null,null,null,null,null,{"$f":"UPPER(IF('Bid Items'!$C$273=\"\",\"Enter an Item DESCRIPTION in 'Bid Items' sheet\",'Bid Items'!$C$273))","v":"TACK COAT"}]
[]
[]
[null,null,null,null,null,null,null,null,{"$f":"UPPER('Bid Items'!$B$273)","v":"455.0605"}]
["CATEGORY",null,"STATION","TO"," STATION",null,"LOCATION",null,{"$f":"UPPER('Bid Items'!$E$273)","v":"GAL"},null,"REMARKS","Length","Width","Area","Area"]
[null,null,null,{"$f":"INSERTDASH(C6,E6)","v":""},null,null,null,null,null,null,null,"ft","ft","ft2","SY"]
["0010",null,5159,"-",5209,null,null,null,{"$f":"O7*N10","v":2.5},null,null,{"$f":"E7-C7","v":50},18,{"$f":"L7*M7","v":900},{"$f":"N7/9","v":100}]
["0010",null,null,""]
["0010",null,null,""]
["0010",null,null,"",null,null,null,null,null,null,null,"Application Rate:",null,2.5000000000000001E-2,"gal/sy"]
["0010",null,null,""]
[]
["0010",null,null,""]
["0010",null,null,""]
["0010",null,null,""]
["0010",null,null,""]
["0010",null,null,""]
[null,null,null,""]
[null,null,null,"",null,null,"TOTAL 0010",null,{"$f":"SUM(I6:I18)","v":2.5}]
[null,null,null,""]
["0020",null,null,""]
["0020",null,null,""]
["0020",null,null,""]
["0020",null,null,""]
["0020",null,null,""]
[null,null,null,""]
[null,null,null,"",null,null,"TOTAL 0020",null,{"$f":"SUM(I20:I26)","v":0}]
[null,null,null,""]
["0030",null,null,""]
["0030",null,null,""]
["0030",null,null,""]
["0030",null,null,""]
["0030",null,null,""]
[null,null,null,""]
[null,null,null,null,null,null,"TOTAL 0030",null,{"$f":"SUM(I28:I34)","v":0}]
[null,null,null,{"$f":"INSERTDASH(C36,E36)","v":""}]
["0040",null,null,""]
["0040",null,null,""]
["0040",null,null,""]
["0040",null,null,""]
["0040",null,null,""]
[null,null,null,""]
[null,null,null,null,null,null,"TOTAL 0040",null,{"$f":"SUM(I36:I42)","v":0}]
[null,null,null,{"$f":"INSERTDASH(C44,E44)","v":""}]
["0050",null,null,""]
["0050",null,null,""]
["0050",null,null,""]
["0050",null,null,""]
["0050",null,null,""]
[null,null,null,""]
[null,null,null,null,null,null,"TOTAL 0050",null,{"$f":"SUM(I44:I50)","v":0}]

{"sheet":"465.0105","index":10,"n_rows":51,"n_cols":19,"rows_kept":51,"cut":false,"hidden":false,"merged":[]}
[null,null,null,null,null,null,{"$f":"UPPER(IF('Bid Items'!$C$284=\"\",\"Enter an Item DESCRIPTION in 'Bid Items' sheet\",'Bid Items'!$C$284))","v":"ASPHALTIC SURFACE"}]
[]
[]
[null,null,null,null,null,null,null,null,{"$f":"UPPER('Bid Items'!$B$284)","v":"465.0105"}]
["CATEGORY",null,"STATION","TO"," STATION",null,"LOCATION",null,{"$f":"UPPER('Bid Items'!$E$284)","v":"TON"},null,"REMARKS","Length","Width","Area","Tons"]
[null,null,null,{"$f":"INSERTDASH(C6,E6)","v":""},null,null,null,null,null,null,null,"ft","ft","ft2",null,null,null,"ft2 x (1sy/9sf) x thickness x (115lb/sy*in) x 1 Ton/2000) = Tons"]
["0010",null,4914,"-",5454,null,null,null,{"$f":"O7","v":36.225000000000001},null,null,{"$f":"E7-C7","v":540},18,{"$f":"L7*M7","v":9720},{"$f":"N7*R9*R8*R10*R11","v":36.225000000000001}]
["0010",null,null,"",null,null,null,null,null,null,null,null,null,null,null,7,"in",{"$f":"P8/12","v":0.58333333333333337},"ft"]
["0010",null,null,"",null,null,null,null,null,null,null,null,null,null,null,null,null,0.1111111111111111,"sy/sf"]
["0010",null,null,"",null,null,null,null,null,null,null,null,null,null,null,null,null,115,"lb/sy*in"]
["0010",null,null,"",null,null,null,null,null,null,null,null,null,null,null,null,null,{"$f":"1/2000","v":5.0000000000000001E-4},"ton/lb"]
[]
["0010",null,null,""]
["0010",null,null,""]
["0010",null,null,""]
["0010",null,null,""]
["0010",null,null,""]
[null,null,null,""]
[null,null,null,"",null,null,"TOTAL 0010",null,{"$f":"SUM(I6:I18)","v":36.225000000000001}]
[null,null,null,""]
["0020",null,null,""]
["0020",null,null,""]
["0020",null,null,""]
["0020",null,null,""]
["0020",null,null,""]
[null,null,null,""]
[null,null,null,"",null,null,"TOTAL 0020",null,{"$f":"SUM(I20:I26)","v":0}]
[null,null,null,""]
["0030",null,null,""]
["0030",null,null,""]
["0030",null,null,""]
["0030",null,null,""]
["0030",null,null,""]
[null,null,null,""]
[null,null,null,null,null,null,"TOTAL 0030",null,{"$f":"SUM(I28:I34)","v":0}]
[null,null,null,{"$f":"INSERTDASH(C36,E36)","v":""}]
["0040",null,null,""]
["0040",null,null,""]
["0040",null,null,""]
["0040",null,null,""]
["0040",null,null,""]
[null,null,null,""]
[null,null,null,null,null,null,"TOTAL 0040",null,{"$f":"SUM(I36:I42)","v":0}]
[null,null,null,{"$f":"INSERTDASH(C44,E44)","v":""}]
["0050",null,null,""]
["0050",null,null,""]
["0050",null,null,""]
["0050",null,null,""]
["0050",null,null,""]
[null,null,null,""]
[null,null,null,null,null,null,"TOTAL 0050",null,{"$f":"SUM(I44:I50)","v":0}]

{"sheet":"465.0115","index":11,"n_rows":51,"n_cols":11,"rows_kept":51,"cut":false,"hidden":false,"merged":[]}
[null,null,null,null,null,null,{"$f":"UPPER(IF('Bid Items'!$C$286=\"\",\"Enter an Item DESCRIPTION in 'Bid Items' sheet\",'Bid Items'!$C$286))","v":"ASPHALTIC SURFACE DETOURS"}]
[]
[]
[null,null,null,null,null,null,null,null,{"$f":"UPPER('Bid Items'!$B$286)","v":"465.0115"}]
["CATEGORY",null,"STATION","TO"," STATION",null,"LOCATION",null,{"$f":"UPPER('Bid Items'!$E$286)","v":"TON"},null,"REMARKS"]
[null,null,null,{"$f":"INSERTDASH(C6,E6)","v":""}]
["0010",null,null,"",null,null,null,null,100]
["0010",null,null,""]
["0010",null,null,""]
["0010",null,null,""]
["0010",null,null,""]
[]
["0010",null,null,""]
["0010",null,null,""]
["0010",null,null,""]
["0010",null,null,""]
["0010",null,null,""]
[null,null,null,""]
[null,null,null,"",null,null,"TOTAL 0010",null,{"$f":"SUM(I6:I18)","v":100}]
[null,null,null,""]
["0020",null,null,""]
["0020",null,null,""]
["0020",null,null,""]
["0020",null,null,""]
["0020",null,null,""]
[null,null,null,""]
[null,null,null,"",null,null,"TOTAL 0020",null,{"$f":"SUM(I20:I26)","v":0}]
[null,null,null,""]
["0030",null,null,""]
["0030",null,null,""]
["0030",null,null,""]
["0030",null,null,""]
["0030",null,null,""]
[null,null,null,""]
[null,null,null,null,null,null,"TOTAL 0030",null,{"$f":"SUM(I28:I34)","v":0}]
[null,null,null,{"$f":"INSERTDASH(C36,E36)","v":""}]
["0040",null,null,""]
["0040",null,null,""]
["0040",null,null,""]
["0040",null,null,""]
["0040",null,null,""]
[null,null,null,""]
[null,null,null,null,null,null,"TOTAL 0040",null,{"$f":"SUM(I36:I42)","v":0}]
[null,null,null,{"$f":"INSERTDASH(C44,E44)","v":""}]
["0050",null,null,""]
["0050",null,null,""]
["0050",null,null,""]
["0050",null,null,""]
["0050",null,null,""]
[null,null,null,""]
[null,null,null,null,null,null,"TOTAL 0050",null,{"$f":"SUM(I44:I50)","v":0}]

{"sheet":"522.0160","index":12,"n_rows":51,"n_cols":11,"rows_kept":51,"cut":false,"hidden":false,"merged":[]}
[null,null,null,null,null,null,{"$f":"UPPER(IF('Bid Items'!$C$696=\"\",\"Enter an Item DESCRIPTION in 'Bid Items' sheet\",'Bid Items'!$C$696))","v":"CULVERT PIPE REINFORCED CONCRETE CLASS III 60-INCH"}]
[]
[]
[null,null,null,null,null,null,null,null,{"$f":"UPPER('Bid Items'!$B$696)","v":"522.0160"}]
["CATEGORY",null,"STATION","TO"," STATION",null,"LOCATION",null,{"$f":"UPPER('Bid Items'!$E$696)","v":"LF"},null,"REMARKS"]
[null,null,null,{"$f":"INSERTDASH(C6,E6)","v":""}]
["0010",null,5184,"",null,null,null,null,70]
["0010",null,null,""]
["0010",null,null,""]
["0010",null,null,""]
["0010",null,null,""]
[]
["0010",null,null,""]
["0010",null,null,""]
["0010",null,null,""]
["0010",null,null,""]
["0010",null,null,""]
[null,null,null,""]
[null,null,null,"",null,null,"TOTAL 0010",null,{"$f":"SUM(I6:I18)","v":70}]
[null,null,null,""]
["0020",null,null,""]
["0020",null,null,""]
["0020",null,null,""]
["0020",null,null,""]
["0020",null,null,""]
[null,null,null,""]
[null,null,null,"",null,null,"TOTAL 0020",null,{"$f":"SUM(I20:I26)","v":0}]
[null,null,null,""]
["0030",null,null,""]
["0030",null,null,""]
["0030",null,null,""]
["0030",null,null,""]
["0030",null,null,""]
[null,null,null,""]
[null,null,null,null,null,null,"TOTAL 0030",null,{"$f":"SUM(I28:I34)","v":0}]
[null,null,null,{"$f":"INSERTDASH(C36,E36)","v":""}]
["0040",null,null,""]
["0040",null,null,""]
["0040",null,null,""]
["0040",null,null,""]
["0040",null,null,""]
[null,null,null,""]
[null,null,null,null,null,null,"TOTAL 0040",null,{"$f":"SUM(I36:I42)","v":0}]
[null,null,null,{"$f":"INSERTDASH(C44,E44)","v":""}]
["0050",null,null,""]
["0050",null,null,""]
["0050",null,null,""]
["0050",null,null,""]
["0050",null,null,""]
[null,null,null,""]
[null,null,null,null,null,null,"TOTAL 0050",null,{"$f":"SUM(I44:I50)","v":0}]

{"sheet":"522.1060","index":13,"n_rows":51,"n_cols":11,"rows_kept":51,"cut":false,"hidden":false,"merged":[]}
[null,null,null,null,null,null,{"$f":"UPPER(IF('Bid Items'!$C$747=\"\",\"Enter an Item DESCRIPTION in 'Bid Items' sheet\",'Bid Items'!$C$747))","v":"APRON ENDWALLS FOR CULVERT PIPE REINFORCED CONCRETE 60-INCH"}]
[]
[]
[null,null,null,null,null,null,null,null,{"$f":"UPPER('Bid Items'!$B$747)","v":"522.1060"}]
["CATEGORY",null,"STATION","TO"," STATION",null,"LOCATION",null,{"$f":"UPPER('Bid Items'!$E$747)","v":"EACH"},null,"REMARKS"]
[null,null,null,{"$f":"INSERTDASH(C6,E6)","v":""}]
["0010",null,null,"",5184,null,null,null,2]
["0010",null,null,""]
["0010",null,null,""]
["0010",null,null,""]
["0010",null,null,""]
[]
["0010",null,null,""]
["0010",null,null,""]
["0010",null,null,""]
["0010",null,null,""]
["0010",null,null,""]
[null,null,null,""]
[null,null,null,"",null,null,"TOTAL 0010",null,{"$f":"SUM(I6:I18)","v":2}]
[null,null,null,""]
["0020",null,null,""]
["0020",null,null,""]
["0020",null,null,""]
["0020",null,null,""]
["0020",null,null,""]
[null,null,null,""]
[null,null,null,"",null,null,"TOTAL 0020",null,{"$f":"SUM(I20:I26)","v":0}]
[null,null,null,""]
["0030",null,null,""]
["0030",null,null,""]
["0030",null,null,""]
["0030",null,null,""]
["0030",null,null,""]
[null,null,null,""]
[null,null,null,null,null,null,"TOTAL 0030",null,{"$f":"SUM(I28:I34)","v":0}]
[null,null,null,{"$f":"INSERTDASH(C36,E36)","v":""}]
["0040",null,null,""]
["0040",null,null,""]
["0040",null,null,""]
["0040",null,null,""]
["0040",null,null,""]
[null,null,null,""]
[null,null,null,null,null,null,"TOTAL 0040",null,{"$f":"SUM(I36:I42)","v":0}]
[null,null,null,{"$f":"INSERTDASH(C44,E44)","v":""}]
["0050",null,null,""]
["0050",null,null,""]
["0050",null,null,""]
["0050",null,null,""]
["0050",null,null,""]
[null,null,null,""]
[null,null,null,null,null,null,"TOTAL 0050",null,{"$f":"SUM(I44:I50)","v":0}]

{"sheet":"606.0200","index":14,"n_rows":51,"n_cols":19,"rows_kept":51,"cut":false,"hidden":false,"merged":[]}
[null,null,null,null,null,null,{"$f":"UPPER(IF('Bid Items'!$C$1122=\"\",\"Enter an Item DESCRIPTION in 'Bid Items' sheet\",'Bid Items'!$C$1122))","v":"RIPRAP MEDIUM"}]
[]
[]
[null,null,null,null,null,null,null,null,{"$f":"UPPER('Bid Items'!$B$1122)","v":"606.0200"}]
["CATEGORY",null,"STATION","TO"," STATION",null,"LOCATION",null,{"$f":"UPPER('Bid Items'!$E$1122)","v":"CY"},null,"REMARKS",null,null,null,null,null,null,null,"W = width of pipe plus 1' on both sides"]
[null,null,null,{"$f":"INSERTDASH(C6,E6)","v":""}]
["0010",null,null,"",null,null,"northside",null,{"$f":"O17","v":3.8888888888888888},null,null,null,null,null,60,"inch","pipe",null,"L=2*W or 10' min"]
["0010",null,null,"",null,null,"southside",null,{"$f":"O17","v":3.8888888888888888}]
["0010",null,null,"",null,null,null,null,null,null,null,"Depth of Rip Rap = ",18,"inches",{"$f":"M9/12","v":1.5},"ft"]
["0010",null,null,""]
["0010",null,null,"",null,null,null,null,null,null,null,"Width",null,null,7,"ft"]
[]
["0010",null,null,"",null,null,null,null,null,null,null,"Length",null,null,10,"ft"]
["0010",null,null,""]
["0010",null,null,"",null,null,null,null,null,null,null,"Volume (ft3)",null,null,{"$f":"O9*O11*O13","v":105},"ft3"]
["0010",null,null,""]
["0010",null,null,"",null,null,null,null,null,null,null,null,null,null,{"$f":"O15/27","v":3.8888888888888888},"CY"]
[null,null,null,""]
[null,null,null,"",null,null,"TOTAL 0010",null,{"$f":"SUM(I6:I18)","v":7.7777777777777777}]
[null,null,null,""]
["0020",null,null,""]
["0020",null,null,""]
["0020",null,null,""]
["0020",null,null,""]
["0020",null,null,""]
[null,null,null,""]
[null,null,null,"",null,null,"TOTAL 0020",null,{"$f":"SUM(I20:I26)","v":0}]
[null,null,null,""]
["0030",null,null,""]
["0030",null,null,""]
["0030",null,null,""]
["0030",null,null,""]
["0030",null,null,""]
[null,null,null,""]
[null,null,null,null,null,null,"TOTAL 0030",null,{"$f":"SUM(I28:I34)","v":0}]
[null,null,null,{"$f":"INSERTDASH(C36,E36)","v":""}]
["0040",null,null,""]
["0040",null,null,""]
["0040",null,null,""]
["0040",null,null,""]
["0040",null,null,""]
[null,null,null,""]
[null,null,null,null,null,null,"TOTAL 0040",null,{"$f":"SUM(I36:I42)","v":0}]
[null,null,null,{"$f":"INSERTDASH(C44,E44)","v":""}]
["0050",null,null,""]
["0050",null,null,""]
["0050",null,null,""]
["0050",null,null,""]
["0050",null,null,""]
[null,null,null,""]
[null,null,null,null,null,null,"TOTAL 0050",null,{"$f":"SUM(I44:I50)","v":0}]

{"sheet":"614.2300","index":15,"n_rows":51,"n_cols":11,"rows_kept":51,"cut":false,"hidden":false,"merged":[]}
[null,null,null,null,null,null,{"$f":"UPPER(IF('Bid Items'!$C$1403=\"\",\"Enter an Item DESCRIPTION in 'Bid Items' sheet\",'Bid Items'!$C$1403))","v":"MGS GUARDRAIL 3"}]
[]
[]
[null,null,null,null,null,null,null,null,{"$f":"UPPER('Bid Items'!$B$1403)","v":"614.2300"}]
["CATEGORY",null,"STATION","TO"," STATION",null,"LOCATION",null,{"$f":"UPPER('Bid Items'!$E$1403)","v":"LF"},null,"REMARKS"]
[null,null,null,{"$f":"INSERTDASH(C6,E6)","v":""}]
["0010",null,null,"",null,null,"Northside",null,100]
["0010",null,null,"",null,null,"Southside",null,100]
["0010",null,null,""]
["0010",null,null,""]
["0010",null,null,""]
[]
["0010",null,null,""]
["0010",null,null,""]
["0010",null,null,""]
["0010",null,null,""]
["0010",null,null,""]
[null,null,null,""]
[null,null,null,"",null,null,"TOTAL 0010",null,{"$f":"SUM(I6:I18)","v":200}]
[null,null,null,""]
["0020",null,null,""]
["0020",null,null,""]
["0020",null,null,""]
["0020",null,null,""]
["0020",null,null,""]
[null,null,null,""]
[null,null,null,"",null,null,"TOTAL 0020",null,{"$f":"SUM(I20:I26)","v":0}]
[null,null,null,""]
["0030",null,null,""]
["0030",null,null,""]
["0030",null,null,""]
["0030",null,null,""]
["0030",null,null,""]
[null,null,null,""]
[null,null,null,null,null,null,"TOTAL 0030",null,{"$f":"SUM(I28:I34)","v":0}]
[null,null,null,{"$f":"INSERTDASH(C36,E36)","v":""}]
["0040",null,null,""]
["0040",null,null,""]
["0040",null,null,""]
["0040",null,null,""]
["0040",null,null,""]
[null,null,null,""]
[null,null,null,null,null,null,"TOTAL 0040",null,{"$f":"SUM(I36:I42)","v":0}]
[null,null,null,{"$f":"INSERTDASH(C44,E44)","v":""}]
["0050",null,null,""]
["0050",null,null,""]
["0050",null,null,""]
["0050",null,null,""]
["0050",null,null,""]
[null,null,null,""]
[null,null,null,null,null,null,"TOTAL 0050",null,{"$f":"SUM(I44:I50)","v":0}]

{"sheet":"614.2610","index":16,"n_rows":51,"n_cols":11,"rows_kept":51,"cut":false,"hidden":false,"merged":[]}
[null,null,null,null,null,null,{"$f":"UPPER(IF('Bid Items'!$C$1409=\"\",\"Enter an Item DESCRIPTION in 'Bid Items' sheet\",'Bid Items'!$C$1409))","v":"MGS GUARDRAIL TERMINAL EAT"}]
[]
[]
[null,null,null,null,null,null,null,null,{"$f":"UPPER('Bid Items'!$B$1409)","v":"614.2610"}]
["CATEGORY",null,"STATION","TO"," STATION",null,"LOCATION",null,{"$f":"UPPER('Bid Items'!$E$1409)","v":"EACH"},null,"REMARKS"]
[null,null,null,{"$f":"INSERTDASH(C6,E6)","v":""}]
["0010",null,null,"",null,null,"N/W Quadrant",null,1]
["0010",null,null,"",null,null,"S/W Quadrant",null,1]
["0010",null,null,"",null,null,"N/E Quadrant",null,1]
["0010",null,null,"",null,null,"S/E Quadrant",null,1]
["0010",null,null,""]
[]
["0010",null,null,""]
["0010",null,null,""]
["0010",null,null,""]
["0010",null,null,""]
["0010",null,null,""]
[null,null,null,""]
[null,null,null,"",null,null,"TOTAL 0010",null,{"$f":"SUM(I6:I18)","v":4}]
[null,null,null,""]
["0020",null,null,""]
["0020",null,null,""]
["0020",null,null,""]
["0020",null,null,""]
["0020",null,null,""]
[null,null,null,""]
[null,null,null,"",null,null,"TOTAL 0020",null,{"$f":"SUM(I20:I26)","v":0}]
[null,null,null,""]
["0030",null,null,""]
["0030",null,null,""]
["0030",null,null,""]
["0030",null,null,""]
["0030",null,null,""]
[null,null,null,""]
[null,null,null,null,null,null,"TOTAL 0030",null,{"$f":"SUM(I28:I34)","v":0}]
[null,null,null,{"$f":"INSERTDASH(C36,E36)","v":""}]
["0040",null,null,""]
["0040",null,null,""]
["0040",null,null,""]
["0040",null,null,""]
["0040",null,null,""]
[null,null,null,""]
[null,null,null,null,null,null,"TOTAL 0040",null,{"$f":"SUM(I36:I42)","v":0}]
[null,null,null,{"$f":"INSERTDASH(C44,E44)","v":""}]
["0050",null,null,""]
["0050",null,null,""]
["0050",null,null,""]
["0050",null,null,""]
["0050",null,null,""]
[null,null,null,""]
[null,null,null,null,null,null,"TOTAL 0050",null,{"$f":"SUM(I44:I50)","v":0}]

{"sheet":"619.1000","index":17,"n_rows":51,"n_cols":11,"rows_kept":51,"cut":false,"hidden":false,"merged":[]}
[null,null,null,null,null,null,{"$f":"UPPER(IF('Bid Items'!$C$1440=\"\",\"Enter an Item DESCRIPTION in 'Bid Items' sheet\",'Bid Items'!$C$1440))","v":"MOBILIZATION"}]
[]
[]
[null,null,null,null,null,null,null,null,{"$f":"UPPER('Bid Items'!$B$1440)","v":"619.1000"}]
["CATEGORY",null,"STATION","TO"," STATION",null,"LOCATION",null,{"$f":"UPPER('Bid Items'!$E$1440)","v":"EACH"},null,"REMARKS"]
[null,null,null,{"$f":"INSERTDASH(C6,E6)","v":""}]
["0010",null,null,"",null,null,null,null,1,null,"used 4.5% of project cost"]
["0010",null,null,""]
["0010",null,null,""]
["0010",null,null,""]
["0010",null,null,""]
[]
["0010",null,null,""]
["0010",null,null,""]
["0010",null,null,""]
["0010",null,null,""]
["0010",null,null,""]
[null,null,null,""]
[null,null,null,"",null,null,"TOTAL 0010",null,{"$f":"SUM(I6:I18)","v":1}]
[null,null,null,""]
["0020",null,null,""]
["0020",null,null,""]
["0020",null,null,""]
["0020",null,null,""]
["0020",null,null,""]
[null,null,null,""]
[null,null,null,"",null,null,"TOTAL 0020",null,{"$f":"SUM(I20:I26)","v":0}]
[null,null,null,""]
["0030",null,null,""]
["0030",null,null,""]
["0030",null,null,""]
["0030",null,null,""]
["0030",null,null,""]
[null,null,null,""]
[null,null,null,null,null,null,"TOTAL 0030",null,{"$f":"SUM(I28:I34)","v":0}]
[null,null,null,{"$f":"INSERTDASH(C36,E36)","v":""}]
["0040",null,null,""]
["0040",null,null,""]
["0040",null,null,""]
["0040",null,null,""]
["0040",null,null,""]
[null,null,null,""]
[null,null,null,null,null,null,"TOTAL 0040",null,{"$f":"SUM(I36:I42)","v":0}]
[null,null,null,{"$f":"INSERTDASH(C44,E44)","v":""}]
["0050",null,null,""]
["0050",null,null,""]
["0050",null,null,""]
["0050",null,null,""]
["0050",null,null,""]
[null,null,null,""]
[null,null,null,null,null,null,"TOTAL 0050",null,{"$f":"SUM(I44:I50)","v":0}]

{"sheet":"625.0500","index":18,"n_rows":51,"n_cols":20,"rows_kept":51,"cut":false,"hidden":false,"merged":[]}
[null,null,null,null,null,null,{"$f":"UPPER(IF('Bid Items'!$C$1451=\"\",\"Enter an Item DESCRIPTION in 'Bid Items' sheet\",'Bid Items'!$C$1451))","v":"SALVAGED TOPSOIL"}]
[]
[]
[null,null,null,null,null,null,null,null,{"$f":"UPPER('Bid Items'!$B$1451)","v":"625.0500"}]
["CATEGORY",null,"STATION","TO"," STATION",null,"LOCATION",null,{"$f":"UPPER('Bid Items'!$E$1451)","v":"SY"},null,"REMARKS"]
[null,null,null,{"$f":"INSERTDASH(C6,E6)","v":""}]
["0010",null,5034,"-",5334,null,"LT",null,{"$f":"N13","v":700},null,null,null,"Length",{"$f":"E7-C7","v":300},"ft"]
["0010",null,5034,"-",5334,null,"RT",null,{"$f":"N13","v":700},null,null,null,null,null,null,null,null,"Hinge Point",null,"Hinge Point"]
["0010",null,null,"",null,null,null,null,null,null,null,null,"Width",{"$f":"(R9+T9)/2","v":21},"ft",null,"Average Width",19,null,23]
["0010",null,null,""]
["0010",null,null,"",null,null,null,null,null,null,null,null,"Area",{"$f":"N7*N9","v":6300},"ft2"]
[]
["0010",null,null,"",null,null,null,null,null,null,null,null,null,{"$f":"N11/9","v":700},"SY"]
["0010",null,null,""]
["0010",null,null,""]
["0010",null,null,""]
["0010",null,null,""]
[null,null,null,""]
[null,null,null,"",null,null,"TOTAL 0010",null,{"$f":"SUM(I6:I18)","v":1400}]
[null,null,null,""]
["0020",null,null,""]
["0020",null,null,""]
["0020",null,null,""]
["0020",null,null,""]
["0020",null,null,""]
[null,null,null,""]
[null,null,null,"",null,null,"TOTAL 0020",null,{"$f":"SUM(I20:I26)","v":0}]
[null,null,null,""]
["0030",null,null,""]
["0030",null,null,""]
["0030",null,null,""]
["0030",null,null,""]
["0030",null,null,""]
[null,null,null,""]
[null,null,null,null,null,null,"TOTAL 0030",null,{"$f":"SUM(I28:I34)","v":0}]
[null,null,null,{"$f":"INSERTDASH(C36,E36)","v":""}]
["0040",null,null,""]
["0040",null,null,""]
["0040",null,null,""]
["0040",null,null,""]
["0040",null,null,""]
[null,null,null,""]
[null,null,null,null,null,null,"TOTAL 0040",null,{"$f":"SUM(I36:I42)","v":0}]
[null,null,null,{"$f":"INSERTDASH(C44,E44)","v":""}]
["0050",null,null,""]
["0050",null,null,""]
["0050",null,null,""]
["0050",null,null,""]
["0050",null,null,""]
[null,null,null,""]
[null,null,null,null,null,null,"TOTAL 0050",null,{"$f":"SUM(I44:I50)","v":0}]

{"sheet":"628.1504","index":19,"n_rows":51,"n_cols":11,"rows_kept":51,"cut":false,"hidden":false,"merged":[]}
[null,null,null,null,null,null,{"$f":"UPPER(IF('Bid Items'!$C$1456=\"\",\"Enter an Item DESCRIPTION in 'Bid Items' sheet\",'Bid Items'!$C$1456))","v":"SILT FENCE"}]
[]
[]
[null,null,null,null,null,null,null,null,{"$f":"UPPER('Bid Items'!$B$1456)","v":"628.1504"}]
["CATEGORY",null,"STATION","TO"," STATION",null,"LOCATION",null,{"$f":"UPPER('Bid Items'!$E$1456)","v":"LF"},null,"REMARKS"]
[null,null,null,{"$f":"INSERTDASH(C6,E6)","v":""}]
["0010",null,5034,"-",5334,null,"LT",null,350]
["0010",null,5034,"-",5334,null,"RT",null,350]
["0010",null,null,""]
["0010",null,null,""]
["0010",null,null,""]
[]
["0010",null,null,""]
["0010",null,null,""]
["0010",null,null,""]
["0010",null,null,""]
["0010",null,null,""]
[null,null,null,""]
[null,null,null,"",null,null,"TOTAL 0010",null,{"$f":"SUM(I6:I18)","v":700}]
[null,null,null,""]
["0020",null,null,""]
["0020",null,null,""]
["0020",null,null,""]
["0020",null,null,""]
["0020",null,null,""]
[null,null,null,""]
[null,null,null,"",null,null,"TOTAL 0020",null,{"$f":"SUM(I20:I26)","v":0}]
[null,null,null,""]
["0030",null,null,""]
["0030",null,null,""]
["0030",null,null,""]
["0030",null,null,""]
["0030",null,null,""]
[null,null,null,""]
[null,null,null,null,null,null,"TOTAL 0030",null,{"$f":"SUM(I28:I34)","v":0}]
[null,null,null,{"$f":"INSERTDASH(C36,E36)","v":""}]
["0040",null,null,""]
["0040",null,null,""]
["0040",null,null,""]
["0040",null,null,""]
["0040",null,null,""]
[null,null,null,""]
[null,null,null,null,null,null,"TOTAL 0040",null,{"$f":"SUM(I36:I42)","v":0}]
[null,null,null,{"$f":"INSERTDASH(C44,E44)","v":""}]
["0050",null,null,""]
["0050",null,null,""]
["0050",null,null,""]
["0050",null,null,""]
["0050",null,null,""]
[null,null,null,""]
[null,null,null,null,null,null,"TOTAL 0050",null,{"$f":"SUM(I44:I50)","v":0}]

{"sheet":"628.1520","index":20,"n_rows":51,"n_cols":11,"rows_kept":51,"cut":false,"hidden":false,"merged":[]}
[null,null,null,null,null,null,{"$f":"UPPER(IF('Bid Items'!$C$1457=\"\",\"Enter an Item DESCRIPTION in 'Bid Items' sheet\",'Bid Items'!$C$1457))","v":"SILT FENCE MAINTENANCE"}]
[]
[]
[null,null,null,null,null,null,null,null,{"$f":"UPPER('Bid Items'!$B$1457)","v":"628.1520"}]
["CATEGORY",null,"STATION","TO"," STATION",null,"LOCATION",null,{"$f":"UPPER('Bid Items'!$E$1457)","v":"LF"},null,"REMARKS"]
[null,null,null,{"$f":"INSERTDASH(C6,E6)","v":""}]
["0010",null,5034,"-",5334,null,"LT",null,350]
["0010",null,5034,"-",5334,null,"RT",null,350]
["0010",null,null,""]
["0010",null,null,""]
["0010",null,null,""]
[]
["0010",null,null,""]
["0010",null,null,""]
["0010",null,null,""]
["0010",null,null,""]
["0010",null,null,""]
[null,null,null,""]
[null,null,null,"",null,null,"TOTAL 0010",null,{"$f":"SUM(I6:I18)","v":700}]
[null,null,null,""]
["0020",null,null,""]
["0020",null,null,""]
["0020",null,null,""]
["0020",null,null,""]
["0020",null,null,""]
[null,null,null,""]
[null,null,null,"",null,null,"TOTAL 0020",null,{"$f":"SUM(I20:I26)","v":0}]
[null,null,null,""]
["0030",null,null,""]
["0030",null,null,""]
["0030",null,null,""]
["0030",null,null,""]
["0030",null,null,""]
[null,null,null,""]
[null,null,null,null,null,null,"TOTAL 0030",null,{"$f":"SUM(I28:I34)","v":0}]
[null,null,null,{"$f":"INSERTDASH(C36,E36)","v":""}]
["0040",null,null,""]
["0040",null,null,""]
["0040",null,null,""]
["0040",null,null,""]
["0040",null,null,""]
[null,null,null,""]
[null,null,null,null,null,null,"TOTAL 0040",null,{"$f":"SUM(I36:I42)","v":0}]
[null,null,null,{"$f":"INSERTDASH(C44,E44)","v":""}]
["0050",null,null,""]
["0050",null,null,""]
["0050",null,null,""]
["0050",null,null,""]
["0050",null,null,""]
[null,null,null,""]
[null,null,null,null,null,null,"TOTAL 0050",null,{"$f":"SUM(I44:I50)","v":0}]

{"sheet":"628.1905","index":21,"n_rows":51,"n_cols":11,"rows_kept":51,"cut":false,"hidden":false,"merged":[]}
[null,null,null,null,null,null,{"$f":"UPPER(IF('Bid Items'!$C$1459=\"\",\"Enter an Item DESCRIPTION in 'Bid Items' sheet\",'Bid Items'!$C$1459))","v":"MOBILIZATIONS EROSION CONTROL"}]
[]
[]
[null,null,null,null,null,null,null,null,{"$f":"UPPER('Bid Items'!$B$1459)","v":"628.1905"}]
["CATEGORY",null,"STATION","TO"," STATION",null,"LOCATION",null,{"$f":"UPPER('Bid Items'!$E$1459)","v":"EACH"},null,"REMARKS"]
[null,null,null,{"$f":"INSERTDASH(C6,E6)","v":""}]
["0010",null,null,"",null,null,null,null,1]
["0010",null,null,""]
["0010",null,null,""]
["0010",null,null,""]
["0010",null,null,""]
[]
["0010",null,null,""]
["0010",null,null,""]
["0010",null,null,""]
["0010",null,null,""]
["0010",null,null,""]
[null,null,null,""]
[null,null,null,"",null,null,"TOTAL 0010",null,{"$f":"SUM(I6:I18)","v":1}]
[null,null,null,""]
["0020",null,null,""]
["0020",null,null,""]
["0020",null,null,""]
["0020",null,null,""]
["0020",null,null,""]
[null,null,null,""]
[null,null,null,"",null,null,"TOTAL 0020",null,{"$f":"SUM(I20:I26)","v":0}]
[null,null,null,""]
["0030",null,null,""]
["0030",null,null,""]
["0030",null,null,""]
["0030",null,null,""]
["0030",null,null,""]
[null,null,null,""]
[null,null,null,null,null,null,"TOTAL 0030",null,{"$f":"SUM(I28:I34)","v":0}]
[null,null,null,{"$f":"INSERTDASH(C36,E36)","v":""}]
["0040",null,null,""]
["0040",null,null,""]
["0040",null,null,""]
["0040",null,null,""]
["0040",null,null,""]
[null,null,null,""]
[null,null,null,null,null,null,"TOTAL 0040",null,{"$f":"SUM(I36:I42)","v":0}]
[null,null,null,{"$f":"INSERTDASH(C44,E44)","v":""}]
["0050",null,null,""]
["0050",null,null,""]
["0050",null,null,""]
["0050",null,null,""]
["0050",null,null,""]
[null,null,null,""]
[null,null,null,null,null,null,"TOTAL 0050",null,{"$f":"SUM(I44:I50)","v":0}]

{"sheet":"628.1910","index":22,"n_rows":51,"n_cols":11,"rows_kept":51,"cut":false,"hidden":false,"merged":[]}
[null,null,null,null,null,null,{"$f":"UPPER(IF('Bid Items'!$C$1460=\"\",\"Enter an Item DESCRIPTION in 'Bid Items' sheet\",'Bid Items'!$C$1460))","v":"MOBILIZATIONS EMERGENCY EROSION CONTROL"}]
[]
[]
[null,null,null,null,null,null,null,null,{"$f":"UPPER('Bid Items'!$B$1460)","v":"628.1910"}]
["CATEGORY",null,"STATION","TO"," STATION",null,"LOCATION",null,{"$f":"UPPER('Bid Items'!$E$1460)","v":"EACH"},null,"REMARKS"]
[null,null,null,{"$f":"INSERTDASH(C6,E6)","v":""}]
["0010",null,null,"",null,null,null,null,1]
["0010",null,null,""]
["0010",null,null,""]
["0010",null,null,""]
["0010",null,null,""]
[]
["0010",null,null,""]
["0010",null,null,""]
["0010",null,null,""]
["0010",null,null,""]
["0010",null,null,""]
[null,null,null,""]
[null,null,null,"",null,null,"TOTAL 0010",null,{"$f":"SUM(I6:I18)","v":1}]
[null,null,null,""]
["0020",null,null,""]
["0020",null,null,""]
["0020",null,null,""]
["0020",null,null,""]
["0020",null,null,""]
[null,null,null,""]
[null,null,null,"",null,null,"TOTAL 0020",null,{"$f":"SUM(I20:I26)","v":0}]
[null,null,null,""]
["0030",null,null,""]
["0030",null,null,""]
["0030",null,null,""]
["0030",null,null,""]
["0030",null,null,""]
[null,null,null,""]
[null,null,null,null,null,null,"TOTAL 0030",null,{"$f":"SUM(I28:I34)","v":0}]
[null,null,null,{"$f":"INSERTDASH(C36,E36)","v":""}]
["0040",null,null,""]
["0040",null,null,""]
["0040",null,null,""]
["0040",null,null,""]
["0040",null,null,""]
[null,null,null,""]
[null,null,null,null,null,null,"TOTAL 0040",null,{"$f":"SUM(I36:I42)","v":0}]
[null,null,null,{"$f":"INSERTDASH(C44,E44)","v":""}]
["0050",null,null,""]
["0050",null,null,""]
["0050",null,null,""]
["0050",null,null,""]
["0050",null,null,""]
[null,null,null,""]
[null,null,null,null,null,null,"TOTAL 0050",null,{"$f":"SUM(I44:I50)","v":0}]

{"sheet":"628.2004","index":23,"n_rows":51,"n_cols":20,"rows_kept":51,"cut":false,"hidden":false,"merged":[]}
[null,null,null,null,null,null,{"$f":"UPPER(IF('Bid Items'!$C$1463=\"\",\"Enter an Item DESCRIPTION in 'Bid Items' sheet\",'Bid Items'!$C$1463))","v":"EROSION MAT CLASS I TYPE B"}]
[]
[]
[null,null,null,null,null,null,null,null,{"$f":"UPPER('Bid Items'!$B$1463)","v":"628.2004"}]
["CATEGORY",null,"STATION","TO"," STATION",null,"LOCATION",null,{"$f":"UPPER('Bid Items'!$E$1463)","v":"SY"},null,"REMARKS"]
[null,null,null,{"$f":"INSERTDASH(C6,E6)","v":""},null,null,null,null,null,null,null,null,"Length",{"$f":"E7-C7","v":300},"ft"]
["0010",null,5034,"-",5334,null,"LT",null,{"$f":"N12","v":700},null,null,null,null,null,null,null,null,"Hinge Point",null,"Hinge Point"]
["0010",null,5034,"-",5334,null,"RT",null,{"$f":"N12","v":700},null,null,null,"Width",{"$f":"(R8+T8)/2","v":21},"ft",null,"Average Width",19,null,23]
["0010",null,null,""]
["0010",null,null,"",null,null,null,null,null,null,null,null,"Area",{"$f":"N6*N8","v":6300},"ft2"]
["0010",null,null,""]
[null,null,null,null,null,null,null,null,null,null,null,null,null,{"$f":"N10/9","v":700},"SY"]
["0010",null,null,""]
["0010",null,null,""]
["0010",null,null,""]
["0010",null,null,""]
["0010",null,null,""]
[null,null,null,""]
[null,null,null,"",null,null,"TOTAL 0010",null,{"$f":"SUM(I6:I18)","v":1400}]
[null,null,null,""]
["0020",null,null,""]
["0020",null,null,""]
["0020",null,null,""]
["0020",null,null,""]
["0020",null,null,""]
[null,null,null,""]
[null,null,null,"",null,null,"TOTAL 0020",null,{"$f":"SUM(I20:I26)","v":0}]
[null,null,null,""]
["0030",null,null,""]
["0030",null,null,""]
["0030",null,null,""]
["0030",null,null,""]
["0030",null,null,""]
[null,null,null,""]
[null,null,null,null,null,null,"TOTAL 0030",null,{"$f":"SUM(I28:I34)","v":0}]
[null,null,null,{"$f":"INSERTDASH(C36,E36)","v":""}]
["0040",null,null,""]
["0040",null,null,""]
["0040",null,null,""]
["0040",null,null,""]
["0040",null,null,""]
[null,null,null,""]
[null,null,null,null,null,null,"TOTAL 0040",null,{"$f":"SUM(I36:I42)","v":0}]
[null,null,null,{"$f":"INSERTDASH(C44,E44)","v":""}]
["0050",null,null,""]
["0050",null,null,""]
["0050",null,null,""]
["0050",null,null,""]
["0050",null,null,""]
[null,null,null,""]
[null,null,null,null,null,null,"TOTAL 0050",null,{"$f":"SUM(I44:I50)","v":0}]

{"sheet":"628.7504","index":24,"n_rows":51,"n_cols":15,"rows_kept":51,"cut":false,"hidden":false,"merged":[]}
[null,null,null,null,null,null,{"$f":"UPPER(IF('Bid Items'!$C$1481=\"\",\"Enter an Item DESCRIPTION in 'Bid Items' sheet\",'Bid Items'!$C$1481))","v":"TEMPORARY DITCH CHECKS"}]
[]
[]
[null,null,null,null,null,null,null,null,{"$f":"UPPER('Bid Items'!$B$1481)","v":"628.7504"}]
["CATEGORY",null,"STATION","TO"," STATION",null,"LOCATION",null,{"$f":"UPPER('Bid Items'!$E$1481)","v":"LF"},null,"REMARKS"]
[null,null,null,{"$f":"INSERTDASH(C6,E6)","v":""},null,null,null,null,null,null,null,null,"Width",10,"ft"]
["0010",null,5034,"-",5334,null,"North",null,50,null,null,null,"Ditch Check every 50'"]
["0010",null,5034,"-",5334,null,"South",null,50]
["0010",null,null,"",null,null,null,null,null,null,null,null,"Length =",{"$f":"E7-C7","v":300}]
["0010",null,null,""]
["0010",null,null,"",null,null,null,null,null,null,null,null,5,"per/side"]
[]
["0010",null,null,""]
["0010",null,null,""]
["0010",null,null,""]
["0010",null,null,""]
["0010",null,null,""]
[null,null,null,""]
[null,null,null,"",null,null,"TOTAL 0010",null,{"$f":"SUM(I6:I18)","v":100}]
[null,null,null,""]
["0020",null,null,""]
["0020",null,null,""]
["0020",null,null,""]
["0020",null,null,""]
["0020",null,null,""]
[null,null,null,""]
[null,null,null,"",null,null,"TOTAL 0020",null,{"$f":"SUM(I20:I26)","v":0}]
[null,null,null,""]
["0030",null,null,""]
["0030",null,null,""]
["0030",null,null,""]
["0030",null,null,""]
["0030",null,null,""]
[null,null,null,""]
[null,null,null,null,null,null,"TOTAL 0030",null,{"$f":"SUM(I28:I34)","v":0}]
[null,null,null,{"$f":"INSERTDASH(C36,E36)","v":""}]
["0040",null,null,""]
["0040",null,null,""]
["0040",null,null,""]
["0040",null,null,""]
["0040",null,null,""]
[null,null,null,""]
[null,null,null,null,null,null,"TOTAL 0040",null,{"$f":"SUM(I36:I42)","v":0}]
[null,null,null,{"$f":"INSERTDASH(C44,E44)","v":""}]
["0050",null,null,""]
["0050",null,null,""]
["0050",null,null,""]
["0050",null,null,""]
["0050",null,null,""]
[null,null,null,""]
[null,null,null,null,null,null,"TOTAL 0050",null,{"$f":"SUM(I44:I50)","v":0}]

{"sheet":"628.7555","index":25,"n_rows":51,"n_cols":11,"rows_kept":51,"cut":false,"hidden":false,"merged":[]}
[null,null,null,null,null,null,{"$f":"UPPER(IF('Bid Items'!$C$1482=\"\",\"Enter an Item DESCRIPTION in 'Bid Items' sheet\",'Bid Items'!$C$1482))","v":"CULVERT PIPE CHECKS"}]
[]
[]
[null,null,null,null,null,null,null,null,{"$f":"UPPER('Bid Items'!$B$1482)","v":"628.7555"}]
["CATEGORY",null,"STATION","TO"," STATION",null,"LOCATION",null,{"$f":"UPPER('Bid Items'!$E$1482)","v":"EACH"},null,"REMARKS"]
[null,null,null,{"$f":"INSERTDASH(C6,E6)","v":""}]
["0010",null,null,"",null,null,null,null,2]
["0010",null,null,""]
["0010",null,null,""]
["0010",null,null,""]
["0010",null,null,""]
[]
["0010",null,null,""]
["0010",null,null,""]
["0010",null,null,""]
["0010",null,null,""]
["0010",null,null,""]
[null,null,null,""]
[null,null,null,"",null,null,"TOTAL 0010",null,{"$f":"SUM(I6:I18)","v":2}]
[null,null,null,""]
["0020",null,null,""]
["0020",null,null,""]
["0020",null,null,""]
["0020",null,null,""]
["0020",null,null,""]
[null,null,null,""]
[null,null,null,"",null,null,"TOTAL 0020",null,{"$f":"SUM(I20:I26)","v":0}]
[null,null,null,""]
["0030",null,null,""]
["0030",null,null,""]
["0030",null,null,""]
["0030",null,null,""]
["0030",null,null,""]
[null,null,null,""]
[null,null,null,null,null,null,"TOTAL 0030",null,{"$f":"SUM(I28:I34)","v":0}]
[null,null,null,{"$f":"INSERTDASH(C36,E36)","v":""}]
["0040",null,null,""]
["0040",null,null,""]
["0040",null,null,""]
["0040",null,null,""]
["0040",null,null,""]
[null,null,null,""]
[null,null,null,null,null,null,"TOTAL 0040",null,{"$f":"SUM(I36:I42)","v":0}]
[null,null,null,{"$f":"INSERTDASH(C44,E44)","v":""}]
["0050",null,null,""]
["0050",null,null,""]
["0050",null,null,""]
["0050",null,null,""]
["0050",null,null,""]
[null,null,null,""]
[null,null,null,null,null,null,"TOTAL 0050",null,{"$f":"SUM(I44:I50)","v":0}]

{"sheet":"629.0210","index":26,"n_rows":51,"n_cols":16,"rows_kept":51,"cut":false,"hidden":false,"merged":[]}
[null,null,null,null,null,null,{"$f":"UPPER(IF('Bid Items'!$C$1487=\"\",\"Enter an Item DESCRIPTION in 'Bid Items' sheet\",'Bid Items'!$C$1487))","v":"FERTILIZER TYPE B"}]
[]
[]
[null,null,null,null,null,null,null,null,{"$f":"UPPER('Bid Items'!$B$1487)","v":"629.0210"},null,null,"Area"]
["CATEGORY",null,"STATION","TO"," STATION",null,"LOCATION",null,{"$f":"UPPER('Bid Items'!$E$1487)","v":"CWT"},null,"REMARKS","Ft2","Fertilizer","7lbs/((100)(1000sf))",{"$f":"7/((100)*(1000))","v":6.9999999999999994E-5}]
[null,null,null,{"$f":"INSERTDASH(C6,E6)","v":""}]
["0010",null,4914,"-",5454,null,"LT",null,{"$f":"L7*O5","v":0.79379999999999995},null,null,{"$f":"M8*M11","v":11340},"Average Width (ft)","Hinge Point",null,"Hinge Point"]
["0010",null,4914,"-",5454,null,"RT",null,{"$f":"L7*O5","v":0.79379999999999995},null,null,null,{"$f":"(N8+P8)/2","v":21},19,null,23]
["0010",null,null,""]
["0010",null,null,"",null,null,null,null,null,null,null,null,"Length (ft)"]
["0010",null,null,"",null,null,null,null,null,null,null,null,{"$f":"E7-C7","v":540}]
[]
["0010",null,null,""]
["0010",null,null,""]
["0010",null,null,""]
["0010",null,null,""]
["0010",null,null,""]
[null,null,null,""]
[null,null,null,"",null,null,"TOTAL 0010",null,{"$f":"SUM(I6:I18)","v":1.5875999999999999}]
[null,null,null,""]
["0020",null,null,""]
["0020",null,null,""]
["0020",null,null,""]
["0020",null,null,""]
["0020",null,null,""]
[null,null,null,""]
[null,null,null,"",null,null,"TOTAL 0020",null,{"$f":"SUM(I20:I26)","v":0}]
[null,null,null,""]
["0030",null,null,""]
["0030",null,null,""]
["0030",null,null,""]
["0030",null,null,""]
["0030",null,null,""]
[null,null,null,""]
[null,null,null,null,null,null,"TOTAL 0030",null,{"$f":"SUM(I28:I34)","v":0}]
[null,null,null,{"$f":"INSERTDASH(C36,E36)","v":""}]
["0040",null,null,""]
["0040",null,null,""]
["0040",null,null,""]
["0040",null,null,""]
["0040",null,null,""]
[null,null,null,""]
[null,null,null,null,null,null,"TOTAL 0040",null,{"$f":"SUM(I36:I42)","v":0}]
[null,null,null,{"$f":"INSERTDASH(C44,E44)","v":""}]
["0050",null,null,""]
["0050",null,null,""]
["0050",null,null,""]
["0050",null,null,""]
["0050",null,null,""]
[null,null,null,""]
[null,null,null,null,null,null,"TOTAL 0050",null,{"$f":"SUM(I44:I50)","v":0}]

{"sheet":"630.0120","index":27,"n_rows":51,"n_cols":18,"rows_kept":51,"cut":false,"hidden":false,"merged":[]}
[null,null,null,null,null,null,{"$f":"UPPER(IF('Bid Items'!$C$1490=\"\",\"Enter an Item DESCRIPTION in 'Bid Items' sheet\",'Bid Items'!$C$1490))","v":"SEEDING MIXTURE NO. 20"},null,null,null,null,null,null,"rate ","2#/1000",{"$f":"2/1000","v":2E-3}]
[]
[]
[null,null,null,null,null,null,null,null,{"$f":"UPPER('Bid Items'!$B$1490)","v":"630.0120"},null,null,"Area","Length",null,"Average Width (ft)","Hinge Point",null,"Hinge Point"]
["CATEGORY",null,"STATION","TO"," STATION",null,"LOCATION",null,{"$f":"UPPER('Bid Items'!$E$1490)","v":"LB"},null,"REMARKS","ft2","ft",null,{"$f":"(P5+R5)/2","v":21},19,null,23]
[null,null,null,{"$f":"INSERTDASH(C6,E6)","v":""}]
["0010",null,4914,"-",5454,null,"LT",null,{"$f":"L7*P1","v":22.68},null,null,{"$f":"O5*M7","v":11340},{"$f":"E7-C7","v":540}]
["0010",null,4914,"-",5454,null,"RT",null,{"$f":"L7*P1","v":22.68}]
["0010",null,null,""]
["0010",null,null,""]
["0010",null,null,""]
[]
["0010",null,null,""]
["0010",null,null,""]
["0010",null,null,""]
["0010",null,null,""]
["0010",null,null,""]
[null,null,null,""]
[null,null,null,"",null,null,"TOTAL 0010",null,{"$f":"SUM(I6:I18)","v":45.36}]
[null,null,null,""]
["0020",null,null,""]
["0020",null,null,""]
["0020",null,null,""]
["0020",null,null,""]
["0020",null,null,""]
[null,null,null,""]
[null,null,null,"",null,null,"TOTAL 0020",null,{"$f":"SUM(I20:I26)","v":0}]
[null,null,null,""]
["0030",null,null,""]
["0030",null,null,""]
["0030",null,null,""]
["0030",null,null,""]
["0030",null,null,""]
[null,null,null,""]
[null,null,null,null,null,null,"TOTAL 0030",null,{"$f":"SUM(I28:I34)","v":0}]
[null,null,null,{"$f":"INSERTDASH(C36,E36)","v":""}]
["0040",null,null,""]
["0040",null,null,""]
["0040",null,null,""]
["0040",null,null,""]
["0040",null,null,""]
[null,null,null,""]
[null,null,null,null,null,null,"TOTAL 0040",null,{"$f":"SUM(I36:I42)","v":0}]
[null,null,null,{"$f":"INSERTDASH(C44,E44)","v":""}]
["0050",null,null,""]
["0050",null,null,""]
["0050",null,null,""]
["0050",null,null,""]
["0050",null,null,""]
[null,null,null,""]
[null,null,null,null,null,null,"TOTAL 0050",null,{"$f":"SUM(I44:I50)","v":0}]

{"sheet":"630.0200","index":28,"n_rows":51,"n_cols":17,"rows_kept":51,"cut":false,"hidden":false,"merged":[]}
[null,null,null,null,null,null,{"$f":"UPPER(IF('Bid Items'!$C$1498=\"\",\"Enter an Item DESCRIPTION in 'Bid Items' sheet\",'Bid Items'!$C$1498))","v":"SEEDING TEMPORARY"},null,null,null,null,null,"rate ","3#/1000",{"$f":"3/1000","v":3.0000000000000001E-3}]
[]
[]
[null,null,null,null,null,null,null,null,{"$f":"UPPER('Bid Items'!$B$1498)","v":"630.0200"},null,null,"Area","Length",null,"Average Width (ft)","Hinge Point","Hinge Point"]
["CATEGORY",null,"STATION","TO"," STATION",null,"LOCATION",null,{"$f":"UPPER('Bid Items'!$E$1498)","v":"LB"},null,"REMARKS","ft2","ft",null,{"$f":"(P5+Q5)/2","v":21},19,23]
[null,null,null,{"$f":"INSERTDASH(C6,E6)","v":""}]
["0010",null,4914,"-",5454,null,null,null,{"$f":"L7*O1","v":34.020000000000003},null,null,{"$f":"M7*O5","v":11340},{"$f":"E7-C7","v":540}]
["0010",null,4914,"-",5454,null,null,null,{"$f":"L7*O1","v":34.020000000000003}]
["0010",null,null,""]
["0010",null,null,""]
["0010",null,null,""]
[]
["0010",null,null,""]
["0010",null,null,""]
["0010",null,null,""]
["0010",null,null,""]
["0010",null,null,""]
[null,null,null,""]
[null,null,null,"",null,null,"TOTAL 0010",null,{"$f":"SUM(I6:I18)","v":68.040000000000006}]
[null,null,null,""]
["0020",null,null,""]
["0020",null,null,""]
["0020",null,null,""]
["0020",null,null,""]
["0020",null,null,""]
[null,null,null,""]
[null,null,null,"",null,null,"TOTAL 0020",null,{"$f":"SUM(I20:I26)","v":0}]
[null,null,null,""]
["0030",null,null,""]
["0030",null,null,""]
["0030",null,null,""]
["0030",null,null,""]
["0030",null,null,""]
[null,null,null,""]
[null,null,null,null,null,null,"TOTAL 0030",null,{"$f":"SUM(I28:I34)","v":0}]
[null,null,null,{"$f":"INSERTDASH(C36,E36)","v":""}]
["0040",null,null,""]
["0040",null,null,""]
["0040",null,null,""]
["0040",null,null,""]
["0040",null,null,""]
[null,null,null,""]
[null,null,null,null,null,null,"TOTAL 0040",null,{"$f":"SUM(I36:I42)","v":0}]
[null,null,null,{"$f":"INSERTDASH(C44,E44)","v":""}]
["0050",null,null,""]
["0050",null,null,""]
["0050",null,null,""]
["0050",null,null,""]
["0050",null,null,""]
[null,null,null,""]
[null,null,null,null,null,null,"TOTAL 0050",null,{"$f":"SUM(I44:I50)","v":0}]

{"sheet":"633.5200","index":29,"n_rows":51,"n_cols":11,"rows_kept":51,"cut":false,"hidden":false,"merged":[]}
[null,null,null,null,null,null,{"$f":"UPPER(IF('Bid Items'!$C$1515=\"\",\"Enter an Item DESCRIPTION in 'Bid Items' sheet\",'Bid Items'!$C$1515))","v":"MARKERS CULVERT END"}]
[]
[]
[null,null,null,null,null,null,null,null,{"$f":"UPPER('Bid Items'!$B$1515)","v":"633.5200"}]
["CATEGORY",null,"STATION","TO"," STATION",null,"LOCATION",null,{"$f":"UPPER('Bid Items'!$E$1515)","v":"EACH"},null,"REMARKS"]
[null,null,null,{"$f":"INSERTDASH(C6,E6)","v":""}]
["0010",null,null,"",5184,null,null,null,2]
["0010",null,null,""]
["0010",null,null,""]
["0010",null,null,""]
["0010",null,null,""]
[]
["0010",null,null,""]
["0010",null,null,""]
["0010",null,null,""]
["0010",null,null,""]
["0010",null,null,""]
[null,null,null,""]
[null,null,null,"",null,null,"TOTAL 0010",null,{"$f":"SUM(I6:I18)","v":2}]
[null,null,null,""]
["0020",null,null,""]
["0020",null,null,""]
["0020",null,null,""]
["0020",null,null,""]
["0020",null,null,""]
[null,null,null,""]
[null,null,null,"",null,null,"TOTAL 0020",null,{"$f":"SUM(I20:I26)","v":0}]
[null,null,null,""]
["0030",null,null,""]
["0030",null,null,""]
["0030",null,null,""]
["0030",null,null,""]
["0030",null,null,""]
[null,null,null,""]
[null,null,null,null,null,null,"TOTAL 0030",null,{"$f":"SUM(I28:I34)","v":0}]
[null,null,null,{"$f":"INSERTDASH(C36,E36)","v":""}]
["0040",null,null,""]
["0040",null,null,""]
["0040",null,null,""]
["0040",null,null,""]
["0040",null,null,""]
[null,null,null,""]
[null,null,null,null,null,null,"TOTAL 0040",null,{"$f":"SUM(I36:I42)","v":0}]
[null,null,null,{"$f":"INSERTDASH(C44,E44)","v":""}]
["0050",null,null,""]
["0050",null,null,""]
["0050",null,null,""]
["0050",null,null,""]
["0050",null,null,""]
[null,null,null,""]
[null,null,null,null,null,null,"TOTAL 0050",null,{"$f":"SUM(I44:I50)","v":0}]

{"sheet":"634.0416","index":30,"n_rows":51,"n_cols":11,"rows_kept":51,"cut":false,"hidden":false,"merged":[]}
[null,null,null,null,null,null,{"$f":"UPPER(IF('Bid Items'!$C$1520=\"\",\"Enter an Item DESCRIPTION in 'Bid Items' sheet\",'Bid Items'!$C$1520))","v":"POSTS WOOD 4X4-INCH X 16-FT"}]
[]
[]
[null,null,null,null,null,null,null,null,{"$f":"UPPER('Bid Items'!$B$1520)","v":"634.0416"}]
["CATEGORY",null,"STATION","TO"," STATION",null,"LOCATION",null,{"$f":"UPPER('Bid Items'!$E$1520)","v":"EACH"},null,"REMARKS"]
[null,null,null,{"$f":"INSERTDASH(C6,E6)","v":""}]
["0010",null,null,"",null,null,"Southside",null,1]
["0010",null,null,""]
["0010",null,null,""]
["0010",null,null,""]
["0010",null,null,""]
[]
["0010",null,null,""]
["0010",null,null,""]
["0010",null,null,""]
["0010",null,null,""]
["0010",null,null,""]
[null,null,null,""]
[null,null,null,"",null,null,"TOTAL 0010",null,{"$f":"SUM(I6:I18)","v":1}]
[null,null,null,""]
["0020",null,null,""]
["0020",null,null,""]
["0020",null,null,""]
["0020",null,null,""]
["0020",null,null,""]
[null,null,null,""]
[null,null,null,"",null,null,"TOTAL 0020",null,{"$f":"SUM(I20:I26)","v":0}]
[null,null,null,""]
["0030",null,null,""]
["0030",null,null,""]
["0030",null,null,""]
["0030",null,null,""]
["0030",null,null,""]
[null,null,null,""]
[null,null,null,null,null,null,"TOTAL 0030",null,{"$f":"SUM(I28:I34)","v":0}]
[null,null,null,{"$f":"INSERTDASH(C36,E36)","v":""}]
["0040",null,null,""]
["0040",null,null,""]
["0040",null,null,""]
["0040",null,null,""]
["0040",null,null,""]
[null,null,null,""]
[null,null,null,null,null,null,"TOTAL 0040",null,{"$f":"SUM(I36:I42)","v":0}]
[null,null,null,{"$f":"INSERTDASH(C44,E44)","v":""}]
["0050",null,null,""]
["0050",null,null,""]
["0050",null,null,""]
["0050",null,null,""]
["0050",null,null,""]
[null,null,null,""]
[null,null,null,null,null,null,"TOTAL 0050",null,{"$f":"SUM(I44:I50)","v":0}]

{"sheet":"634.0805","index":31,"n_rows":51,"n_cols":11,"rows_kept":51,"cut":false,"hidden":false,"merged":[]}
[null,null,null,null,null,null,{"$f":"UPPER(IF('Bid Items'!$C$1531=\"\",\"Enter an Item DESCRIPTION in 'Bid Items' sheet\",'Bid Items'!$C$1531))","v":"POSTS TUBULAR STEEL 2X2-INCH X 5-FT"}]
[]
[]
[null,null,null,null,null,null,null,null,{"$f":"UPPER('Bid Items'!$B$1531)","v":"634.0805"}]
["CATEGORY",null,"STATION","TO"," STATION",null,"LOCATION",null,{"$f":"UPPER('Bid Items'!$E$1531)","v":"EACH"},null,"REMARKS"]
[null,null,null,{"$f":"INSERTDASH(C6,E6)","v":""}]
["0010",null,null,"",null,null,"N/W Quadrant",null,1]
["0010",null,null,"",null,null,"S/W Quadrant",null,1]
["0010",null,null,"",null,null,"N/E Quadrant",null,1]
["0010",null,null,"",null,null,"S/E Quadrant",null,1]
["0010",null,null,""]
[]
["0010",null,null,""]
["0010",null,null,""]
["0010",null,null,""]
["0010",null,null,""]
["0010",null,null,""]
[null,null,null,""]
[null,null,null,"",null,null,"TOTAL 0010",null,{"$f":"SUM(I6:I18)","v":4}]
[null,null,null,""]
["0020",null,null,""]
["0020",null,null,""]
["0020",null,null,""]
["0020",null,null,""]
["0020",null,null,""]
[null,null,null,""]
[null,null,null,"",null,null,"TOTAL 0020",null,{"$f":"SUM(I20:I26)","v":0}]
[null,null,null,""]
["0030",null,null,""]
["0030",null,null,""]
["0030",null,null,""]
["0030",null,null,""]
["0030",null,null,""]
[null,null,null,""]
[null,null,null,null,null,null,"TOTAL 0030",null,{"$f":"SUM(I28:I34)","v":0}]
[null,null,null,{"$f":"INSERTDASH(C36,E36)","v":""}]
["0040",null,null,""]
["0040",null,null,""]
["0040",null,null,""]
["0040",null,null,""]
["0040",null,null,""]
[null,null,null,""]
[null,null,null,null,null,null,"TOTAL 0040",null,{"$f":"SUM(I36:I42)","v":0}]
[null,null,null,{"$f":"INSERTDASH(C44,E44)","v":""}]
["0050",null,null,""]
["0050",null,null,""]
["0050",null,null,""]
["0050",null,null,""]
["0050",null,null,""]
[null,null,null,""]
[null,null,null,null,null,null,"TOTAL 0050",null,{"$f":"SUM(I44:I50)","v":0}]

{"sheet":"637.2210","index":32,"n_rows":51,"n_cols":11,"rows_kept":51,"cut":false,"hidden":false,"merged":[]}
[null,null,null,null,null,null,{"$f":"UPPER(IF('Bid Items'!$C$1556=\"\",\"Enter an Item DESCRIPTION in 'Bid Items' sheet\",'Bid Items'!$C$1556))","v":"SIGNS TYPE II REFLECTIVE H"}]
[]
[]
[null,null,null,null,null,null,null,null,{"$f":"UPPER('Bid Items'!$B$1556)","v":"637.2210"}]
["CATEGORY",null,"STATION","TO"," STATION",null,"LOCATION",null,{"$f":"UPPER('Bid Items'!$E$1556)","v":"SF"},null,"REMARKS"]
[null,null,null,{"$f":"INSERTDASH(C6,E6)","v":""}]
["0010",null,null,"",null,null,null,null,3,null,"W5-52L"]
["0010",null,null,"",null,null,null,null,3,null,"W5-52R"]
["0010",null,null,"",null,null,null,null,3,null,"W5-52L"]
["0010",null,null,"",null,null,null,null,3,null,"W5-52R"]
["0010",null,null,"",null,null,null,null,6.25,null,"W10-4"]
[]
["0010",null,null,""]
["0010",null,null,""]
["0010",null,null,""]
["0010",null,null,""]
["0010",null,null,""]
[null,null,null,""]
[null,null,null,"",null,null,"TOTAL 0010",null,{"$f":"SUM(I6:I18)","v":18.25}]
[null,null,null,""]
["0020",null,null,""]
["0020",null,null,""]
["0020",null,null,""]
["0020",null,null,""]
["0020",null,null,""]
[null,null,null,""]
[null,null,null,"",null,null,"TOTAL 0020",null,{"$f":"SUM(I20:I26)","v":0}]
[null,null,null,""]
["0030",null,null,""]
["0030",null,null,""]
["0030",null,null,""]
["0030",null,null,""]
["0030",null,null,""]
[null,null,null,""]
[null,null,null,null,null,null,"TOTAL 0030",null,{"$f":"SUM(I28:I34)","v":0}]
[null,null,null,{"$f":"INSERTDASH(C36,E36)","v":""}]
["0040",null,null,""]
["0040",null,null,""]
["0040",null,null,""]
["0040",null,null,""]
["0040",null,null,""]
[null,null,null,""]
[null,null,null,null,null,null,"TOTAL 0040",null,{"$f":"SUM(I36:I42)","v":0}]
[null,null,null,{"$f":"INSERTDASH(C44,E44)","v":""}]
["0050",null,null,""]
["0050",null,null,""]
["0050",null,null,""]
["0050",null,null,""]
["0050",null,null,""]
[null,null,null,""]
[null,null,null,null,null,null,"TOTAL 0050",null,{"$f":"SUM(I44:I50)","v":0}]

{"sheet":"638.2602","index":33,"n_rows":51,"n_cols":11,"rows_kept":51,"cut":false,"hidden":false,"merged":[]}
[null,null,null,null,null,null,{"$f":"UPPER(IF('Bid Items'!$C$1570=\"\",\"Enter an Item DESCRIPTION in 'Bid Items' sheet\",'Bid Items'!$C$1570))","v":"REMOVING SIGNS TYPE II"}]
[]
[]
[null,null,null,null,null,null,null,null,{"$f":"UPPER('Bid Items'!$B$1570)","v":"638.2602"}]
["CATEGORY",null,"STATION","TO"," STATION",null,"LOCATION",null,{"$f":"UPPER('Bid Items'!$E$1570)","v":"EACH"},null,"REMARKS"]
[null,null,null,{"$f":"INSERTDASH(C6,E6)","v":""}]
["0010",null,null,"",null,null,null,null,1,null,"W5-52L"]
["0010",null,null,"",null,null,null,null,1,null,"W5-52R"]
["0010",null,null,"",null,null,null,null,1,null,"W5-52L"]
["0010",null,null,"",null,null,null,null,1,null,"W5-52R"]
["0010",null,null,"",null,null,null,null,1,null,"W10-4"]
[]
["0010",null,null,""]
["0010",null,null,""]
["0010",null,null,""]
["0010",null,null,""]
["0010",null,null,""]
[null,null,null,""]
[null,null,null,"",null,null,"TOTAL 0010",null,{"$f":"SUM(I6:I18)","v":5}]
[null,null,null,""]
["0020",null,null,""]
["0020",null,null,""]
["0020",null,null,""]
["0020",null,null,""]
["0020",null,null,""]
[null,null,null,""]
[null,null,null,"",null,null,"TOTAL 0020",null,{"$f":"SUM(I20:I26)","v":0}]
[null,null,null,""]
["0030",null,null,""]
["0030",null,null,""]
["0030",null,null,""]
["0030",null,null,""]
["0030",null,null,""]
[null,null,null,""]
[null,null,null,null,null,null,"TOTAL 0030",null,{"$f":"SUM(I28:I34)","v":0}]
[null,null,null,{"$f":"INSERTDASH(C36,E36)","v":""}]
["0040",null,null,""]
["0040",null,null,""]
["0040",null,null,""]
["0040",null,null,""]
["0040",null,null,""]
[null,null,null,""]
[null,null,null,null,null,null,"TOTAL 0040",null,{"$f":"SUM(I36:I42)","v":0}]
[null,null,null,{"$f":"INSERTDASH(C44,E44)","v":""}]
["0050",null,null,""]
["0050",null,null,""]
["0050",null,null,""]
["0050",null,null,""]
["0050",null,null,""]
[null,null,null,""]
[null,null,null,null,null,null,"TOTAL 0050",null,{"$f":"SUM(I44:I50)","v":0}]

{"sheet":"642.5001","index":34,"n_rows":51,"n_cols":11,"rows_kept":51,"cut":false,"hidden":false,"merged":[]}
[null,null,null,null,null,null,{"$f":"UPPER(IF('Bid Items'!$C$1613=\"\",\"Enter an Item DESCRIPTION in 'Bid Items' sheet\",'Bid Items'!$C$1613))","v":"FIELD OFFICE TYPE B"}]
[]
[]
[null,null,null,null,null,null,null,null,{"$f":"UPPER('Bid Items'!$B$1613)","v":"642.5001"}]
["CATEGORY",null,"STATION","TO"," STATION",null,"LOCATION",null,{"$f":"UPPER('Bid Items'!$E$1613)","v":"EACH"},null,"REMARKS"]
[null,null,null,{"$f":"INSERTDASH(C6,E6)","v":""}]
["0010",null,null,"",null,null,null,null,1]
["0010",null,null,""]
["0010",null,null,""]
["0010",null,null,""]
["0010",null,null,""]
[]
["0010",null,null,""]
["0010",null,null,""]
["0010",null,null,""]
["0010",null,null,""]
["0010",null,null,""]
[null,null,null,""]
[null,null,null,"",null,null,"TOTAL 0010",null,{"$f":"SUM(I6:I18)","v":1}]
[null,null,null,""]
["0020",null,null,""]
["0020",null,null,""]
["0020",null,null,""]
["0020",null,null,""]
["0020",null,null,""]
[null,null,null,""]
[null,null,null,"",null,null,"TOTAL 0020",null,{"$f":"SUM(I20:I26)","v":0}]
[null,null,null,""]
["0030",null,null,""]
["0030",null,null,""]
["0030",null,null,""]
["0030",null,null,""]
["0030",null,null,""]
[null,null,null,""]
[null,null,null,null,null,null,"TOTAL 0030",null,{"$f":"SUM(I28:I34)","v":0}]
[null,null,null,{"$f":"INSERTDASH(C36,E36)","v":""}]
["0040",null,null,""]
["0040",null,null,""]
["0040",null,null,""]
["0040",null,null,""]
["0040",null,null,""]
[null,null,null,""]
[null,null,null,null,null,null,"TOTAL 0040",null,{"$f":"SUM(I36:I42)","v":0}]
[null,null,null,{"$f":"INSERTDASH(C44,E44)","v":""}]
["0050",null,null,""]
["0050",null,null,""]
["0050",null,null,""]
["0050",null,null,""]
["0050",null,null,""]
[null,null,null,""]
[null,null,null,null,null,null,"TOTAL 0050",null,{"$f":"SUM(I44:I50)","v":0}]

{"sheet":"645.0120","index":35,"n_rows":51,"n_cols":20,"rows_kept":51,"cut":false,"hidden":false,"merged":[]}
[null,null,null,null,null,null,{"$f":"UPPER(IF('Bid Items'!$C$1643=\"\",\"Enter an Item DESCRIPTION in 'Bid Items' sheet\",'Bid Items'!$C$1643))","v":"GEOTEXTILE FABRIC TYPE HR"}]
[]
[]
[null,null,null,null,null,null,null,null,{"$f":"UPPER('Bid Items'!$B$1643)","v":"645.0120"}]
["CATEGORY",null,"STATION","TO"," STATION",null,"LOCATION",null,{"$f":"UPPER('Bid Items'!$E$1643)","v":"SY"},null,"REMARKS",null,null,null,null,null,null,null,null,"W = width of pipe plus 1' on both sides"]
[null,null,null,{"$f":"INSERTDASH(C6,E6)","v":""}]
["0010",null,null,"",null,null,"LT",null,{"$f":"P17","v":7.7777777777777777},null,null,null,null,null,null,60,"inch","pipe",null,"L=2*W or 10' min"]
["0010",null,null,"",null,null,"RT",null,{"$f":"P17","v":7.7777777777777777}]
["0010",null,null,""]
["0010",null,null,""]
["0010",null,null,"",null,null,null,null,null,null,null,null,"Width",null,null,7,"ft"]
[]
["0010",null,null,"",null,null,null,null,null,null,null,null,"Length",null,null,10,"ft"]
["0010",null,null,""]
["0010",null,null,"",null,null,null,null,null,null,null,null,"Area",null,null,{"$f":"P11*P13","v":70},"ft2"]
["0010",null,null,""]
["0010",null,null,"",null,null,null,null,null,null,null,null,null,null,null,{"$f":"P15/9","v":7.7777777777777777},"SY"]
[null,null,null,""]
[null,null,null,"",null,null,"TOTAL 0010",null,{"$f":"SUM(I6:I18)","v":15.555555555555555}]
[null,null,null,""]
["0020",null,null,""]
["0020",null,null,""]
["0020",null,null,""]
["0020",null,null,""]
["0020",null,null,""]
[null,null,null,""]
[null,null,null,"",null,null,"TOTAL 0020",null,{"$f":"SUM(I20:I26)","v":0}]
[null,null,null,""]
["0030",null,null,""]
["0030",null,null,""]
["0030",null,null,""]
["0030",null,null,""]
["0030",null,null,""]
[null,null,null,""]
[null,null,null,null,null,null,"TOTAL 0030",null,{"$f":"SUM(I28:I34)","v":0}]
[null,null,null,{"$f":"INSERTDASH(C36,E36)","v":""}]
["0040",null,null,""]
["0040",null,null,""]
["0040",null,null,""]
["0040",null,null,""]
["0040",null,null,""]
[null,null,null,""]
[null,null,null,null,null,null,"TOTAL 0040",null,{"$f":"SUM(I36:I42)","v":0}]
[null,null,null,{"$f":"INSERTDASH(C44,E44)","v":""}]
["0050",null,null,""]
["0050",null,null,""]
["0050",null,null,""]
["0050",null,null,""]
["0050",null,null,""]
[null,null,null,""]
[null,null,null,null,null,null,"TOTAL 0050",null,{"$f":"SUM(I44:I50)","v":0}]

{"sheet":"646.0106","index":36,"n_rows":51,"n_cols":21,"rows_kept":51,"cut":false,"hidden":false,"merged":[]}
[null,null,null,null,null,null,{"$f":"UPPER(IF('Bid Items'!$C$1650=\"\",\"Enter an Item DESCRIPTION in 'Bid Items' sheet\",'Bid Items'!$C$1650))","v":"PAVEMENT MARKING EPOXY 4-INCH"}]
[]
[]
[null,null,null,null,null,null,null,null,{"$f":"UPPER('Bid Items'!$B$1650)","v":"646.0106"},null,null,null,"length"]
["CATEGORY",null,"STATION","TO"," STATION",null,"LOCATION",null,{"$f":"UPPER('Bid Items'!$E$1650)","v":"LF"},null,"REMARKS",null,"ft"]
[null,null,null,{"$f":"INSERTDASH(C6,E6)","v":""}]
["0010",null,4914,"-",5454,null,"LT",null,{"$f":"M7","v":540},null,"white",null,{"$f":"E7-C7","v":540}]
["0010",null,4914,"-",5454,null,"RT",null,{"$f":"M8","v":540},null,"white",null,{"$f":"E8-C8","v":540}]
["0010",null,4914,"-",5454,null,null,null,{"$f":"M9","v":540},null,"yellow - solid",null,{"$f":"E9-C9","v":540}]
["0010",null,null,"",null,null,null,null,{"$f":"O12","v":135},null,"yellow - skips",null,{"$f":"E9-C9","v":540},null,{"$f":"M10/R10","v":10.8},1,"skip/",50,"ft",12.5,"ft/skip"]
["0010",null,null,""]
[null,null,null,null,null,null,null,null,null,null,null,null,null,null,{"$f":"O10*T10","v":135},"ft of yellow for skips"]
["0010",null,null,""]
["0010",null,null,""]
["0010",null,null,""]
["0010",null,null,""]
["0010",null,null,""]
[null,null,null,""]
[null,null,null,"",null,null,"TOTAL 0010",null,{"$f":"SUM(I6:I18)","v":1755}]
[null,null,null,""]
["0020",null,null,""]
["0020",null,null,""]
["0020",null,null,""]
["0020",null,null,""]
["0020",null,null,""]
[null,null,null,""]
[null,null,null,"",null,null,"TOTAL 0020",null,{"$f":"SUM(I20:I26)","v":0}]
[null,null,null,""]
["0030",null,null,""]
["0030",null,null,""]
["0030",null,null,""]
["0030",null,null,""]
["0030",null,null,""]
[null,null,null,""]
[null,null,null,null,null,null,"TOTAL 0030",null,{"$f":"SUM(I28:I34)","v":0}]
[null,null,null,{"$f":"INSERTDASH(C36,E36)","v":""}]
["0040",null,null,""]
["0040",null,null,""]
["0040",null,null,""]
["0040",null,null,""]
["0040",null,null,""]
[null,null,null,""]
[null,null,null,null,null,null,"TOTAL 0040",null,{"$f":"SUM(I36:I42)","v":0}]
[null,null,null,{"$f":"INSERTDASH(C44,E44)","v":""}]
["0050",null,null,""]
["0050",null,null,""]
["0050",null,null,""]
["0050",null,null,""]
["0050",null,null,""]
[null,null,null,""]
[null,null,null,null,null,null,"TOTAL 0050",null,{"$f":"SUM(I44:I50)","v":0}]

{"sheet":"648.0100","index":37,"n_rows":51,"n_cols":11,"rows_kept":51,"cut":false,"hidden":false,"merged":[]}
[null,null,null,null,null,null,{"$f":"UPPER(IF('Bid Items'!$C$1829=\"\",\"Enter an Item DESCRIPTION in 'Bid Items' sheet\",'Bid Items'!$C$1829))","v":"LOCATING NO-PASSING ZONES"}]
[]
[]
[null,null,null,null,null,null,null,null,{"$f":"UPPER('Bid Items'!$B$1829)","v":"648.0100"}]
["CATEGORY",null,"STATION","TO"," STATION",null,"LOCATION",null,{"$f":"UPPER('Bid Items'!$E$1829)","v":"MI"},null,"REMARKS"]
[null,null,null,{"$f":"INSERTDASH(C6,E6)","v":""}]
["0010",null,null,"",null,null,"Project",null,0.13]
["0010",null,null,""]
["0010",null,null,""]
["0010",null,null,""]
["0010",null,null,""]
[]
["0010",null,null,""]
["0010",null,null,""]
["0010",null,null,""]
["0010",null,null,""]
["0010",null,null,""]
[null,null,null,""]
[null,null,null,"",null,null,"TOTAL 0010",null,{"$f":"SUM(I6:I18)","v":0.13}]
[null,null,null,""]
["0020",null,null,""]
["0020",null,null,""]
["0020",null,null,""]
["0020",null,null,""]
["0020",null,null,""]
[null,null,null,""]
[null,null,null,"",null,null,"TOTAL 0020",null,{"$f":"SUM(I20:I26)","v":0}]
[null,null,null,""]
["0030",null,null,""]
["0030",null,null,""]
["0030",null,null,""]
["0030",null,null,""]
["0030",null,null,""]
[null,null,null,""]
[null,null,null,null,null,null,"TOTAL 0030",null,{"$f":"SUM(I28:I34)","v":0}]
[null,null,null,{"$f":"INSERTDASH(C36,E36)","v":""}]
["0040",null,null,""]
["0040",null,null,""]
["0040",null,null,""]
["0040",null,null,""]
["0040",null,null,""]
[null,null,null,""]
[null,null,null,null,null,null,"TOTAL 0040",null,{"$f":"SUM(I36:I42)","v":0}]
[null,null,null,{"$f":"INSERTDASH(C44,E44)","v":""}]
["0050",null,null,""]
["0050",null,null,""]
["0050",null,null,""]
["0050",null,null,""]
["0050",null,null,""]
[null,null,null,""]
[null,null,null,null,null,null,"TOTAL 0050",null,{"$f":"SUM(I44:I50)","v":0}]

{"sheet":"650.6000","index":38,"n_rows":51,"n_cols":11,"rows_kept":51,"cut":false,"hidden":false,"merged":[]}
[null,null,null,null,null,null,{"$f":"UPPER(IF('Bid Items'!$C$1854=\"\",\"Enter an Item DESCRIPTION in 'Bid Items' sheet\",'Bid Items'!$C$1854))","v":"CONSTRUCTION STAKING PIPE CULVERTS"}]
[]
[]
[null,null,null,null,null,null,null,null,{"$f":"UPPER('Bid Items'!$B$1854)","v":"650.6000"}]
["CATEGORY",null,"STATION","TO"," STATION",null,"LOCATION",null,{"$f":"UPPER('Bid Items'!$E$1854)","v":"EACH"},null,"REMARKS"]
[null,null,null,{"$f":"INSERTDASH(C6,E6)","v":""}]
["0010",null,null,"",5184,null,null,null,1]
["0010",null,null,""]
["0010",null,null,""]
["0010",null,null,""]
["0010",null,null,""]
[]
["0010",null,null,""]
["0010",null,null,""]
["0010",null,null,""]
["0010",null,null,""]
["0010",null,null,""]
[null,null,null,""]
[null,null,null,"",null,null,"TOTAL 0010",null,{"$f":"SUM(I6:I18)","v":1}]
[null,null,null,""]
["0020",null,null,""]
["0020",null,null,""]
["0020",null,null,""]
["0020",null,null,""]
["0020",null,null,""]
[null,null,null,""]
[null,null,null,"",null,null,"TOTAL 0020",null,{"$f":"SUM(I20:I26)","v":0}]
[null,null,null,""]
["0030",null,null,""]
["0030",null,null,""]
["0030",null,null,""]
["0030",null,null,""]
["0030",null,null,""]
[null,null,null,""]
[null,null,null,null,null,null,"TOTAL 0030",null,{"$f":"SUM(I28:I34)","v":0}]
[null,null,null,{"$f":"INSERTDASH(C36,E36)","v":""}]
["0040",null,null,""]
["0040",null,null,""]
["0040",null,null,""]
["0040",null,null,""]
["0040",null,null,""]
[null,null,null,""]
[null,null,null,null,null,null,"TOTAL 0040",null,{"$f":"SUM(I36:I42)","v":0}]
[null,null,null,{"$f":"INSERTDASH(C44,E44)","v":""}]
["0050",null,null,""]
["0050",null,null,""]
["0050",null,null,""]
["0050",null,null,""]
["0050",null,null,""]
[null,null,null,""]
[null,null,null,null,null,null,"TOTAL 0050",null,{"$f":"SUM(I44:I50)","v":0}]

{"sheet":"690.0150","index":39,"n_rows":51,"n_cols":11,"rows_kept":51,"cut":false,"hidden":false,"merged":[]}
[null,null,null,null,null,null,{"$f":"UPPER(IF('Bid Items'!$C$2214=\"\",\"Enter an Item DESCRIPTION in 'Bid Items' sheet\",'Bid Items'!$C$2214))","v":"SAWING ASPHALT"}]
[]
[]
[null,null,null,null,null,null,null,null,{"$f":"UPPER('Bid Items'!$B$2214)","v":"690.0150"}]
["CATEGORY",null,"STATION","TO"," STATION",null,"LOCATION",null,{"$f":"UPPER('Bid Items'!$E$2214)","v":"LF"},null,"REMARKS"]
[null,null,null,{"$f":"INSERTDASH(C6,E6)","v":""}]
["0010",null,null,"",4914,null,null,null,30]
["0010",null,null,"",5454,null,null,null,30]
["0010",null,null,""]
["0010",null,null,""]
["0010",null,null,""]
[]
["0010",null,null,""]
["0010",null,null,""]
["0010",null,null,""]
["0010",null,null,""]
["0010",null,null,""]
[null,null,null,""]
[null,null,null,"",null,null,"TOTAL 0010",null,{"$f":"SUM(I6:I18)","v":60}]
[null,null,null,""]
["0020",null,null,""]
["0020",null,null,""]
["0020",null,null,""]
["0020",null,null,""]
["0020",null,null,""]
[null,null,null,""]
[null,null,null,"",null,null,"TOTAL 0020",null,{"$f":"SUM(I20:I26)","v":0}]
[null,null,null,""]
["0030",null,null,""]
["0030",null,null,""]
["0030",null,null,""]
["0030",null,null,""]
["0030",null,null,""]
[null,null,null,""]
[null,null,null,null,null,null,"TOTAL 0030",null,{"$f":"SUM(I28:I34)","v":0}]
[null,null,null,{"$f":"INSERTDASH(C36,E36)","v":""}]
["0040",null,null,""]
["0040",null,null,""]
["0040",null,null,""]
["0040",null,null,""]
["0040",null,null,""]
[null,null,null,""]
[null,null,null,null,null,null,"TOTAL 0040",null,{"$f":"SUM(I36:I42)","v":0}]
[null,null,null,{"$f":"INSERTDASH(C44,E44)","v":""}]
["0050",null,null,""]
["0050",null,null,""]
["0050",null,null,""]
["0050",null,null,""]
["0050",null,null,""]
[null,null,null,""]
[null,null,null,null,null,null,"TOTAL 0050",null,{"$f":"SUM(I44:I50)","v":0}]

{"sheet":"SPV.0005","index":40,"n_rows":51,"n_cols":17,"rows_kept":51,"cut":false,"hidden":false,"merged":[]}
[null,null,null,null,null,null,{"$f":"UPPER(IF('Bid Items'!$C$2224=\"\",\"Enter an Item DESCRIPTION in 'Bid Items' sheet\",'Bid Items'!$C$2224))","v":"SPECIAL"}]
[]
[]
[null,null,null,null,null,null,null,null,{"$f":"UPPER('Bid Items'!$B$2224)","v":"SPV.0005"},null,null,null,"Length","Width","Area",null,"****** I assumed a 24' ROW"]
["CATEGORY",null,"STATION","TO"," STATION",null,"LOCATION",null,{"$f":"UPPER('Bid Items'!$E$2224)","v":"ACRE"},null,"REMARKS",null,"ft","ft","ft2"]
[null,null,null,{"$f":"INSERTDASH(C6,E6)","v":""}]
["0010",null,4914,"-",5454,null,"LT",null,{"$f":"O7/43560","v":0.21074380165289255},null,null,null,{"$f":"E7-C7","v":540},17,{"$f":"M7*N7","v":9180}]
["0010",null,4914,"-",5454,null,"RT",null,{"$f":"O7/43560","v":0.21074380165289255}]
["0010",null,null,""]
["0010",null,null,""]
["0010",null,null,""]
[]
["0010",null,null,""]
["0010",null,null,""]
["0010",null,null,""]
["0010",null,null,""]
["0010",null,null,""]
[null,null,null,""]
[null,null,null,"",null,null,"TOTAL 0010",null,{"$f":"SUM(I6:I18)","v":0.42148760330578511}]
[null,null,null,""]
["0020",null,null,""]
["0020",null,null,""]
["0020",null,null,""]
["0020",null,null,""]
["0020",null,null,""]
[null,null,null,""]
[null,null,null,"",null,null,"TOTAL 0020",null,{"$f":"SUM(I20:I26)","v":0}]
[null,null,null,""]
["0030",null,null,""]
["0030",null,null,""]
["0030",null,null,""]
["0030",null,null,""]
["0030",null,null,""]
[null,null,null,""]
[null,null,null,null,null,null,"TOTAL 0030",null,{"$f":"SUM(I28:I34)","v":0}]
[null,null,null,{"$f":"INSERTDASH(C36,E36)","v":""}]
["0040",null,null,""]
["0040",null,null,""]
["0040",null,null,""]
["0040",null,null,""]
["0040",null,null,""]
[null,null,null,""]
[null,null,null,null,null,null,"TOTAL 0040",null,{"$f":"SUM(I36:I42)","v":0}]
[null,null,null,{"$f":"INSERTDASH(C44,E44)","v":""}]
["0050",null,null,""]
["0050",null,null,""]
["0050",null,null,""]
["0050",null,null,""]
["0050",null,null,""]
[null,null,null,""]
[null,null,null,null,null,null,"TOTAL 0050",null,{"$f":"SUM(I44:I50)","v":0}]

{"sheet":"CompSheet","index":41,"n_rows":53,"n_cols":34,"rows_kept":53,"cut":false,"hidden":true,"merged":[[52,0,52,5],[52,6,52,24],[48,30,48,34],[50,0,50,24],[50,25,50,29],[50,30,50,34],[48,0,48,13],[48,14,48,17],[48,18,48,22],[48,23,48,29],[52,33,52,34],[52,26,52,27],[52,30,52,31]]}
[]
[null,null,null,null,null,null,null,null,null,null,null,null,null,null,null,null,{"$f":"G53","v":"Description"}]
[]
[]
["CAT.",null,null,"STATION TO STATION",null,null,null,null,null,null,null,null,null,"LOCATION",null,null,null,null,null,null,{"$f":"AA53","v":"Unit"},null,null,null,null,"REMARKS"]
[]
[]
[]
[]
[]
[]
[]
[]
[]
[]
[]
[]
[]
[]
[]
[]
[]
[]
[]
[]
[]
[]
[]
[]
[]
[]
[]
[]
[]
[]
[]
[]
[]
[]
[]
[]
[]
[]
[]
[]
[]
[]
["Project/Structure No.",null,null,null,null,null,null,null,null,null,null,null,null,null,"Highway No.",null,null,null,"County",null,null,null,null,"Computations by",null,null,null,null,null,null,null,null,"Date"]
[{"$f":"MID('Bid Items'!B3,16,100)","v":"8949-04-78"},null,null,null,null,null,null,null,null,null,null,null,null,null,{"$f":"RIGHT('Bid Items'!B6,LEN('Bid Items'!B6)-15)","v":"USH 12"},null,null,null,{"$f":"RIGHT('Bid Items'!B7,LEN('Bid Items'!B7)-15)","v":"ST. CROIX"},null,null,null,null,{"$f":"MID('Bid Items'!C2,19,100)","v":"RICHARD SHERMO"},null,null,null,null,null,null,{"$f":"IF('Bid Items'!F2<>\"\",TEXT('Bid Items'!F2, \"m/dd/yyyy\"),TEXT(NOW(),\"m/dd/yyyy\"))","v":"6/09/2015"}]
["Project Title/Limits",null,null,null,null,null,null,null,null,null,null,null,null,null,null,null,null,null,null,null,null,null,null,null,null,"Checked by",null,null,null,null,null,null,"Date"]
[{"$f":"CONCATENATE(MID('Bid Items'!B4,16,100),\" (\",MID( 'Bid Items'!B5,16,100),\")\")","v":"BALDWIN - MENOMONIE (CULVERTS C-55-0037, 0038, & 0039)"}]
["Item/Description/Unit",null,null,null,null,null,null,null,null,null,null,null,null,null,null,null,null,null,null,null,null,null,null,null,null,null,null,null,null,"Sheet",null,null,"of"]
["Item",null,null,null,null,null,"Description",null,null,null,null,null,null,null,null,null,null,null,null,null,null,null,null,null,null,"(","Unit",null,")",null," ",null,null," "]

{"sheet":"Costs Report","index":42,"n_rows":13,"n_cols":6,"rows_kept":13,"cut":false,"hidden":true,"merged":[[11,0,11,1],[0,0,0,1],[8,0,8,3],[1,0,1,1],[3,0,3,1],[4,0,4,1],[5,0,5,1],[6,0,6,1],[7,0,7,1],[9,0,9,3]]}
[{"$f":"'Bid Items'!C1","v":"ENGINEER'S ESTIMATE / Q2P WORKBOOK"},null,null,null,"PRELIMINARY COST  "]
[{"$f":"'Bid Items'!C2","v":"PROJECT MANAGER:  RICHARD SHERMO"},null,null,null,{"$f":"'Bid Items'!F2","v":"2015-06-09"},{"$f":"Proj_Total","v":{"$error":"#REF!"}}]
[]
[" CONST. I.D.:  9999-99-99"]
["       TITLE:  TEST 2003.1"]
["      LIMITS:  WISCONSIN STATE LINES"]
["     HIGHWAY:  IH94"]
["      COUNTY:  VARIOUS"]
["PROGRAM CODE:  302 MAJOR HIGHWAY DEVELOPMENT"]
["CONCEPT CODE:  RECSTE RECONSTRUCTION, EXPANSION"]
[]
["NET C/L MILES:  310.500"]
["ITEMS",{"$f":"'Bid Items'!C12","v":"ITEM DESCRIPTION"},{"$f":"'Bid Items'!D12","v":"QUANTITY"},{"$f":"'Bid Items'!E12","v":"UNIT"},{"$f":"'Bid Items'!F12","v":"UNIT PRICE"},{"$f":"'Bid Items'!G12","v":"COST"}]

{"sheet":"MiscellaneousQTYSheet","index":43,"n_rows":76,"n_cols":11,"rows_kept":76,"cut":false,"hidden":true,"merged":[]}
[null,null,null,null,null,null,"ITEM DESCRIPTION"]
[]
[]
[null,null,null,null,null,null,null,null,"ITEM NUMBER"]
["CAT.",null,"STATION","TO"," STATION",null,"LOCATION",null,"UNIT",null,"REMARKS"]
[null,null,null,{"$f":"INSERTDASH(C6,E6)","v":""}]
["0010",null,null,{"$f":"INSERTDASH(C7,E7)","v":""}]
["0010",null,null,""]
["0010",null,null,""]
["0010",null,null,""]
["0010",null,null,""]
[]
["0010",null,null,""]
["0010",null,null,""]
["0010",null,null,""]
["0010",null,null,""]
["0010",null,null,{"$f":"INSERTDASH(C17,E17)","v":""}]
[null,null,null,""]
[null,null,null,"",null,null,"TOTAL 0010",null,{"$f":"SUM(I6:I18)","v":0}]
[null,null,null,""]
["0020",null,null,""]
["0020",null,null,""]
["0020",null,null,""]
["0020",null,null,""]
["0020",null,null,""]
[]
["0020",null,null,""]
["0020",null,null,""]
["0020",null,null,""]
["0020",null,null,""]
["0020",null,null,{"$f":"INSERTDASH(C31,E31)","v":""}]
[null,null,null,""]
[null,null,null,""]
[null,null,null,"",null,null,"TOTAL 0020",null,{"$f":"SUM(I20:I33)","v":0}]
[null,null,null,""]
["0030",null,null,""]
["0030",null,null,""]
["0030",null,null,""]
["0030",null,null,""]
["0030",null,null,""]
[]
["0030",null,null,""]
["0030",null,null,""]
["0030",null,null,""]
["0030",null,null,""]
["0030",null,null,{"$f":"INSERTDASH(C46,E46)","v":""}]
[null,null,null,""]
[null,null,null,null,null,null,"TOTAL 0030",null,{"$f":"SUM(I35:I47)","v":0}]
[null,null,null,{"$f":"INSERTDASH(C49,E49)","v":""}]
["0040",null,null,""]
["0040",null,null,""]
["0040",null,null,""]
["0040",null,null,""]
["0040",null,null,""]
[]
["0040",null,null,{"$f":"INSERTDASH(C56,E56)","v":""}]
["0040",null,null,""]
["0040",null,null,""]
["0040",null,null,""]
["0040",null,null,""]
[null,null,null,""]
[null,null,null,null,null,null,"TOTAL 0040",null,{"$f":"SUM(I49:I61)","v":0}]
[null,null,null,{"$f":"INSERTDASH(C63,E63)","v":""}]
["0050",null,null,""]
["0050",null,null,""]
["0050",null,null,""]
["0050",null,null,""]
["0050",null,null,""]
[]
["0050",null,null,{"$f":"INSERTDASH(C70,E70)","v":""}]
["0050",null,null,""]
["0050",null,null,""]
["0050",null,null,""]
["0050",null,null,""]
[null,null,null,""]
[null,null,null,null,null,null,"TOTAL 0050",null,{"$f":"SUM(I63:I75)","v":0}]

{"sheet":"MiscellaneousQTYSheet D5","index":44,"n_rows":51,"n_cols":11,"rows_kept":51,"cut":false,"hidden":true,"merged":[]}
[null,null,null,null,null,null,"ITEM DESCRIPTION"]
[]
[]
[null,null,null,null,null,null,null,null,"ITEM NUMBER"]
["CATEGORY",null,"STATION","TO"," STATION",null,"LOCATION",null,"UNIT",null,"REMARKS"]
[null,null,null,{"$f":"INSERTDASH(C6,E6)","v":""}]
["0010",null,null,""]
["0010",null,null,""]
["0010",null,null,""]
["0010",null,null,""]
["0010",null,null,""]
[]
["0010",null,null,""]
["0010",null,null,""]
["0010",null,null,""]
["0010",null,null,""]
["0010",null,null,{"$f":"INSERTDASH(C17,E17)","v":""}]
[null,null,null,""]
[null,null,null,"",null,null,"TOTAL 0010",null,{"$f":"SUM(I6:I18)","v":0}]
[null,null,null,""]
["0020",null,null,""]
["0020",null,null,""]
["0020",null,null,""]
["0020",null,null,""]
["0020",null,null,""]
[null,null,null,""]
[null,null,null,"",null,null,"TOTAL 0020",null,{"$f":"SUM(I20:I26)","v":0}]
[null,null,null,""]
["0030",null,null,""]
["0030",null,null,""]
["0030",null,null,""]
["0030",null,null,""]
["0030",null,null,""]
[null,null,null,""]
[null,null,null,null,null,null,"TOTAL 0030",null,{"$f":"SUM(I28:I34)","v":0}]
[null,null,null,{"$f":"INSERTDASH(C36,E36)","v":""}]
["0040",null,null,""]
["0040",null,null,""]
["0040",null,null,""]
["0040",null,null,""]
["0040",null,null,""]
[null,null,null,{"$f":"INSERTDASH(C42,E42)","v":""}]
[null,null,null,null,null,null,"TOTAL 0040",null,{"$f":"SUM(I36:I42)","v":0}]
[null,null,null,{"$f":"INSERTDASH(C44,E44)","v":""}]
["0050",null,null,""]
["0050",null,null,""]
["0050",null,null,""]
["0050",null,null,""]
["0050",null,null,""]
[null,null,null,{"$f":"INSERTDASH(C50,E50)","v":""}]
[null,null,null,null,null,null,"TOTAL 0050",null,{"$f":"SUM(I44:I50)","v":0}]

{"sheet":"Help Window","index":45,"n_rows":80,"n_cols":1,"rows_kept":80,"cut":false,"hidden":true,"merged":[]}
["1.  Starting the Program (MUST ENABLE MACROS - choose the \"Low\" setting)."]
["The very first time you run the program, you will be prompted to enter a Construction Project I.D.  You can enter the project I.D. with or without the dashes (1234-45-70 or 12345670).  The program will enter the following as a default, or choose a path the fits your system."]
[]
["     \"d:\\projects\\misq\\12345670\\12345670 misq.xls\""]
[]
["2.  Project Setup (if you cancelled out of step 1 above)."]
["To complete the project setup for your particular project, on the drop-down menu, select \"Project\" -> \"Project Setup\".  Then follow the popup input windows.  "]
[]
["Example below, uses information from FIIPS or Concept Definition Report (CDR): "]
[]
["                     Designer:  Tou X. Yang"]
["             Construction I.D:  1234-56-70"]
["                        Title:  Durand - Menomonie Road"]
["                       Limits:  Red Cedar River - 28th Ave."]
["                      Highway:  STH 25"]
["                       County:  Dunn County"]
["                 Program Code:  3230 STH-MAJOR HWY DEVELOPMENT-CONSTRUCTION"]
["Net Centerline Length (miles):  12.50"]
[]
["Near the bottom of sheet1 \"Bid Items\" fill in the information for Categories and Funding.  Set-up categories prior to creating sheets.  This workbook tracks subtotals by category and prints reports based on these categories.  These categories may be revised at anytime."]
[]
["3.  Creating Computation or Miscellaneous Quantity Sheets."]
["In order to create a Comp Sheet or Misc. Qty Sheet for a particular item number, you must:"]
[]
["a.  \"Mark\" that item by entering an \"x\" in Column A next to the item.  Then on the drop-down menu, select \"Misc Qty Sheets\" -> \"Create multiple miscellaneous…\" command to generate sheets for all the \"marked\" items. "]
[]
["or"]
["b.  Use the \"Insert one or more miscellaneous...\" or \"Insert Comp Sheet(s)\" command to insert the sheet(s)."]
[]
["The Computation Sheets are mainly used for engineering computation and sketching.  The one advantage in using these sheets is that all project information are printed on the form so you don't have to hand write them in on each sheet/item.  Their use is optional."]
[]
["The Miscellaneous Quantity Sheets, on the other hand, are where all quantities and notes are entered.  These will then be tied to the Engineering Estimate and ultimately be exported into Trns-Port for Letting.  These sheets will also be sent to CADDS to plot on miscellaneous quantity sheets."]
[]
["4.  Entering Data and Editing Miscellaneous Qty Sheets."]
["There are five fields in the Miscellaneous Qty Sheet that are linked to/from the Engineering Estimate or \"Bid Items\" sheet.  These are Item Description, Item Number, Item Unit, Quantity Total (number) and Category Total (\"Total 00n0\" where n0 is the category number)."]
[]
["You may customize these sheets to suit your needs, but be careful NOT to delete the above links.  The most critical link is the \"Total 00n0\" because the total quantity amount associates with that category (n0) is found by searching for the test \"Total 00n0\"."]
[]
["5.  Inserting Comp/Miscellaneous Qty Sheets."]
["These commands can be used at anytime to create an item sheet(s).  They are most useful when you have previously created some sheets and you want to insert one or more  item sheets.  To insert more than one item sheet, the item numbers should be separated by spaces or commas."]
[]
["6.  Saving Your Work."]
["There are two types of files that you may want to save.  The first file type is the main Excel file or Project File (12345670 misq.xls), which contains all the work - the Engineering Estimate and all Miscellaneous Qty Sheets.  To save the Project File, use the \"Project\" -> \"Save Project\" command."]
[]
["Note:  The above command will save the file to the District 6 preferred location of \"D:\\Projects\\Misq\\12345670\\\".  If you wish to save the file to a different location, use the standard Excel File-Save command. "]
[]
["The second file type is the ASCII files using the \"SAVE Sheets (*.prn)\" -> \"Save all sheets into individual files...\" from the drop-down menu, which each Miscellaneous Qty Sheet is saved into an individual file in a text format.  For example, the sheet 108.4400 is saved as 108.4400.prn."]
[]
["7.  Exporting file to CADDS or (Use D5 Method PPT, see page 14 of Francis Schelfhout's guide)."]
["Once you finalize the miscellaneous quantities for your project and are ready to produce plan sheets for them, use the \"Save Sheets (*.prn)\" -> \"Save all sheets into one file (to be given to CADDS)\" command on the drop-down menu to save all the Miscellaneous Qty Sheets into a file named \"CADDS.prn\""]
[]
["8.  Printing Your Work."]
["Printing the Estimate:  To print a detail the estimate, use the \"PRINT\" -> \"Print Full Estimate (Formatted) command.  This report will give a printout of the estimate by category. "]
[]
["Note:  If you don't have the categories set up per article 2 above, detail printing will not be possible."]
[]
["Printing individual item sheet:  To print one or two Miscellaneous Qty Sheets, select those sheets and print them through the standard Excel command.  To print the entire workbook of all the Miscellaneous Qty Sheets, use the \"PRINT\" -> \"All Miscellaneous Quantity Sheets\" command."]
[]
["9.  Exporting Engineering Estimate to TRNS-PORT for Letting."]
["(Review the project for accuracy, compare with Estimator)"]
["This program doesn't export the Estimate directly into TRNS-PORT, it exports the Estimate into an ASCII file which can be uploaded into TRNS-PORT.  To create this file, from the drop-down menu, select \"Pass File (Pjiport.dat)\" -> \"Create Pjiport.dat file\".  The file will be saved on the \"W\" drive as follows:"]
[]
["     \"W:\\Design\\Estimate\\Projects\\Pjiport.dat\""]
[]
["10.  Unit Price Resources (drop-down menu)."]
[]
["Statewide Historical Bid Data  is used to access the combined Bid Prices of the 3 Low Bids in the past 18 months.         "]
["     "]
["Letting Reports  is used to access the last 3 monthly lettings. "]
[]
["Run ESTIMATOR opens the HIGHEST.EXE (open the file \"00E_UNIT.HE\") program to check bid history for a particular item.  This command will automatically supply the logon ID and password to ESTIMATOR.  If it fails to do that, use d6 for both logon ID and password."]
["     "]
["Run TSO opens Mainframe SESSION to access statewide data base for unit prices.  See FDM 19-5-20 for TSO settings and as shown below."]
[]
["Copy Prices From Another Project lets you copy prices from another project estimate.  It will compare the new items to the old items and if there's a match, it will copy the unit price to the new estimate.  Note you must have the archived project opened for this to work."]
["     "]
["9.  Pay Plan Quantity Designation."]
["When choosing to designate an item for Pay Plan Quantity, don't add the \"**P**\" to the Description use the drop-down menu instead…\"Data\" -> \"Pay Plan Quantity For This Item\""]
[]
["Revised: 9/28/2004"]